Workbook

Sheet JHS-19
K2: =DocketNumber -> Docket Number UE-111048 | T2: =DocketNumber -> Docket Number UE-111048 | AD2: =DocketNumber -> Docket Number UE-111048 | AM2: =DocketNumber -> Docket Number UE-111048 | AR2: Docket Number UE-111048
K3: =Exhibit_No.______JHS_19 -> Exhibit No. ___ (JHS-19) | T3: =Exhibit_No.______JHS_19 -> Exhibit No. ___ (JHS-19) | AD3: =Exhibit_No.______JHS_19 -> Exhibit No. ___ (JHS-19) | AM3: =Exhibit_No.______JHS_19 -> Exhibit No. ___ (JHS-19) | AR3: Exhibit No. ___ (JHS-19)
K4: Page 19.02 | T4: Page 19.03 | AD4: Page 19.04 | AM4: Page 19.05 | AR4: PAGE 19.01
C5: PUGET SOUND ENERGY-ELECTRIC | L5: =C5 -> PUGET SOUND ENERGY-ELECTRIC | U5: =L5 -> PUGET SOUND ENERGY-ELECTRIC | AE5: =U5 -> PUGET SOUND ENERGY-ELECTRIC
C6: STATEMENT OF OPERATING INCOME AND ADJUSTMENTS | L6: =$C$6 -> STATEMENT OF OPERATING INCOME AND ADJUSTMENTS | U6: =$C$6 -> STATEMENT OF OPERATING INCOME AND ADJUSTMENTS | AE6: =$C$6 -> STATEMENT OF OPERATING INCOME AND ADJUSTMENTS | AN6: PUGET SOUND ENERGY-ELECTRIC
C7: =TESTYEAR -> FOR THE TWELVE MONTHS ENDED DECEMBER 31, 2010 | L7: =C7 -> FOR THE TWELVE MONTHS ENDED DECEMBER 31, 2010 | U7: =L7 -> FOR THE TWELVE MONTHS ENDED DECEMBER 31, 2010 | AE7: =U7 -> FOR THE TWELVE MONTHS ENDED DECEMBER 31, 2010 | AN7: RESULTS OF OPERATIONS
C8: Adjustment Detail (Page 1) | L8: Adjustment Detail (Page 2) | U8: Adjustment Detail (Page 3) | AE8: Adjustment Detail (Page 4) | AN8: FOR THE TWELVE MONTHS ENDED DECEMBER 31, 2010
D9: REVISED | E9: REVISED | F9: REVISED | G9: REVISED | N9: REVISED | O9: NEW | Q9: REVISED | T9: REVISED | U9: REVISED | AH9: REVISED | AI9: REVISED | AJ9: REVISED | AK9: NEW | AL9: REVISED | AM9: REVISED | AN9: GENERAL RATE INCREASE
D10: >
AO11: REVISED | AP11: REVISED | AQ11: REVISED | AR11: REVISED
C12: ACTUAL | D12: POWER | E12: LOWER SNAKE | F12: LSR PPD | G12: MT ELECTRIC | H12: WILD HORSE | I12: ASC 815 | J12: STORM | K12: REMOVE | L12: CHELAN | M12: REG ASSETS | N12: PRODUCTION | O12: LSR | P12: TEMPERATURE | Q12: REVENUES | R12: PASS-THROUGH | S12: FEDERAL | T12: TAX BENEFIT OF PRO | U12: OPERATING | V12: GENERAL PLANT | W12: NORMALIZE | X12: BAD | Y12: INCENTIVE | Z12: PROPERTY | AA12: EXCISE TAX | AB12: D&O | AC12: INTEREST ON | AD12: RATE CASE | AE12: DEFERRED G/L ON | AF12: PROPERTY & | AG12: PENSION | AH12: WAGE | AI12: INVESTMENT | AJ12: EMPLOYEE | AK12: WORKING | AL12: TOTAL | AM12: ADJUSTED | AP12: ADJUSTED | AQ12: REVENUE | AR12: AFTER
A13: LINE | C13: RESULTS OF | D13: COSTS | E13: RIVER | F13: TRANSM DEP | G13: ENERGY TAX | H13: SOLAR | I13: (PREV. SFAS 133) | J13: DAMAGE | K13: TENASKA | L13: PAYMENTS | M13: & LIABILITIES | N13: ADJUSTMENT | O13: DEFERRAL | P13: NORMALIZATION | Q13: & EXPENSES | R13: REVS. & EXPS. | S13: INCOME TAX | T13: FORMA INTEREST | U13: EXPENSES | V13: DEPRECIATION | W13: INJ & DMGS | X13: DEBTS | Y13: PAY | Z13: TAXES | AA13: & FILING FEE | AB13: INSURANCE | AC13: CUST DEPOSITS | AD13: EXPENSES | AE13: PROPERTY SALES | AF13: LIABILITY INS | AG13: PLAN | AH13: INCREASE | AI13: PLAN | AJ13: INSURANCE | AK13: CAPITAL | AL13: ADJUSTMENTS | AM13: RESULTS OF | AN13: ACTUAL RESUTLS | AO13: TOTAL | AP13: RESULTS OF | AQ13: REQUIREMENT | AR13: RATE
A14: NO. | C14: OPERATIONS | D14: 20.01 | E14: =D14+0.01 -> 20.02 | F14: 20.03 | G14: 20.04 | H14: 20.05 | I14: 20.06 | J14: 20.07 | K14: 20.08 | L14: =K14+0.01 -> 20.09 | M14: =L14+0.01 -> 20.1 | N14: =M14+0.01 -> 20.11 | O14: =N14+0.01 -> 20.12 | P14: 21.01 | Q14: =P14+0.01 -> 21.02 | R14: =Q14+0.01 -> 21.03 | S14: =R14+0.01 -> 21.04 | T14: =S14+0.01 -> 21.05 | U14: =T14+0.01 -> 21.06 | V14: =U14+0.01 -> 21.07 | W14: 21.08 | X14: 21.09 | Y14: 21.1 | Z14: 21.11 | AA14: 21.12 | AB14: 21.13 | AC14: 21.14 | AD14: 21.15 | AE14: 21.16 | AF14: 21.17 | AG14: 21.18 | AH14: 21.19 | AI14: 21.2 | AJ14: =AI14+0.01 -> 21.21 | AK14: =AJ14+0.01 -> 21.22 | AM14: OPERATIONS | AN14: OF OPERATIONS | AO14: ADJUSTMENTS | AP14: OPERATIONS | AQ14: =IF(AQ21<0,"SURPLUS","DEFICIENCY") -> DEFICIENCY | AR14: =IF(AQ21<0,"DECREASE","INCREASE") -> INCREASE
A15: -
A16: 1 | B16: OPERATING REVENUES
A17: =A16+1 -> 2 | B17: SALES TO CUSTOMERS | C17: 2042334319 | D17: 0 | G17: 0 | I17: 0 | J17: 0 | M17: 0 | N17: 0 | P17: =+'JHS-21'!G41-P18 -> 20893333.04 | Q17: ='JHS-21'!L29 -> -7338699.608 | R17: =-('JHS-21'!Q23-'JHS-21'!Q19-'JHS-21'!Q21-'JHS-21'!Q22) -> -78775415.69 | S17: 0 | T17: 0 | U17: 0 | V17: 0 | X17: 0 | Z17: 0 | AA17: 0 | AB17: 0 | AC17: 0 | AD17: 0 | AE17: 0 | AF17: 0 | AG17: 0 | AH17: 0 | AI17: 0 | AJ17: 0 | AL17: =SUM(D17:AK17) -> -65220782.26 | AM17: =AL17+C17 -> 1977113537 | AN17: =C17 -> 2042334319 | AO17: =+AL17 -> -65220782.26 | AP17: =SUM(AN17:AO17) -> 1977113537 | AQ17: ='JHS-22'!C25 -> 125401321 | AR17: =SUM(AP17:AQ17) -> 2102514858
A18: 3 | B18: SALES FROM RESALE-FIRM/SPECIAL CONTRACT | C18: 350182.38 | P18: ='JHS-21'!F40 -> 3093 | Q18: ='JHS-21'!L35 -> 864472.14 | AL18: =SUM(D18:AK18) -> 867565.14 | AM18: =AL18+C18 -> 1217747.52 | AN18: =C18 -> 350182.38 | AO18: =+AL18 -> 867565.14 | AP18: =SUM(AN18:AO18) -> 1217747.52 | AQ18: ='JHS-22'!C24+'JHS-22'!C23 -> 591462 | AR18: =SUM(AP18:AQ18) -> 1809209.52
A19: 4 | B19: SALES TO OTHER UTILITIES | C19: 201262557 | D19: ='JHS-20'!E13 -> -178855858.7 | N19: =-'JHS-20'!BC40 -> 0 | AL19: =SUM(D19:AK19) -> -178855858.7 | AM19: =AL19+C19 -> 22406698.31 | AN19: =C19 -> 201262557 | AO19: =+AL19 -> -178855858.7 | AP19: =SUM(AN19:AO19) -> 22406698.31 | AR19: =SUM(AP19:AQ19) -> 22406698.31
A20: 5 | B20: OTHER OPERATING REVENUES | C20: 30706332.76 | D20: ='JHS-20'!E15+'JHS-20'!E16 -> 37423536.73 | Q20: ='JHS-21'!L42 -> 1036143.38 | R20: =-'JHS-21'!Q19-'JHS-21'!Q21-'JHS-21'!Q22 -> -32491669.85 | AL20: =SUM(D20:AK20) -> 5968010.256 | AM20: =AL20+C20 -> 36674343.02 | AN20: =C20 -> 30706332.76 | AO20: =+AL20 -> 5968010.256 | AP20: =SUM(AN20:AO20) -> 36674343.02 | AR20: =SUM(AP20:AQ20) -> 36674343.02
A21: 6 | B21: TOTAL OPERATING REVENUES | C21: =SUM(C17:C20) -> 2274653391 | D21: =SUM(D17:D20) -> -141432322 | E21: =SUM(E17:E20) -> 0 | F21: =SUM(F17:F20) -> 0 | G21: =SUM(G17:G20) -> 0 | I21: =SUM(I17:I20) -> 0 | J21: =SUM(J17:J20) -> 0 | K21: =SUM(K17:K20) -> 0 | L21: =SUM(L17:L20) -> 0 | M21: 0 | N21: 0 | O21: =SUM(O17:O20) -> 0 | P21: 20896426.04 | Q21: -5438084.088 | R21: -111267085.5 | S21: 0 | T21: 0 | U21: 0 | V21: 0 | X21: =SUM(X17:X20) -> 0 | Y21: =SUM(Y17:Y20) -> 0 | Z21: =SUM(Z17:Z20) -> 0 | AA21: =SUM(AA17:AA20) -> 0 | AB21: =SUM(AB17:AB20) -> 0 | AC21: =SUM(AC17:AC20) -> 0 | AD21: 0 | AE21: 0 | AF21: 0 | AG21: 0 | AH21: 0 | AI21: 0 | AJ21: 0 | AK21: 0 | AL21: =SUM(D21:AK21) -> -237241065.6 | AM21: =AL21+C21 -> 2037412326 | AN21: =SUM(AN17:AN20) -> 2274653391 | AO21: =SUM(AO17:AO20) -> -237241065.6 | AP21: =SUM(AP17:AP20) -> 2037412326 | AQ21: =SUM(AQ17:AQ20) -> 125992783 | AR21: =SUM(AR17:AR20) -> 2163405109
A22: 7
A23: 8 | B23: OPERATING REVENUE DEDUCTIONS:
A24: 9
A25: 10 | B25: POWER COSTS:
A26: 11 | B26: FUEL | C26: 268147071.2 | D26: ='JHS-20'!E21 -> -19168278.1 | G26: 0 | I26: 0 | J26: 0 | M26: ='JHS-20'!AY43+'JHS-20'!AY44+'JHS-20'!AY47 -> 486510.6399 | N26: ='JHS-20'!BC53+'JHS-20'!BC37+'JHS-20'!BC54+'JHS-20'!BC57 -> 7855.304416 | P26: 0 | Q26: 0 | S26: 0 | T26: 0 | U26: 0 | V26: 0 | X26: 0 | Z26: 0 | AA26: 0 | AB26: 0 | AC26: 0 | AD26: 0 | AE26: 0 | AF26: 0 | AG26: 0 | AH26: 0 | AI26: 0 | AJ26: 0 | AL26: =SUM(D26:AK26) -> -18673912.15 | AM26: =AL26+C26 -> 249473159 | AN26: =C26 -> 268147071.2 | AO26: =+AL26 -> -18673912.15 | AP26: =SUM(AN26:AO26) -> 249473159 | AQ26: 0 | AR26: =SUM(AP26:AQ26) -> 249473159
A27: 12 | B27: PURCHASED AND INTERCHANGED | C27: 832711096.7 | D27: =+'JHS-20'!E23+'JHS-20'!E24 -> -312380136.8 | E27: ='JHS-20'!J28 -> 776099.4993 | K27: ='JHS-20'!AO29 -> -37532000 | L27: ='JHS-20'!AT28 -> 7088065.589 | M27: ='JHS-20'!AY38+'JHS-20'!AY42 -> 1209583.333 | N27: =+'JHS-20'!BC47+'JHS-20'!BC38+'JHS-20'!BC15+'JHS-20'!BC63 -> -240765.5461 | Y27: ='JHS-21'!BB14 -> -32534.94904 | AH27: ='JHS-21'!CR14 -> 112238 | AL27: =SUM(D27:AK27) -> -340999450.9 | AM27: =AL27+C27 -> 491711645.8 | AN27: =C27 -> 832711096.7 | AO27: =+AL27 -> -340999450.9 | AP27: =SUM(AN27:AO27) -> 491711645.8 | AR27: =SUM(AP27:AQ27) -> 491711645.8
A28: 13 | B28: WHEELING | C28: 78564669.04 | D28: ='JHS-20'!E27 -> 6827616.31 | E28: ='JHS-20'!J29 -> 7039229.379 | F28: ='JHS-20'!O27 -> 420202.5852 | M28: ='JHS-20'!AY40 -> -2076858.21 | N28: ='JHS-20'!BC39+'JHS-20'!BC50+'JHS-20'!BC52+'JHS-20'!BC61 -> -156573.4769 | AL28: =SUM(D28:AK28) -> 12053616.59 | AM28: =AL28+C28 -> 90618285.63 | AN28: =C28 -> 78564669.04 | AO28: =+AL28 -> 12053616.59 | AP28: =SUM(AN28:AO28) -> 90618285.63 | AR28: =SUM(AP28:AQ28) -> 90618285.63
A29: 14 | B29: RESIDENTIAL EXCHANGE | C29: -75109150.28 | D29: ='JHS-20'!E28 -> 0 | R29: ='JHS-21'!Q35 -> 75109150.28 | AL29: =SUM(D29:AK29) -> 75109150.28 | AM29: =AL29+C29 -> 0 | AN29: =C29 -> -75109150.28 | AO29: =+AL29 -> 75109150.28 | AP29: =SUM(AN29:AO29) -> 0 | AR29: =SUM(AP29:AQ29) -> 0
A30: 15 | B30: TOTAL PRODUCTION EXPENSES | C30: =SUM(C26:C29) -> 1104313687 | D30: =SUM(D26:D29) -> -324720798.6 | E30: =SUM(E25:E29) -> 7815328.878 | F30: =SUM(F25:F29) -> 420202.5852 | G30: =SUM(G25:G29) -> 0 | H30: =SUM(H25:H29) -> 0 | I30: =SUM(I25:I29) -> 0 | J30: =SUM(J26:J29) -> 0 | K30: =SUM(K25:K29) -> -37532000 | L30: =SUM(L25:L29) -> 7088065.589 | M30: =SUM(M25:M29) -> -380764.2367 | N30: =SUM(N25:N29) -> -389483.7186 | O30: =SUM(O25:O29) -> 0 | P30: =SUM(P26:P29) -> 0 | Q30: =SUM(Q26:Q29) -> 0 | R30: =SUM(R25:R29) -> 75109150.28 | S30: =SUM(S26:S29) -> 0 | T30: =SUM(T26:T29) -> 0 | U30: =SUM(U25:U29) -> 0 | V30: =SUM(V26:V29) -> 0 | W30: =SUM(W25:W29) -> 0 | X30: =SUM(X26:X29) -> 0 | Y30: =SUM(Y25:Y29) -> -32534.94904 | Z30: =SUM(Z25:Z29) -> 0 | AA30: =SUM(AA25:AA29) -> 0 | AB30: =SUM(AB25:AB29) -> 0 | AC30: =SUM(AC25:AC29) -> 0 | AD30: 0 | AE30: 0 | AF30: 0 | AG30: 0 | AH30: 112238 | AI30: 0 | AJ30: 0 | AK30: 0 | AL30: =SUM(D30:AK30) -> -272510596.2 | AM30: =AL30+C30 -> 831803090.5 | AN30: =SUM(AN26:AN29) -> 1104313687 | AO30: =SUM(AO26:AO29) -> -272510596.2 | AP30: =SUM(AP26:AP29) -> 831803090.5 | AQ30: =SUM(AQ26:AQ29) -> 0 | AR30: =SUM(AR26:AR29) -> 831803090.5
A31: 16
A32: 17 | B32: OTHER POWER SUPPLY EXPENSES | C32: 102409191.7 | D32: ='JHS-20'!E30 -> 11287763.3 | E32: ='JHS-20'!J30 -> 10891022.51 | F32: 0 | G32: 0 | H32: 0 | I32: 0 | J32: 0 | K32: 0 | L32: 0 | M32: =SUM('JHS-20'!AY50:AY54) -> 0 | N32: ='JHS-20'!BC41+'JHS-20'!BC16+'JHS-20'!BC59 -> -259228.3102 | O32: 0 | P32: 0 | Q32: 0 | R32: 0 | S32: 0 | T32: 0 | U32: ='JHS-21'!AD17 -> -77824.864 | V32: 0 | W32: 0 | X32: 0 | Y32: ='JHS-21'!BB15 -> -151873.7818 | Z32: 0 | AA32: 0 | AB32: 0 | AC32: 0 | AD32: 0 | AE32: 0 | AF32: 0 | AG32: 0 | AH32: ='JHS-21'!CR15 -> 473655 | AI32: 0 | AJ32: 0 | AL32: =SUM(D32:AK32) -> 22163513.85 | AM32: =AL32+C32 -> 124572705.5 | AN32: =C32 -> 102409191.7 | AO32: =+AL32 -> 22163513.85 | AP32: =SUM(AN32:AO32) -> 124572705.5 | AQ32: 0 | AR32: =SUM(AP32:AQ32) -> 124572705.5
A33: 18 | B33: TRANSMISSION EXPENSE | C33: 11865442.94 | D33: ='JHS-20'!E31 -> -29797.90865 | J33: ='JHS-20'!AH28 -> 50883.155 | X33: 0 | Y33: ='JHS-21'!BB16 -> -25766.28452 | AH33: =+'JHS-21'!CR16 -> 86346 | AL33: 81664.96183 | AM33: 11947107.9 | AN33: 11865442.94 | AO33: 81664.96183 | AP33: 11947107.9 | AR33: 11947107.9
A34: 19 | B34: DISTRIBUTION EXPENSE | C34: 82924735.2 | J34: ='JHS-20'!AI28 -> -1606134.243 | U34: ='JHS-21'!AD18 -> -112533.504 | X34: 0 | Y34: ='JHS-21'!BB17 -> -173075.5132 | AH34: =+'JHS-21'!CR17 -> 523932 | AL34: -1367811.261 | AM34: 81556923.94 | AN34: 82924735.2 | AO34: -1367811.261 | AP34: 81556923.94 | AR34: 81556923.94
A35: 20 | B35: CUSTOMER ACCTS EXPENSES | C35: 50172085.52 | P35: ='JHS-21'!F43 -> 92864 | Q35: =+'JHS-21'!K49 -> -24166.84569 | R35: ='JHS-21'!Q26 -> -494470.9282 | X35: ='JHS-21'!AW25 -> -2520278 | Y35: ='JHS-21'!BB18 -> -102159.1374 | AB35: ='JHS-21'!BT13 -> 0 | AC35: ='JHS-21'!BU13 -> 47149 | AH35: =+'JHS-21'!CR18 -> 305869 | AL35: -2695192.911 | AM35: 47476892.61 | AN35: 50172085.52 | AO35: -2695192.911 | AP35: 47476892.61 | AQ35: =+'JHS-22'!C22*'JHS-22'!M13 -> 559911.9277 | AR35: 48036804.54
A36: 21 | B36: CUSTOMER SERVICE EXPENSES | C36: 13431631.96 | R36: ='JHS-21'!Q34+'JHS-21'!Q36 -> -11759102.61 | Y36: ='JHS-21'!BB19+'JHS-21'!BB20 -> -10512.85131 | AH36: =+'JHS-21'!CR19+'JHS-21'!CR20 -> 34737 | AL36: -11734878.46 | AM36: 1696753.501 | AN36: 13431631.96 | AO36: -11734878.46 | AP36: 1696753.501 | AR36: 1696753.501
A37: 22 | B37: CONSERVATION AMORTIZATION | C37: 75336909.45 | R37: ='JHS-21'!Q32 -> -75334320 | AL37: -75334320 | AM37: 2589.45 | AN37: 75336909.45 | AO37: -75334320 | AP37: 2589.45 | AR37: 2589.45
A38: 23 | B38: ADMIN & GENERAL EXPENSE | C38: 94643935.08 | E38: ='JHS-20'!J31 -> 522423.2001 | N38: ='JHS-20'!BC22+'JHS-20'!BC42 -> -175637.3696 | P38: ='JHS-21'!F44 -> 41793 | Q38: =+'JHS-21'!K50 -> -10876.16818 | R38: ='JHS-21'!Q27+'JHS-21'!Q37 -> -275781.1711 | U38: ='JHS-21'!AD19+'JHS-21'!AD20+'JHS-21'!AD21+'JHS-21'!AD23+'JHS-21'!AD25+'JHS-21'!AD24 -> 1486933.492 | W38: ='JHS-21'!AN17 -> 1116335.92 | Y38: ='JHS-21'!BB21 -> -189642.2948 | AA38: =+'JHS-21'!BL19 -> 0 | AB38: ='JHS-21'!BQ15 -> -51667.34845 | AD38: ='JHS-21'!BY28 -> -68325 | AF38: ='JHS-21'!CH15 -> 191503.8327 | AG38: ='JHS-21'!CM15 -> 1846129.056 | AH38: =+'JHS-21'!CR21 -> 648607 | AI38: ='JHS-21'!CW37 -> 128651.6732 | AJ38: ='JHS-21'!DB20 -> 17347 | AL38: 5227794.821 | AM38: 99871729.9 | AN38: 94643935.08 | AO38: 5227794.821 | AP38: 99871729.9 | AQ38: =+'JHS-22'!C22*('JHS-22'!M14) -> 251985.566 | AR38: 100123715.5
A39: 24 | B39: DEPRECIATION | C39: 190245449.4 | E39: ='JHS-20'!J24 -> 32599479.4 | H39: ='JHS-20'!Y21 -> -275496.66 | N39: ='JHS-20'!BC25 -> -2004728.006 | V39: ='JHS-21'!AI19 -> -1059158.04 | AL39: 29260096.69 | AM39: 219505546.1 | AN39: 190245449.4 | AO39: 29260096.69 | AP39: 219505546.1 | AR39: 219505546.1
A40: 25 | B40: AMORTIZATION | C40: 40184320.89 | M40: ='JHS-20'!AY39 -> -0.2599999905 | N40: ='JHS-20'!BC26 -> -236432.2498 | AL40: -236432.5098 | AM40: 39947888.38 | AN40: 40184320.89 | AO40: -236432.5098 | AP40: 39947888.38 | AR40: 39947888.38
A41: 26 | B41: AMORTIZ OF PROPERTY GAIN/LOSS | C41: 17493030.99 | J41: ='JHS-20'!AJ54 -> -520924.6598 | N41: =+'JHS-20'!BC48 -> -31373.78915 | AL41: -552298.449 | AM41: 16940732.54 | AN41: 17493030.99 | AO41: -552298.449 | AP41: 16940732.54 | AR41: 16940732.54
A42: 27 | B42: OTHER OPERATING EXPENSES | C42: 30169560.11 | F42: =+'JHS-20'!O28 -> 697744.739 | M42: ='JHS-20'!AY41+'JHS-20'!AY45+'JHS-20'!AY46+'JHS-20'!AY48 -> -5285875.897 | N42: ='JHS-20'!BC55+'JHS-20'!BC51+'JHS-20'!BC56+'JHS-20'!BC58+'JHS-20'!BC60+'JHS-20'!BC62 -> -202311.8154 | O42: ='JHS-20'!BI18 -> 5803404.153 | Q42: ='JHS-21'!L47 -> -7273471 | R42: ='JHS-21'!Q39 -> -21591916 | U42: =+'JHS-21'!AD15+'JHS-21'!AD14 -> 5360249.57 | AE42: ='JHS-21'!CC27 -> 1582024.817 | AL42: -20910151.43 | AM42: 9259408.676 | AN42: 30169560.11 | AO42: -20910151.43 | AP42: 9259408.676 | AR42: 9259408.676
A43: 28 | B43: ASC 815 | C43: 166953096.9 | I43: ='JHS-20'!AD13 -> -166953096.9 | AL43: -166953096.9 | AM43: 0 | AN43: 166953096.9 | AO43: -166953096.9 | AP43: 0 | AR43: 0
A44: 29 | B44: TAXES OTHER THAN INCOME TAXES | C44: 193255906.6 | D44: =-'JHS-20'!E37 -> 26145.6666 | E44: ='JHS-20'!J32 -> 2932856.476 | G44: ='JHS-20'!T18 -> 158582.9541 | N44: ='JHS-20'!BC34+'JHS-20'!BC43 -> -462392.751 | P44: =+'JHS-21'!G48 -> 805724 | Q44: =+'JHS-21'!L54 -> -209681.6463 | R44: ='JHS-21'!Q38+'JHS-21'!Q28+'JHS-21'!Q33 -> -76449191.24 | U44: ='JHS-21'!AD22 -> -27777.13551 | Y44: ='JHS-21'!BB24 -> -56310.82441 | Z44: ='JHS-21'!BH15 -> 5169110.08 | AA44: ='JHS-21'!BL15 -> 309198.4228 | AH44: =+'JHS-21'!CR24 -> 142046 | AL44: -67661690 | AM44: 125594216.6 | AN44: 193255906.6 | AO44: -67661690 | AP44: 125594216.6 | AQ44: =+'JHS-22'!C22*'JHS-22'!M15 -> 4858029.727 | AR44: 130452246.3
A45: 30 | B45: INCOME TAXES | C45: 16263334 | D45: ='JHS-20'!E39 -> 60201527.96 | E45: ='JHS-20'!J37 -> -17485360 | F45: ='JHS-20'!O32 -> -391282 | G45: ='JHS-20'!T20 -> -55504.03395 | H45: ='JHS-20'!Y25 -> 96424 | J45: ='JHS-20'!AJ58 -> 726661.5118 | K45: ='JHS-20'!AO30+'JHS-20'!AO31 -> 7247900 | L45: ='JHS-20'!AT31 -> -2480823 | M45: ='JHS-20'!AY61 -> 1983324.138 | N45: ='JHS-20'!BD68 -> 1431566.86 | O45: ='JHS-20'!BI20 -> -2031191.453 | P45: ='JHS-21'!G52 -> 6984616 | Q45: ='JHS-21'!L58 -> 728039 | R45: ='JHS-21'!Q43 -> -165008.8548 | S45: ='JHS-21'!U30 -> -81996936.2 | T45: ='JHS-21'!Y22 -> -53097696.64 | U45: =+'JHS-21'!AD29 -> -2320167 | V45: ='JHS-21'!AI23 -> 370705.314 | W45: ='JHS-21'!AN18 -> -390718 | X45: ='JHS-21'!AW27 -> 882097 | Y45: ='JHS-21'!BB29 -> 259656 | Z45: ='JHS-21'!BH17 -> -1809189 | AA45: ='JHS-21'!BL23 -> -108219 | AB45: ='JHS-21'!BQ17 -> 18083.57196 | AD45: ='JHS-21'!BY30 -> 23913.75 | AE45: ='JHS-21'!CC29 -> -553708.6858 | AF45: ='JHS-21'!CH19 -> -67026.34143 | AG45: ='JHS-21'!CM17 -> -646145.1697 | AH45: =+'JHS-21'!CR28 -> -814600.5 | AI45: ='JHS-21'!CW39 -> -45028 | AJ45: ='JHS-21'!DB22 -> -6071 | AL45: -83510159.76 | AM45: -67246825.76 | AN45: 16263334 | AO45: -83510159.76 | AP45: -67246825.76 | AQ45: =+'JHS-22'!C22*'JHS-22'!M20 -> 42112961.72 | AR45: -25133864.04
A46: 31 | B46: DEFERRED INCOME TAXES | C46: -32436237.48 | I46: ='JHS-20'!AD19 -> 58433583.91 | S46: ='JHS-21'!U31 -> 142468486.9 | AL46: 200902070.8 | AM46: 168465833.3 | AN46: -32436237.48 | AO46: 200902070.8 | AP46: 168465833.3 | AR46: 168465833.3
A47: 32 | B47: TOTAL OPERATING REV. DEDUCT. | C47: =SUM(C30:C46) -> 2157226080 | D47: -253235159.6 | E47: 37275750.46 | F47: 726665.3242 | G47: 103078.9202 | H47: -179072.66 | I47: -108519513 | J47: =SUM(J30:J46) -> -1349514.236 | K47: -30284100 | L47: 4607242.589 | M47: -3683316.256 | N47: -2330021.15 | O47: =SUM(O30:O46) -> 3772212.699 | P47: 7924997 | Q47: -6790156.66 | R47: -110960640.5 | S47: 60471550.68 | T47: -53097696.64 | U47: 4308880.558 | V47: -688452.726 | W47: 725617.9198 | X47: -1638181 | Y47: -482219.6365 | Z47: 3359921.08 | AA47: 200979.4228 | AB47: -33583.77649 | AC47: =SUM(AC30:AC46) -> 47149 | AD47: -44411.25 | AE47: 1028316.131 | AF47: 124477.4912 | AG47: 1199983.887 | AH47: 1512829.5 | AI47: 83623.67319 | AJ47: 11276 | AK47: =SUM(AK30:AK46) -> 0 | AL47: -445831486.8 | AM47: =SUM(AM30:AM46) -> 1711394593 | AN47: 2157226080 | AO47: -445831486.8 | AP47: 1711394593 | AQ47: 47782888.95 | AR47: 1759177482
A48: 33
A49: 34 | B49: NET OPERATING INCOME | C49: =C21-C47 -> 117427311.3 | D49: 111802837.6 | E49: -37275750.46 | F49: -726665.3242 | G49: -103078.9202 | H49: 179072.66 | I49: 108519513 | J49: 1349514.236 | K49: 30284100 | L49: -4607242.589 | M49: 3683316.256 | N49: =N21-N47 -> 2330021.15 | O49: =O21-O47 -> -3772212.699 | P49: 12971429.04 | Q49: 1352072.572 | R49: -306445.0161 | S49: -60471550.68 | T49: 53097696.64 | U49: -4308880.558 | V49: 688452.726 | W49: -725617.9198 | X49: 1638181 | Y49: 482219.6365 | Z49: -3359921.08 | AA49: -200979.4228 | AB49: 33583.77649 | AC49: =AC21-AC47 -> -47149 | AD49: 44411.25 | AE49: -1028316.131 | AF49: -124477.4912 | AG49: -1199983.887 | AH49: -1512829.5 | AI49: -83623.67319 | AJ49: -11276 | AK49: =AK21-AK47 -> 0 | AL49: =AL21-AL47 -> 208590421.2 | AM49: 326017732.5 | AN49: 117427311.3 | AO49: 208590421.2 | AP49: 326017732.5 | AQ49: 78209894.05 | AR49: 404227626.6
A50: 35
A51: 36 | B51: RATE BASE | C51: =C62 -> 4100870913 | D51: 0 | E51: ='JHS-20'!J19 -> 664324545.6 | F51: ='JHS-20'!O24 -> 110846093.2 | G51: 0 | H51: ='JHS-20'!Y18 -> -3370636 | I51: 0 | J51: 0 | K51: ='JHS-20'!AO17 -> -56496129.25 | L51: ='JHS-20'!AT18+'JHS-20'!AT21 -> 135630302.2 | M51: ='JHS-20'!AY34 -> -19546417.71 | N51: ='JHS-20'!BC105+'JHS-20'!BC86 -> -49954915 | O51: ='JHS-20'!BI28 -> 13105765.45 | P51: 0 | Q51: 0 | R51: 0 | S51: 0 | T51: 0 | U51: 0 | V51: ='JHS-21'!AI16 -> -233768.7201 | W51: 0 | X51: 0 | Y51: 0 | Z51: 0 | AA51: 0 | AB51: ='JHS-21'!BT20 -> 0 | AC51: ='JHS-21'!BU20 -> 0 | AD51: 0 | AE51: 0 | AF51: 0 | AG51: 0 | AH51: 0 | AI51: 0 | AJ51: 0 | AK51: =AK62 -> -1378827.912 | AL51: =SUM(D51:AK51) -> 792926011.8 | AM51: =ROUND(AL51+C51,0) -> 4893796925 | AN51: =C51 -> 4100870913 | AO51: =AL51 -> 792926011.8 | AP51: =AM51 -> 4893796925 | AQ51: 0 | AR51: =SUM(AP51:AQ51) -> 4893796925
A52: 37
A53: 38 | B53: RATE OF RETURN | C53: =C49/C51 -> 0.02863472511 | AM53: =AM49/AM51 -> 0.06661856581 | AN53: =AN49/AN51 -> 0.02863472511 | AP53: =AP49/AP51 -> 0.06661856581 | AR53: =AR49/AR51 -> 0.08260000012
A54: 39
A55: 40 | B55: RATE BASE:
A56: 41 | B56: GROSS UTILITY PLANT IN SERVICE | C56: 7157671291 | D56: 0 | E56: ='JHS-20'!J15 -> 765510819 | F56: 0 | G56: 0 | H56: ='JHS-20'!Y15 -> -4357020 | I56: 0 | J56: 0 | K56: 0 | L56: 0 | N56: =N51-N59-N58-N57 -> -75063831 | P56: 0 | Q56: 0 | R56: 0 | S56: 0 | T56: 0 | U56: =U51-U57 -> 0 | V56: ='JHS-21'!AI14 -> -359644.1848 | W56: 0 | X56: 0 | Y56: 0 | Z56: 0 | AA56: 0 | AB56: 0 | AC56: 0 | AD56: 0 | AE56: =+AE51 -> 0 | AF56: 0 | AG56: 0 | AH56: 0 | AI56: 0 | AJ56: 0 | AL56: =SUM(D56:AK56) -> 685730323.8 | AM56: =ROUND(+AL56+C56,0) -> 7843401615 | AN56: =C56 -> 7157671291 | AO56: =+AL56 -> 685730323.8 | AP56: =+AO56+AN56 -> 7843401615
A57: 42 | B57: ACCUM DEPR AND AMORT | C57: -2758182029 | E57: ='JHS-20'!J16 -> -23434694.84 | H57: ='JHS-20'!Y16 -> 462883 | N57: ='JHS-20'!BC73+'JHS-20'!BC75 -> 25182689 | V57: ='JHS-21'!AI15 -> 125875.4647 | AL57: 2336752.629 | AM57: =ROUND(+AL57+C57,0) -> -2755845277 | AN57: -2758182029 | AO57: 2336752.629 | AP57: -2755845277
A58: 43 | B58: DEFERRED DEBITS AND CREDITS | C58: 241208023 | F58: ='JHS-20'!O14+'JHS-20'!O19+'JHS-20'!O15+'JHS-20'!O20 -> 116822816.9 | K58: ='JHS-20'!AO14 -> -59395254 | L58: ='JHS-20'!AT14+'JHS-20'!AT21+'JHS-20'!AT15 -> 153173246.2 | M58: =M51 -> -19546417.71 | N58: ='JHS-20'!BC105+'JHS-20'!BC76+'JHS-20'!BC77 -> -6776068 | O58: =SUM('JHS-20'!BI25:BI26) -> 20162716.08 | AL58: 204441039.5 | AM58: =ROUND(+AL58+C58,0) -> 445649062 | AN58: 241208023 | AO58: 204441039.5 | AP58: 445649062.5
A59: 44 | B59: DEFERRED TAXES | C59: -656658556.7 | E59: ='JHS-20'!J17 -> -77751578.56 | F59: ='JHS-20'!O21 -> -5976723.717 | H59: ='JHS-20'!Y17 -> 523501 | K59: ='JHS-20'!AO15 -> 2899124.75 | L59: ='JHS-20'!AT16 -> -17542944.03 | M59: 0 | N59: ='JHS-20'!BC84 -> 6702295 | O59: ='JHS-20'!BI27 -> -7056950.626 | AL59: -98203276.18 | AM59: =ROUND(+AL59+C59,0) -> -754861833 | AN59: -656658556.7 | AO59: -98203276.18 | AP59: -754861832.9
A60: =A59+1 -> 45 | B60: ALLOWANCE FOR WORKING CAPITAL | C60: 204952589 | AB60: ='JHS-21'!BT20 -> 0 | AC60: ='JHS-21'!BU20 -> 0 | AK60: ='JHS-21'!DG14 -> -1378827.912 | AL60: -1378827.912 | AM60: =ROUND(+AL60+C60,0) -> 203573761 | AN60: 204952589 | AO60: -1378827.912 | AP60: 203573761.1
A61: 46 | B61: OTHER | C61: -88120403.86 | AL61: 0 | AM61: =ROUND(+AL61+C61,0)+1 -> -88120403 | AN61: -88120403.86 | AO61: 0 | AP61: -88120403.86
A62: 47 | B62: TOTAL RATE BASE | C62: =SUM(C56:C61) -> 4100870913 | D62: 0 | E62: 664324545.6 | F62: 110846093.2 | G62: 0 | H62: -3370636 | I62: 0 | J62: 0 | K62: -56496129.25 | L62: 135630302.2 | M62: -19546417.71 | N62: -49954915 | O62: =SUM(O56:O61) -> 13105765.45 | P62: 0 | Q62: 0 | R62: 0 | S62: =SUM(S56:S61) -> 0 | T62: 0 | U62: 0 | V62: -233768.7201 | W62: 0 | X62: 0 | Y62: 0 | Z62: 0 | AA62: 0 | AB62: 0 | AC62: =SUM(AC56:AC61) -> 0 | AD62: 0 | AE62: 0 | AF62: 0 | AG62: 0 | AH62: 0 | AI62: 0 | AJ62: 0 | AK62: -1378827.912 | AL62: =SUM(AL56:AL61) -> 792926011.8 | AM62: =ROUND(SUM(AM56:AM61),0) -> 4893796925 | AN62: =SUM(AN56:AN61) -> 4100870913 | AO62: =SUM(AO56:AO61) -> 792926011.8 | AP62: =SUM(AP56:AP61) -> 4893796925

Sheet JHS-20
A1: =SUM(B1:EM1) -> 0 | E1: =ROUND(E40-'JHS-19'!D49,0) -> 0 | I1: =ROUND('JHS-19'!E62-J19,0) -> 0 | J1: =ROUND(J38-'JHS-19'!E49,0) -> 0 | N1: =O24-'JHS-19'!F62 -> 0 | O1: =O33-'JHS-19'!F49 -> 0 | T1: =ROUND(T21-'JHS-19'!G49,0) -> 0 | AD1: =ROUND(AD21-'JHS-19'!I49,0) -> 0 | AJ1: =ROUND(AJ60-'JHS-19'!J49,0) -> 0 | AS1: =AT25-'JHS-19'!L51 -> 0 | AT1: =AT32-'JHS-19'!L49 -> 0 | AX1: =ROUND(AY34-'JHS-19'!M62,0) -> 0 | AY1: =ROUND(AY63-'JHS-19'!M49,0) -> 0 | BC1: =ROUND(BC107-'JHS-19'!N62,0) -> 0 | BD1: =ROUND(BD69-'JHS-19'!N49,0) -> 0 | BH1: =BI28-'JHS-19'!O51 -> 0 | BI1: =BI22-'JHS-19'!O49 -> 0
E2: =DocketNumber -> Docket Number UE-111048 | J2: =DocketNumber -> Docket Number UE-111048 | O2: =DocketNumber -> Docket Number UE-111048 | T2: =DocketNumber -> Docket Number UE-111048 | Y2: =DocketNumber -> Docket Number UE-111048 | AD2: =DocketNumber -> Docket Number UE-111048 | AJ2: =DocketNumber -> Docket Number UE-111048 | AO2: =DocketNumber -> Docket Number UE-111048 | AT2: =DocketNumber -> Docket Number UE-111048 | AY2: =DocketNumber -> Docket Number UE-111048 | BD2: =DocketNumber -> Docket Number UE-111048 | BI2: =DocketNumber -> Docket Number UE-111048
E3: Exhibit No. (JHS-20) | J3: =Exhibit_No._____JHS_20 -> Exhibit No. (JHS-20) | O3: =Exhibit_No._____JHS_20 -> Exhibit No. (JHS-20) | T3: =Exhibit_No._____JHS_20 -> Exhibit No. (JHS-20) | Y3: =Exhibit_No._____JHS_20 -> Exhibit No. (JHS-20) | AD3: =Exhibit_No._____JHS_20 -> Exhibit No. (JHS-20) | AJ3: =Exhibit_No._____JHS_20 -> Exhibit No. (JHS-20) | AO3: =Exhibit_No._____JHS_20 -> Exhibit No. (JHS-20) | AT3: =Exhibit_No._____JHS_20 -> Exhibit No. (JHS-20) | AY3: =Exhibit_No._____JHS_20 -> Exhibit No. (JHS-20) | BD3: =Exhibit_No._____JHS_20 -> Exhibit No. (JHS-20) | BI3: =Exhibit_No._____JHS_20 -> Exhibit No. (JHS-20)
E4: 20.01 | J4: =E4+0.01 -> 20.02 | O4: =J4+0.01 -> 20.03 | T4: =O4+0.01 -> 20.04 | Y4: =T4+0.01 -> 20.05 | AD4: =Y4+0.01 -> 20.06 | AJ4: =AD4+0.01 -> 20.07 | AO4: =AJ4+0.01 -> 20.08 | AT4: =AO4+0.01 -> 20.09 | AY4: =AT4+0.01 -> 20.1 | BD4: =AY4+0.01 -> 20.11 | BF4: ( NEW ) | BI4: =BD4+0.01 -> 20.12
A5: PUGET SOUND ENERGY-ELECTRIC | F5: PUGET SOUND ENERGY-ELECTRIC | K5: PUGET SOUND ENERGY-ELECTRIC | P5: PUGET SOUND ENERGY-ELECTRIC | U5: PUGET SOUND ENERGY-ELECTRIC | Z5: PUGET SOUND ENERGY-ELECTRIC | AE5: PUGET SOUND ENERGY-ELECTRIC | AK5: PUGET SOUND ENERGY-ELECTRIC | AP5: PUGET SOUND ENERGY-ELECTRIC | AU5: PUGET SOUND ENERGY-ELECTRIC | AZ5: PUGET SOUND ENERGY-ELECTRIC | BE5: PUGET SOUND ENERGY-ELECTRIC
A6: POWER COSTS | F6: LOWER SNAKE RIVER PROJECT | K6: LOWER SNAKE RIVER PREPAID TRANSMISSION DEPOSITS | P6: MONTANA ELECTRIC ENERGY TAX | U6: WILD HORSE SOLAR | Z6: ACCOUNTING STANDARDS CODIFICATION 815 (FORMERLY SFAS 133) | AE6: STORM DAMAGE | AK6: REMOVE COSTS ASSOCIATED WITH TENASKA REGULATORY ASSET | AP6: CONTRACT PAYMENTS TO CHELAN PUD | AU6: REGULATORY ASSETS AND LIABILITIES | AZ6: PRODUCTION ADJUSTMENT | BE6: AMORTIZATION OF LOWER SNAKE RIVER
A7: =TESTYEAR -> FOR THE TWELVE MONTHS ENDED DECEMBER 31, 2010 | F7: FOR THE TWELVE MONTHS ENDED DECEMBER 31, 2010 | K7: FOR THE TWELVE MONTHS ENDED DECEMBER 31, 2010 | P7: =TESTYEAR -> FOR THE TWELVE MONTHS ENDED DECEMBER 31, 2010 | U7: =TESTYEAR -> FOR THE TWELVE MONTHS ENDED DECEMBER 31, 2010 | Z7: =TESTYEAR -> FOR THE TWELVE MONTHS ENDED DECEMBER 31, 2010 | AE7: =TESTYEAR -> FOR THE TWELVE MONTHS ENDED DECEMBER 31, 2010 | AK7: =TESTYEAR -> FOR THE TWELVE MONTHS ENDED DECEMBER 31, 2010 | AP7: =TESTYEAR -> FOR THE TWELVE MONTHS ENDED DECEMBER 31, 2010 | AU7: FOR THE TWELVE MONTHS ENDED DECEMBER 31, 2010 | AZ7: =TESTYEAR -> FOR THE TWELVE MONTHS ENDED DECEMBER 31, 2010 | BE7: =TESTYEAR -> FOR THE TWELVE MONTHS ENDED DECEMBER 31, 2010
A8: GENERAL RATE INCREASE | F8: GENERAL RATE INCREASE | K8: GENERAL RATE INCREASE | P8: GENERAL RATE INCREASE | U8: GENERAL RATE INCREASE | Z8: GENERAL RATE INCREASE | AE8: GENERAL RATE INCREASE | AK8: GENERAL RATE INCREASE | AP8: GENERAL RATE INCREASE | AU8: GENERAL RATE INCREASE | AZ8: GENERAL RATE INCREASE | BE8: GENERAL RATE INCREASE
D9: REVISED | E9: REVISED | I9: REVISED | J9: REVISED | N9: REVISED | O9: REVISED | S9: REVISED | T9: REVISED | BB9: REVISED | BC9: REVISED | BD9: REVISED
A10: LINE | E10: INCREASE | F10: LINE | K10: LINE | P10: LINE | U10: LINE | Z10: LINE | AE10: LINE | AK10: LINE | AN10: ADJUSTED | AP10: LINE | AS10: ADJUSTED | AU10: LINE | AW10: TEST | AZ10: LINE | BB10: PROFORMA | BC10: PRODUCTION | BD10: FIT | BE10: LINE | BH10: NEW | BI10: NEW
A11: NO. | B11: DESCRIPTION | C11: ACTUAL | D11: PROFORMA | E11: (DECREASE) | F11: NO. | G11: DESCRIPTION | H11: TEST YEAR | I11: PROFORMA | J11: ADJUSTMENT | K11: NO. | L11: DESCRIPTION | M11: TEST YEAR | N11: PROFORMA | O11: ADJUSTMENT | P11: NO. | Q11: DESCRIPTION | T11: AMOUNT | U11: NO. | V11: DESCRIPTION | W11: ACTUAL | X11: PROFORMA | Y11: ADJUSTMENT | Z11: NO. | AB11: ACTUAL | AC11: RESTATED | AD11: ADJUSTMENT | AE11: NO. | AF11: DESCRIPTION | AJ11: AMOUNT | AK11: NO. | AL11: DESCRIPTION | AM11: TEST YEAR | AN11: TEST YEAR | AO11: ADJUSTMENT | AP11: NO. | AQ11: DESCRIPTION | AR11: TEST YEAR | AS11: RATE YEAR | AT11: ADJUSTMENT | AU11: NO. | AV11: DESCRIPTION | AW11: YEAR | AX11: RATE YEAR | AY11: ADJUSTMENT | AZ11: NO. | BA11: DESCRIPTION | BB11: AND RESTATED | BC11: ='Production Factor'!F21 -> 0.02099 | BD11: =FIT -> 0.35 | BE11: NO. | BF11: DESCRIPTION | BG11: TEST YEAR | BH11: RATE YEAR | BI11: ADJUSTMENT
A13: 1 | B13: SALES FOR RESALE | C13: ='JHS-19'!C19 -> 201262557 | D13: =-'JHS-20.01(A)'!N33 -> 22406698.31 | E13: =D13-C13 -> -178855858.7 | F13: 1 | G13: LOWER SNAKE RIVER RATEBASE (AMA) | K13: 1 | L13: PRINCIPAL PORTION OF LSR PREPAID TRANSMISSION (AMA) | P13: =P12+1 -> 1 | Q13: PROFORMA KWH (COLSTRIP) | S13: 4859077669 | U13: 1 | Z13: 1 | AA13: ASC 815 OPERATING EXPENSE | AB13: ='JHS-19'!C43 -> 166953096.9 | AC13: 0 | AD13: =AC13-AB13 -> -166953096.9 | AE13: 1 | AF13: NORMAL STORMS | AH13: Transmission | AI13: Distribution | AJ13: Total | AK13: 1 | AL13: RATEBASE | AP13: 1 | AQ13: INITIATION PAYMENT AMA (UE-060539) | AU13: 1 | AV13: AMA OF REGULATORY ASSET/LIABILITY NET OF ACCUM AMORT AND DFIT | AZ13: 1 | BA13: O&M ON PRODUCTION PROPERTY | BE13: 1 | BF13: OPERATING EXPENSE FIXED COSTS
A14: =A13+1 -> 2 | F14: =F13+1 -> 2 | G14: UTILITY PLANT RATEBASE | K14: =K13+1 -> 2 | L14: TOTAL PREPAID DEPOSIT | N14: 99800000 | O14: =+N14-M14 -> 99800000 | P14: 2 | Q14: TAX RATE | S14: 0.00035 | U14: =U13+1 -> 2 | V14: RATEBASE (AMA) UTILITY PLANT RATEBASE | Z14: =Z13+1 -> 2 | AE14: =AE13+1 -> 2 | AF14: ACTUAL O&M: | AK14: =AK13+1 -> 2 | AL14: REGULATORY ASSET | AM14: 59395254 | AN14: 0 | AO14: =AN14-AM14 -> -59395254 | AP14: =AP13+1 -> 2 | AQ14: INITIATION PAYMENT BALANCE | AR14: 0 | AS14: 141761311.8 | AT14: =+AS14-AR14 -> 141761311.8 | AU14: =AU13+1 -> 2 | AV14: BEP | AW14: 16250380.34 | AX14: 11214773.01 | AY14: =+AX14-AW14 -> -5035607.333 | AZ14: =AZ13+1 -> 2 | BA14: PRODUCTION WAGE ADJUSTMENTS AND INCENTIVE: | BE14: =BE13+1 -> 2 | BF14: AMORTIZATION OF FIXED COST DEFERRAL | BG14: 0 | BH14: 5803404.153 | BI14: =BH14-BG14 -> 5803404.153
A15: 3 | B15: PURCHASES/SALES OF NON-CORE GAS | C15: -36748461.42 | D15: =-'JHS-20.01(A)'!N34 -> 0 | E15: =D15-C15 -> 36748461.42 | F15: 3 | G15: PLANT BALANCE | H15: 42218.9275 | I15: 765553037.9 | J15: =+I15-H15 -> 765510819 | K15: 3 | L15: ACCUM AMORT. CREDIT PYMT FR. BPA | N15: -53536.54338 | O15: =+N15-M15 -> -53536.54338 | P15: 3 | U15: 3 | V15: PLANT BALANCE | W15: 4357020 | Y15: =+X15-W15 -> -4357020 | Z15: 3 | AA15: INCREASE (DECREASE) IN EXPENSE | AB15: =SUM(AB13:AB14) -> 166953096.9 | AC15: =SUM(AC13:AC14) -> 0 | AD15: =SUM(AD13:AD14) -> -166953096.9 | AE15: 3 | AF15: TWELVE MONTHS ENDED 12/31/05 | AH15: 122467.67 | AI15: 3449455.51 | AJ15: =SUM(AH15+AI15) -> 3571923.18 | AK15: 3 | AL15: DEFERRED FIT | AM15: -2899124.75 | AN15: 0 | AO15: =AN15-AM15 -> 2899124.75 | AP15: 3 | AQ15: ACCUMULATED AMORTIZATION | AR15: 0 | AS15: -7088065.589 | AT15: =+AS15-AR15 -> -7088065.589 | AU15: =+AU14+1 -> 3 | AV15: WHITE RIVER PLANT COSTS | AW15: 37566967.74 | AX15: 34565277.37 | AY15: -3001690.363 | AZ15: 3 | BA15: PURCHASED POWER | BB15: ='JHS-21'!CR14+'JHS-21'!BB14 -> 79703.05096 | BC15: =+BB15*-$BC$11 -> -1672.96704 | BD15: =ROUND(+BC15*-$BD$11,0) -> 586 | BE15: 3 | BF15: DEFERRAL OF LOWER SNAKE RIVER FIXED COSTS | BG15: 0 | BH15: 0 | BI15: =BH15-BG15 -> 0
A16: 4 | B16: WHEELING FOR OTHERS | C16: =-TransmRev!C41-C45 -> 10703022.63 | D16: =-'JHS-20.01(A)'!N38 -> 11378097.94 | E16: =D16-C16 -> 675075.3061 | F16: 4 | G16: ACCUM DEPRECIATION | H16: 0 | I16: -23434694.84 | J16: =+I16-H16 -> -23434694.84 | K16: 4 | L16: NET LSR PREPAID TRANS. RATEBASE | M16: =SUM(M14:M15) -> 0 | N16: =SUM(N14:N15) -> 99746463.46 | O16: =+N16-M16 -> 99746463.46 | P16: 4 | Q16: PROFORMA ENERGY TAX | T16: =S13*S14 -> 1700677.184 | U16: 4 | V16: ACCUM DEPRECIATION | W16: -462883 | Y16: =+X16-W16 -> 462883 | Z16: 4 | AE16: 4 | AF16: TWELVE MONTHS ENDED 12/31/06 | AH16: 450747.92 | AI16: 10435721.23 | AJ16: 10886469.15 | AK16: 4 | AP16: 4 | AQ16: DEFERRED INCOME TAX | AR16: 0 | AS16: -17542944.03 | AT16: =+AS16-AR16 -> -17542944.03 | AU16: 4 | AV16: WHITE RIVER RELICENSING & CWIP | AW16: 24579163.59 | AX16: 24941806.74 | AY16: 362643.1542 | AZ16: 4 | BA16: OTHER POWER SUPPLY | BB16: ='JHS-21'!CR15+'JHS-21'!BB15+'JHS-21'!AD17 -> 243956.3542 | BC16: =+BB16*-$BC$11 -> -5120.643874 | BD16: =ROUND(+BC16*-$BD$11,0) -> 1792 | BE16: 4 | BF16: TOTAL AMORTIZATION LSR PROJECT | BG16: =BG14+BG15 -> 0 | BH16: =BH14+BH15 -> 5803404.153 | BI16: =BI14+BI15 -> 5803404.153
A17: 5 | C17: =SUM(C15:C16) -> -26045438.79 | D17: =SUM(D15:D16) -> 11378097.94 | E17: =SUM(E15:E16) -> 37423536.73 | F17: 5 | G17: DEFERRED INCOME TAX LIABILITY | H17: 0 | I17: -77751578.56 | J17: =+I17-H17 -> -77751578.56 | K17: 5 | P17: 5 | Q17: CHARGED TO EXPENSE | T17: 1542094.23 | U17: 5 | V17: DEFERRED INCOME TAX LIABILITY | W17: -523501 | Y17: =+X17-W17 -> 523501 | Z17: 5 | AA17: INCREASE(DECREASE) OPERATING INCOME | AD17: =-AD15 -> 166953096.9 | AE17: 5 | AF17: TWELVE MONTHS ENDED 12/31/07 | AH17: 376352.92 | AI17: 8672798.45 | AJ17: 9049151.37 | AK17: 5 | AL17: NET RATEBASE | AM17: =SUM(AM14:AM16) -> 56496129.25 | AN17: 0 | AO17: =AN17-AM17 -> -56496129.25 | AP17: 5 | AU17: 5 | AV17: PROCEEDS FROM THE SALE OF WHITE RIVER ASSETS TO CWA | AW17: -25951720.43 | AX17: -29911730 | AY17: -3960009.568 | AZ17: 5 | BA17: TOTAL WAGE RELATED ADJUSTMENTS | BB17: =SUM(BB14:BB16) -> 323659.4051 | BC17: =SUM(BC14:BC16) -> -6793.610913 | BD17: =SUM(BD14:BD16) -> 2378 | BE17: 5
A18: 6 | F18: 6 | K18: 6 | L18: DEFERRED CARRYING CHARGES (AMA) | P18: 6 | Q18: INCREASE (DECREASE) EXPENSE | T18: =T16-T17 -> 158582.9541 | U18: 6 | V18: NET WILD HORSE SOLAR PLANT RATEBASE | W18: =SUM(W15:W17) -> 3370636 | X18: =SUM(X15:X17) -> 0 | Y18: =SUM(Y15:Y17) -> -3370636 | Z18: 6 | AE18: 6 | AF18: TWELVE MONTHS ENDED 12/31/08 | AH18: 77335.22 | AI18: 9881617.66 | AJ18: 9958952.88 | AK18: 6 | AP18: 6 | AQ18: NET INITIATION PAYMENT RATEBASE AMA | AR18: =SUM(AR14:AR16) -> 0 | AS18: =SUM(AS14:AS16) -> 117130302.2 | AT18: =SUM(AT14:AT16) -> 117130302.2 | AU18: 6 | AV18: DFIT - WHITE RIVER REG ASSET | AW18: -11889662.08 | AX18: -10331527.55 | AY18: 1558134.533 | AZ18: 6 | BE18: 6 | BF18: INCREASE (DECREASE) OPERATING EXPENSES | BI18: =BI16 -> 5803404.153
A19: 7 | B19: TOTAL OPERATING REVENUES | C19: =SUM(C13:C16) -> 175217118.2 | D19: =SUM(D13:D16) -> 33784796.25 | E19: =SUM(E13:E16) -> -141432322 | F19: 7 | G19: NET LSR EXPANSION PLANT RATEBASE | H19: =SUM(H15:H18) -> 42218.9275 | I19: =SUM(I15:I18) -> 664366764.5 | J19: =SUM(J15:J18) -> 664324545.6 | K19: 7 | L19: CARRYING CHARGES BALANCE | N19: 17425225.85 | O19: =+N19-M19 -> 17425225.85 | P19: 7 | U19: 7 | Z19: 7 | AA19: INCREASE (DECREASE) DEFERRED FIT @ | AB19: 0.35 | AD19: =AD17*AB19 -> 58433583.91 | AE19: 7 | AF19: TWELVE MONTHS ENDED 12/31/09 | AH19: 41126.25 | AI19: 4617466.24 | AJ19: 4658592.49 | AK19: 7 | AL19: AMORTIZATION (NOTE 1) AND DISALLOWANCES | AP19: 7 | AU19: 7 | AV19: HOPKINS RIDGE PREPAID TRANSMISSION | AW19: 1394050.16 | AX19: 0 | AY19: -1394050.16 | AZ19: 7 | BA19: ADMIN & GENERAL EXPENSES | BE19: 7
A20: 8 | F20: 8 | K20: 8 | L20: ACCUM AMORT. CARRYING CHARGES | N20: -348872.3695 | O20: =+N20-M20 -> -348872.3695 | P20: 8 | Q20: INCREASE (DECREASE) FIT @ | R20: 0.35 | T20: =-T18*R20 -> -55504.03395 | U20: 8 | V20: OPERATING EXPENSE | Z20: 8 | AE20: 8 | AF20: TWELVE MONTHS ENDED 12/31/10 | AH20: 152546.21 | AI20: 9338772.91 | AJ20: 9491319.12 | AK20: 8 | AL20: AMORTIZATION OF PURCHASE PRICE: | AO20: =+AN20-AM20 -> 0 | AP20: 8 | AQ20: SECURITY DEPOSIT AMA | AU20: 8 | AV20: GOLDENDALE FIXED COSTS DEFERRAL | AW20: 3605729.392 | AX20: 0 | AY20: -3605729.392 | AZ20: 8 | BA20: PAYROLL OVERHEADS | BB20: =+'Production Adjustment'!F22 -> 5009923.67 | BC20: =+BB20*-$BC$11 -> -105158.2978 | BD20: =ROUND(+BC20*-$BD$11,0) -> 36805 | BE20: 8 | BF20: INCREASE (DECREASE) FIT 35% | BI20: =-BI18*0.35 -> -2031191.453
A21: 9 | B21: FUEL | C21: ='JHS-19'!C26-AW43-AW44-AW47 -> 269007822.1 | D21: ='JHS-20.01(A)'!N20 -> 249839544 | E21: =D21-C21 -> -19168278.1 | F21: 9 | G21: LOWER SNAKE RIVER OPERATING EXPENSE | K21: 9 | L21: DEFERRED INCOME TAX | N21: -5976723.717 | O21: =+N21-M21 -> -5976723.717 | P21: 9 | Q21: INCREASE (DECREASE) NOI | T21: =-T18-T20 -> -103078.9202 | U21: 9 | V21: DEPRECIATION EXPENSE | W21: 275496.66 | Y21: =+X21-W21 -> -275496.66 | Z21: 9 | AA21: INCREASE (DECREASE) NOI | AD21: =+AD17-AD19 -> 108519513 | AE21: 9 | AF21: TOTAL NORMAL STORMS | AH21: =SUM(AH15:AH20) -> 1220576.19 | AI21: =SUM(AI15:AI20) -> 46395832 | AJ21: =SUM(AJ15:AJ20) -> 47616408.19 | AK21: 9 | AL21: ="TAXABLE - SEE LINE "&AK30&" FOR TAX (LINE "&AK30&" ÷ 35%)" -> TAXABLE - SEE LINE 18 FOR TAX (LINE 18 ÷ 35%) | AM21: =AO30/0.35 -> 14334285.71 | AN21: 0 | AO21: =AN21-AM21 -> -14334285.71 | AP21: 9 | AQ21: SECURITY DEPOSIT BALANCE | AR21: 0 | AS21: 18500000 | AT21: =+AS21-AR21 -> 18500000 | AU21: 9 | AV21: HOPKINS RIDGE MITIGATION CREDIT | AW21: -326871.4633 | AX21: 0 | AY21: 326871.4633 | AZ21: 9 | BA21: PROPERTY INSURANCE | BB21: ='Production Plant Premiums'!C19 -> 2835322 | BC21: =+BB21*-$BC$11 -> -59513.40878 | BD21: =ROUND(+BC21*-$BD$11,0) -> 20830 | BE21: 9
A22: 10 | F22: 10 | G22: TAXABLE DEPRECIATION EXPENSE | H22: 0 | I22: 27796539.28 | J22: =+I22-H22 -> 27796539.28 | K22: 10 | L22: NET LSR CARRYING CHARGES RATEBASE | M22: =SUM(M19:M21) -> 0 | N22: =SUM(N19:N21) -> 11099629.76 | O22: =SUM(O19:O21) -> 11099629.76 | U22: 10 | AE22: 10 | AK22: 10 | AL22: NON-TAXABLE | AM22: 16823714.29 | AN22: 0 | AO22: =AN22-AM22 -> -16823714.29 | AP22: 10 | AQ22: ACCUMULATED AMORTIZATION | AR22: 0 | AS22: 0 | AT22: =+AS22-AR22 -> 0 | AU22: 10 | AV22: WESTCOAST PIPELINE CAPACITY - UE-082013 (FB ENERGY) | AW22: -2135222.494 | AX22: -1529461.683 | AY22: 605760.8115 | AZ22: 10 | BA22: TOTAL ADMIN & GENERAL EXPENSES | BB22: =SUM(BB20:BB21) -> 7845245.67 | BC22: =SUM(BC20:BC21) -> -164671.7066 | BD22: =SUM(BD20:BD21) -> 57635 | BE22: 10 | BF22: INCREASE (DECREASE) NOI | BI22: =-BI20-BI18 -> -3772212.699
A23: 11 | B23: PURCHASED AND INTERCHANGED | C23: ='JHS-19'!C27-$AW$38-$AR$28-AM21-AM22-AM25-$AW$42 -> 792862060.1 | D23: ='JHS-20.01(A)'!N22+'JHS-20.01(A)'!N24 -> 479061015.8 | E23: =D23-C23 -> -313801044.2 | F23: =F22+1 -> 11 | G23: NON-TAXABLE DEPRECIATION EXPENSE | I23: 4802940.123 | J23: =+I23-H23 -> 4802940.123 | K23: 11 | U23: 11 | V23: INCREASE (DECREASE ) EXPENSE | Y23: =Y21 -> -275496.66 | AE23: 11 | AF23: SIX-YEAR AVERAGE STORM EXPENSE FOR RATE YEAR | AH23: =AH21/6 -> 203429.365 | AI23: =AI21/6 -> 7732638.667 | AJ23: =+AJ21/6 -> 7936068.032 | AK23: 11 | AL23: TOTAL AMORTIZATION OF PURCHASE PRICE | AM23: =SUM(AM21:AM22) -> 31158000 | AN23: =SUM(AN21:AN22) -> 0 | AO23: =SUM(AO21:AO22) -> -31158000 | AP23: 11 | AQ23: NET SCURITY DEPOSIT AMA | AR23: =SUM(AR21:AR22) -> 0 | AS23: =SUM(AS21:AS22) -> 18500000 | AT23: =+AS23-AR23 -> 18500000 | AU23: 11 | AV23: WESTCOAST PIPELINE CAPACITY - UE-100503 (BNP PARIBUS) | AW23: -2286406.038 | AX23: -2096742.233 | AY23: 189663.8053 | AZ23: 11 | BE23: 11
A24: 12 | B24: HEDGING | C24: 0 | D24: ='JHS-20.01(A)'!N25 -> 1420907.408 | E24: =D24-C24 -> 1420907.408 | F24: 12 | G24: TOTAL DEPRECIATION EXPENSE | H24: =SUM(H22:H23) -> 0 | I24: =SUM(I22:I23) -> 32599479.4 | J24: =SUM(J22:J23) -> 32599479.4 | K24: 12 | L24: TOTAL RATEBASE | M24: =M16+M22 -> 0 | N24: =N16+N22 -> 110846093.2 | O24: =O16+O22 -> 110846093.2 | U24: 12 | AE24: 12 | AK24: 12 | AP24: 12 | AU24: 12 | AV24: MINT FARM DEFERRAL - UE-090704 | AW24: 26616504.93 | AX24: 23180900.64 | AY24: -3435604.282 | AZ24: 12 | BA24: DEPRECIATION / AMORTIZATION: | BE24: 12 | BF24: RATE BASE
A25: 13 | F25: 13 | K25: 13 | U25: 13 | V25: INCREASE (DECREASE) FIT @ | X25: 0.35 | Y25: =ROUND(-Y23*$X$25,0) -> 96424 | AE25: 13 | AF25: CHARGED TO EXPENSE 12 MONTHS ENDED 12/31/10 | AK25: 13 | AL25: AMORTIZATION OF AFPC PORTION (NOTE 3) | AM25: 6374000 | AN25: =SUM(AN5:AN20) -> 0 | AO25: =AN25-AM25 -> -6374000 | AP25: 13 | AQ25: INCREASE RATEBASE | AR25: =AR18+AR23 -> 0 | AS25: =AS18+AS23 -> 135630302.2 | AT25: =AT18+AT23 -> 135630302.2 | AU25: 13 | AV25: WILD HORSE EXPANSION DEFERRAL - UE-090704 | AW25: 2331479.359 | AX25: 0 | AY25: -2331479.359 | AZ25: 13 | BA25: DEPRECIATION | BB25: ='Production Adjustment'!F29 -> 95508718.74 | BC25: =+BB25*-$BC$11 -> -2004728.006 | BD25: ='Production Adjustment'!G43 -> 819310.7114 | BE25: 13 | BF25: LSR PROJECT AMA GROSS - DEF | BG25: 0 | BH25: 23064418.15 | BI25: =BH25-BG25 -> 23064418.15
A26: 14 | B26: SUBTOTAL PURCHASED AND INTERCHANGED | C26: =SUM(C23:C25) -> 792862060.1 | D26: =SUM(D23:D25) -> 480481923.2 | E26: =SUM(E23:E25) -> -312380136.8 | F26: 14 | K26: 14 | L26: OPERATING EXPENSE | U26: 14 | V26: INCREASE (DECREASE) NOI | Y26: =-Y23-Y25 -> 179072.66 | AE26: 14 | AF26: STORM DAMAGE EXPENSE (LINE 8) | AH26: =AH20 -> 152546.21 | AI26: =AI20 -> 9338772.91 | AJ26: =AJ20 -> 9491319.12 | AK26: 14 | AL26: DISALLOWANCES | AN26: 0 | AO26: =AN26-AM26 -> 0 | AP26: 14 | AU26: 14 | AV26: COLSTRIP 1&2 (WECO) COAL CONTRACT PREPAYMENT | AW26: 5000000 | AX26: 3981481.481 | AY26: -1018518.519 | AZ26: 14 | BA26: AMORTIZATION (OTHER THAN REGULATORY ASSETS/LIAB) | BB26: ='Production Adjustment'!F38 -> 11264042.39 | BC26: =+BB26*-$BC$11 -> -236432.2498 | BD26: ='Production Adjustment'!G44 -> 80107.14909 | BE26: 14 | BF26: LSR PROJECT AMA ACCUMULATED AMORTIZATION | BG26: 0 | BH26: -2901702.076 | BI26: =BH26-BG26 -> -2901702.076
A27: 15 | B27: WHEELING | C27: ='JHS-19'!C28-$AW$40 -> 76487810.83 | D27: ='JHS-20.01(A)'!N28 -> 83315427.14 | E27: =D27-C27 -> 6827616.31 | F27: 15 | G27: POWER COST AND O&M RELATED TO LOWER SNAKE RIVER | K27: 15 | L27: AMORTIZATION OF PRINCIPAL (565) | M27: 0 | N27: ='LSR Power Costs'!F13 -> 420202.5852 | O27: =+N27-M27 -> 420202.5852 | AE27: 15 | AK27: 15 | AL27: SUBTOTAL NORMALIZED | AM27: =SUM(AM25:AM26) -> 6374000 | AN27: =SUM(AN25:AN26) -> 0 | AO27: =SUM(AO25:AO26) -> -6374000 | AP27: 15 | AQ27: OPERATING EXPENSE | AU27: 15 | AV27: FERC PART 12 STUDY NON-CONSTRUCTION COSTS UE-070074 | AW27: 0 | AX27: 1193197.5 | AY27: 1193197.5 | AZ27: 15 | BA27: TOTAL DEPRECIATION AND AMORTIZATION (FERC 403) | BB27: =SUM(BB25:BB26) -> 106772761.1 | BC27: =SUM(BC25:BC26) -> -2241160.256 | BD27: =SUM(BD25:BD26) -> 899417.8605 | BE27: 15 | BF27: LSR PROJECT AMA ACCUMULATED DEFERRED FIT | BG27: 0 | BH27: -7056950.626 | BI27: =BH27-BG27 -> -7056950.626
A28: 16 | E28: =D28-C28 -> 0 | F28: 16 | G28: PURCHASED POWER | I28: 776099.4993 | J28: =+I28-H28 -> 776099.4993 | K28: 16 | L28: AMORTIZATION OF CARRYING CHARGES (407.3) | M28: 0 | N28: 697744.739 | O28: =+N28-M28 -> 697744.739 | AE28: 16 | AF28: INCREASE (DECREASE) OPERATING EXPENSE | AH28: =AH23-AH26 -> 50883.155 | AI28: =AI23-AI26 -> -1606134.243 | AJ28: =AJ23-AJ26 -> -1555251.088 | AK28: 16 | AP28: 16 | AQ28: AMORTIZATION OF INITIATION PAYMENT (555) | AR28: 0 | AS28: 7088065.589 | AT28: =+AS28-AR28 -> 7088065.589 | AU28: 16 | AV28: CONTRACT MAJOR MAINTENANCE: | AY28: 0 | AZ28: 16 | BE28: 16 | BF28: TOTAL LOWER SNAKER RIVER PROJECT RATE BASE | BG28: =SUM(BG25:BG27) -> 0 | BH28: =SUM(BH25:BH27) -> 13105765.45 | BI28: =SUM(BI25:BI27) -> 13105765.45
A29: 17 | B29: TOTAL PRODUCTION EXPENSES | C29: =C21+C26+C27+C28 -> 1138357693 | D29: =D21+D26+D27+D28 -> 813636894.4 | E29: =E21+E26+E27+E28 -> -324720798.6 | F29: 17 | G29: WHEELING | I29: ='LSR Power Costs'!E13 -> 7039229.379 | J29: =+I29-H29 -> 7039229.379 | K29: 17 | AE29: 17 | AK29: 17 | AL29: INCREASE (DECREASE ) EXPENSE | AO29: =+AO27+AO23 -> -37532000 | AP29: 17 | AQ29: INCREASE (DECREASE) EXPENSE | AR29: =SUM(AR28:AR28) -> 0 | AS29: =SUM(AS28:AS28) -> 7088065.589 | AT29: =SUM(AT28:AT28) -> 7088065.589 | AU29: 17 | AV29: SUMAS NOVEMBER 2010 HOT GAS PATH INSPECTION | AW29: 82650.67375 | AX29: 82650.67375 | AY29: 0 | AZ29: 17 | BA29: TAXES OTHER-PRODUCTION PROPERTY:
A30: 18 | B30: HYDRO AND OTHER POWER | C30: ='JHS-19'!C32+'JHS-20.01(A)'!H30-SUM(AW50:AW54) -> 101194084.3 | D30: ='JHS-20.01(A)'!N30 -> 112481847.6 | E30: =D30-C30 -> 11287763.3 | F30: 18 | G30: PRODUCTION O&M | H30: 0 | I30: 10891022.51 | J30: =+I30-H30 -> 10891022.51 | K30: 18 | L30: INCREASE (DECREASE) EXPENSE | M30: =M27+M28 -> 0 | N30: =N27+N28 -> 1117947.324 | O30: =O27+O28 -> 1117947.324 | AE30: 18 | AK30: 18 | AL30: ="INCREASE (DECREASE) FIT (ON LINE "&AK21&")" -> INCREASE (DECREASE) FIT (ON LINE 9) | AO30: 5017000 | AP30: 18 | AU30: 18 | AV30: FREDDY 1 JULY 2009 HOT GAS PATH INSPECTION | AW30: 212105.57 | AX30: 212105.57 | AY30: 0 | AZ30: 18 | BA30: PROPERTY TAXES - WASHINGTON | BB30: =ROUND('Restated TY'!F18,0) -> 7396041 | BC30: =+BB30*-$BC$11 -> -155242.9006 | BD30: =ROUND(+BC30*-$BD$11,0) -> 54335
A31: 19 | B31: TRANS. EXP. INCL. 500KV O&M | C31: 1419634.77 | D31: ='JHS-20.01(A)'!N32 -> 1389836.861 | E31: =D31-C31 -> -29797.90865 | F31: 19 | G31: PROPERTY INSURANCE | H31: 0 | I31: 522423.2001 | J31: =+I31-H31 -> 522423.2001 | K31: 19 | AE31: 19 | AF31: CATASTROPHIC STORMS | AK31: 19 | AL31: ="INCREASE (DECREASE) FIT (ON LINE "&AK27&")" -> INCREASE (DECREASE) FIT (ON LINE 15) | AN31: 0.35 | AO31: =-AO27*AN31 -> 2230900 | AP31: 19 | AQ31: INCREASE (DECREASE) FIT @ | AS31: =FIT -> 0.35 | AT31: =ROUND(-AT29*AS31,0) -> -2480823 | AU31: 19 | AV31: GOLENDALE MAY 2009 COMBUSTION INSPECTION | AW31: 590967.09 | AX31: 590967.09 | AY31: 0 | AZ31: 19 | BA31: PROPERTY TAXES - MONTANA | BB31: =ROUND('Restated TY'!F31,0) -> 7977272 | BC31: =+BB31*-$BC$11 -> -167442.9393 | BD31: =ROUND(+BC31*-$BD$11,0) -> 58605
A32: 20 | F32: 20 | G32: PROPERTY TAXES | I32: 2932856.476 | J32: =+I32-H32 -> 2932856.476 | K32: 20 | L32: INCREASE (DECREASE) FIT @ | N32: =FIT -> 0.35 | O32: =ROUND(-O30*N32,0) -> -391282 | AE32: 20 | AF32: DEFERRED BALANCES FOR UE-090704 4 YEAR AMORTIZATION | AK32: 20 | AL32: INCREASE (DECREASE) NOI | AP32: 20 | AQ32: INCREASE (DECREASE) NOI | AT32: =-AT29-AT31 -> -4607242.589 | AU32: 20 | AV32: SUMAS NOVEMBER 2008 COMBUSTION INSPECTION | AW32: 62507.86667 | AX32: 62507.86667 | AY32: 0 | AZ32: 20 | BA32: ELECTRIC ENERGY TAX | BB32: =+T16 -> 1700677.184 | BC32: =+BB32*-$BC$11 -> -35697.2141 | BD32: =ROUND(+BC32*-$BD$11,0) -> 12494
A33: 21 | B33: TOTAL OPERATING EXPENSES | C33: =SUM(C29:C31) -> 1240971412 | D33: =SUM(D29:D31) -> 927508578.9 | E33: =SUM(E29:E31) -> -313462833.2 | F33: =F32+1 -> 21 | G33: TOTAL POWER COST AND PROD O&M | H33: =SUM(H28:H32) -> 0 | I33: =SUM(I28:I32) -> 22161631.06 | J33: =SUM(J28:J32) -> 22161631.06 | K33: 21 | L33: INCREASE (DECREASE) NOI | O33: =-O30-O32 -> -726665.3242 | AE33: 21 | AF33: AT START OF RATE YEAR (05/1/12): | AK33: 21 | AL33: TOTAL NET OPERATING INCOME | AO33: =-AO29-AO31-AO30 -> 30284100 | AU33: 21 | AV33: MINT FARM JUNE 2010 COMBUSTION INSPECTION | AW33: 678973.4267 | AX33: 678973.4267 | AY33: 0 | AZ33: 21 | BA33: PAYROLL TAXES | BB33: ='Production Adjustment'!F16 -> 2022345.861 | BC33: =+BB33*-$BC$11 -> -42449.03963 | BD33: =ROUND(+BC33*-$BD$11,0) -> 14857
A34: 22 | F34: 22 | AE34: 22 | AF34: 2006 STORM DAMAGE (EXCL 12/13/06 WIND STORM) | AG34: 283161.36 | AK34: 22 | AU34: 22 | AV34: TOTAL REGULATORY ASSETS AND LIABILITIES RATEBASE | AW34: =SUM(AW14:AW33) -> 76381597.62 | AX34: =SUM(AX14:AX33) -> 56835179.91 | AY34: =SUM(AY14:AY33) -> -19546417.71 | AZ34: 22 | BA34: TOTAL TAXES OTHER | BB34: =SUM(BB29:BB33) -> 19096336.05 | BC34: =SUM(BC29:BC33) -> -400832.0936 | BD34: =SUM(BD29:BD33) -> 140291
A35: 23 | B35: ="INCREASE (DECREASE) OPERATING INCOME (LINE "&A19&" - LINE "&A33&")" -> INCREASE (DECREASE) OPERATING INCOME (LINE 7 - LINE 21) | C35: =C19-C33 -> -1065754294 | D35: =D19-D33 -> -893723782.6 | E35: =E19-E33 -> 172030511.3 | F35: 23 | G35: INCREASE ( DECREASE ) EXPENSE | H35: =H22+H33 -> 0 | I35: =I24+I33 -> 54761110.46 | J35: =J24+J33 -> 54761110.46 | AE35: 23 | AF35: 2007 STORM DAMAGE | AG35: 13794354.1 | AK35: 23 | AU35: 23 | AZ35: 23
A36: 24 | F36: 24 | AE36: 24 | AF36: 2008 STORM DAMAGE | AG36: 1998778.99 | AK36: 24 | AU36: 24 | AZ36: 24 | BA36: LOWER SNAKE RIVER
A37: 25 | B37: ="STATE UTILITY TAX SAVINGS FOR LINE "&A16 -> STATE UTILITY TAX SAVINGS FOR LINE 4 | C37: ='JHS-22'!L15 -> 0.03873 | E37: =-E16*C37 -> -26145.6666 | F37: 25 | G37: INCREASE (DECREASE) FIT ON ALL EXPENSES EXCEPT LINE 11 @ | I37: =FIT -> 0.35 | J37: =ROUND((-J35+J23)*I37,0) -> -17485360 | AE37: 25 | AF37: 2008 STORM DAMAGE-PENDING APPROVAL | AG37: 86184.68 | AK37: 25 | AL37: (NOTE 1) TOTAL AMORTIZATION = $37,532,000 = $14,334,286 TAXABLE PURCHASE PRICE + | AU37: 25 | AV37: AMORTIZATION OF REGULATORY ASSET/LIABILITY | AZ37: 25
A38: 26 | B38: INCREASE (DECREASE) INCOME | E38: =E35+E37 -> 172004365.6 | F38: 26 | G38: INCREASE (DECREASE) NOI | J38: =-J35-J37 -> -37275750.46 | AE38: 26 | AF38: 2010 STORM DAMAGE-PENDING APPROVAL | AG38: 13909768.96 | AK38: 26 | AL38: $16,823,714 NON-TAXABLE PURCHASE PRICE + TAXABLE AFPC $6,374,000. | AU38: 26 | AV38: BEP (555) | AW38: 3526620 | AX38: 3526620 | AY38: =+AX38-AW38 -> 0 | AZ38: 26 | BA38: PURCHASED POWER | BB38: =I28 -> 776099.4993 | BC38: =+BB38*-$BC$11 -> -16290.32849 | BD38: =ROUND(+BC38*-$BD$11,0) -> 5702
A39: 27 | B39: INCREASE (DECREASE) FIT @ | C39: =FIT -> 0.35 | E39: =E38*FIT -> 60201527.96 | AE39: 27 | AF39: DEFERRAL BALANCES BEG OF RY (LINE 22 THROUGH LINE 26) | AG39: =SUM(AG34:AG38) -> 30072248.09 | AK39: 27 | AU39: 27 | AV39: WHITE RIVER PLANT COSTS (407) | AW39: 1494701.982 | AX39: 1494701.722 | AY39: -0.2599999905 | AZ39: 27 | BA39: WHEELING | BB39: =I29 -> 7039229.379 | BC39: -147753.4247 | BD39: 51714
A40: 28 | B40: INCREASE (DECREASE) NOI | E40: =+E38-E39 -> 111802837.6 | AE40: 28 | AK40: 28 | AL40: (NOTE 2) THE IMPACT ON THE TAX BENEFIT OF PROFORMA INTEREST IS HANDLED IN | AU40: 28 | AV40: HOPKINS RIDGE PREPAID TRANSMISSION (565) | AW40: 2076858.21 | AX40: 0 | AY40: -2076858.21 | AZ40: 28 | BA40: SALES FOR RESALE | BB40: =-'JHS-19'!E19-'JHS-19'!F19 -> 0 | BC40: 0 | BD40: 0
AE41: 29 | AF41: ANNUAL AMORTIZATION (LINE 27 ÷ 48 MONTHS) x 12 | AH41: =AG39/48*12 -> 7518062.023 | AK41: 29 | AL41: ADJUSTMENT NO. 13.05 | AU41: 29 | AV41: GOLDENDALE FIXED COSTS DEFERRAL (407.3) | AW41: 4162153.824 | AX41: 0 | AY41: -4162153.824 | AZ41: 29 | BA41: PRODUCTION O&M | BB41: =J30 -> 10891022.51 | BC41: -228602.5624 | BD41: 80011
AE42: 30 | AK42: 30 | AU42: 30 | AV42: HOPKINS RIDGE MITIGATION CREDIT (555) | AW42: -1209583.333 | AX42: 0 | AY42: 1209583.333 | AZ42: 30 | BA42: PROPERTY INSURANCE | BB42: =I31 -> 522423.2001 | BC42: -10965.66297 | BD42: 3838
AE43: 31 | AK43: 31 | AL43: (NOTE 3) AFPC STANDS FOR ALLOWANCE FOR FUNDS ON POWER CONTRACTS | AU43: 31 | AV43: WESTCOAST PIPELINE CAPACITY - UE-082013 (FB ENERGY) (547) | AW43: -457531.3044 | AX43: -392169.6667 | AY43: 65361.63778 | AZ43: 31 | BA43: PROPERTY TAX | BB43: =I32 -> 2932856.476 | BC43: -61560.65742 | BD43: 21546
AE44: 32 | AF44: DEFERRED BALANCES FOR 10 YEAR AMORTIZATION AT | AU44: 32 | AV44: WESTCOAST PIPELINE CAPACITY - UE-100503 (BNP PARIBUS) (547) | AW44: -403219.6602 | AX44: -537626.2136 | AY44: -134406.5534 | AZ44: 32 | BA44: TOTAL OPERATING EXPENSES LOWER SNAKE RIVER | BB44: =SUM(BB37:BB43) -> 22161631.06 | BC44: =SUM(BC37:BC43) -> -465172.636 | BD44: =SUM(BD37:BD43) -> 162811
AE45: 33 | AF45: START OF RATE YEAR (05/1/12): | AU45: 33 | AV45: MINT FARM DEFERAL - UE-090704 (407.3) | AW45: 2159053 | AX45: 2872181.835 | AY45: 713128.8355 | AZ45: 33
AE46: =AE45+1 -> 34 | AF46: 12/13/06 WIND STORM | AG46: 51735725 | AU46: 34 | AV46: WILD HORSE EXPANSION DEFERRAL - UE-090704 (407.3) | AW46: 2102005.908 | AX46: 0 | AY46: -2102005.908 | AZ46: 34 | BA46: AMORTIZATION ON REGULATORY ASSETS:
AE47: 35 | AF47: TOTAL (LINE 34) | AG47: =SUM(AG46) -> 51735725 | AU47: 35 | AV47: COLSTRIP 1&2 (WECO) COAL CONTRACT PREPAYMENT (501) | AW47: 0 | AX47: 555555.5556 | AY47: 555555.5556 | AZ47: 35 | BA47: BEP (555) | BB47: =AX38 -> 3526620 | BC47: =+BB47*-$BC$11 -> -74023.7538 | BD47: =ROUND(BC47*-FIT,0) -> 25908
AE48: 36 | AF48: ORIGINAL AMORT PERIOD FROM UE-072300 WAS 10 YEARS | AU48: 36 | AV48: FERC PART 12 STUDY NON-CONSTRUCTION COSTS UE-070074 (407.3) | AX48: 265155 | AY48: 265155 | AZ48: 36 | BA48: WHITE RIVER PLANT COSTS (407) | BB48: =AX39 -> 1494701.722 | BC48: -31373.78915 | BD48: 10981
AE49: 37 | AF49: FROM NOVEMBER 2008 THROUGH OCTOBER 2018 | AU49: 37 | AV49: CONTRACT MAJOR MAINTENANCE (PROD O&M): | AZ49: 37 | BA49: WHITE RIVER RELICENSING & CWIP | BC49: 0 | BD49: 0
AE50: 38 | AF50: ANNUAL AMORTIZATION (LINE 35 ÷ 78 (5/2012 - 10/2018) x 12) | AH50: =AG47/78*12 -> 7959342.308 | AU50: 38 | AV50: SUMAS NOVEMBER 2010 HOT GAS PATH INSPECTION | AW50: 61034.34348 | AX50: 61034.34348 | AY50: 0 | AZ50: 38 | BA50: HOPKINS RIDGE PREPAID TRANSMISSION (565) | BB50: =AX42 -> 0 | BC50: 0 | BD50: 0
AE51: 39 | AF51: TOTAL RATE YEAR AMORTIZATION (LINE 29 + LINE 38) | AI51: =AH41+AH50 -> 15477404.33 | AU51: 39 | AV51: FREDDY 1 JULY 2009 HOT GAS PATH INSPECTION | AW51: 223889.4913 | AX51: 223889.4913 | AY51: 0 | AZ51: 39 | BA51: GOLDENDALE FIXED COSTS DEFERRAL (407.3) | BB51: =AX41 -> 0 | BC51: 0 | BD51: 0
AE52: 40 | AF52: LESS TEST YEAR CATASTROPHIC STORM AMORTIZATION | AI52: 15998328.99 | AU52: 40 | AV52: GOLENDALE MAY 2009 COMBUSTION INSPECTION | AW52: 354580.2 | AX52: 354580.2 | AY52: 0 | AZ52: 40 | BA52: HOPKINS RIDGE MITIGATION CREDIT (555) | BB52: 0 | BC52: 0 | BD52: 0
AE53: 41 | AU53: 41 | AV53: SUMAS NOVEMBER 2008 COMBUSTION INSPECTION | AW53: 119333.2 | AX53: 119333.2 | AY53: 0 | AZ53: =AZ52+1 -> 41 | BA53: WESTCOAST PIPELINE CAPACITY - UE-082013 (FB ENERGY) (547) | BB53: -392169.6667 | BC53: 8231.641303 | BD53: -2881
AE54: 42 | AF54: INCREASE (DECREASE) OPERATING EXPENSE (LINE 38- LINE 39) | AJ54: =AI51-AI52 -> -520924.6598 | AU54: 42 | AV54: MINT FARM JUNE 2010 COMBUSTION INSPECTION | AW54: 456270.1439 | AX54: 456270.1439 | AY54: 0 | AZ54: 42 | BA54: WESTCOAST PIPELINE CAPACITY - UE-100503 (BNP PARIBUS) (547) | BB54: -537626.2136 | BC54: 11284.77422 | BD54: =ROUND(BC54*-FIT,0) -> -3950
AE55: 43 | AU55: 43 | AV55: TOTAL AMORTIZATION OF REGULATORY ASSETS AND LIABILITIES | AW55: =SUM(AW38:AW54) -> 14666166 | AX55: =SUM(AX38:AX54) -> 8999525.612 | AY55: =SUM(AY38:AY54) -> -5666640.393 | AZ55: 43 | BA55: MINT FARM DEFERRAL (407.3) | BB55: 2872181.835 | BC55: -60287.09673 | BD55: 21100
AE56: 44 | AF56: TOTAL INCREASE (DECREASE) OPERATING EXPENSE (LINE 16 + LINE 42) | AJ56: =AJ28+AJ54 -> -2076175.748 | AU56: 44 | AZ56: 44 | BA56: WILD HORSE EXPANSION DEFERRAL (407.3) | BB56: 0 | BC56: 0 | BD56: =ROUND(BC56*-FIT,0) -> 0
AE57: 45 | AU57: 45 | AZ57: 45 | BA57: COLSTRIP 1&2 (WECO) COAL CONTRACT PREPAYMENT (501) | BB57: 555555.5556 | BC57: -11661.11111 | BD57: =ROUND(BC57*-FIT,0) -> 4081
AE58: 46 | AF58: INCREASE (DECREASE) FIT @ 35% (LINE 44 X 35%) | AI58: =FIT -> 0.35 | AJ58: =-AJ56*AI58 -> 726661.5118 | AU58: 46 | AZ58: 46 | BA58: FERC PART 12 NON-CONSTRUCTION STUDY COSTS UE-070074 (407.3) | BB58: 265155 | BC58: -5565.60345 | BD58: =ROUND(BC58*-FIT,0) -> 1948
AE59: 47 | AU59: 47 | AV59: INCREASE (DECREASE) EXPENSE | AY59: =+AY55+AY57 -> -5666640.393 | AZ59: 47 | BA59: MAJOR MAINTENANCE (SUMMARIZED) (PROD O&M) | BB59: =SUM(AX50:AX54) -> 1215107.379 | BC59: -25505.10388 | BD59: 8927
AE60: 48 | AF60: INCREASE (DECREASE) NOI | AJ60: =-AJ56-AJ58 -> 1349514.236 | AU60: 48 | AZ60: 48 | BA60: CARRYING CHARGES ON LSR PREPAID TRANS DEPOSITS (407.3) | BB60: =N28 -> 697744.739 | BC60: -14645.66207 | BD60: 5126
AU61: 49 | AV61: INCREASE (DECREASE) FIT | AX61: 0.35 | AY61: =-AY55*AX61 -> 1983324.138 | AZ61: 49 | BA61: LOWER SNAKE RIVER PREPAID TRANSMISSION DEPOSIT (565) (NEW) | BB61: ='JHS-20'!O27 -> 420202.5852 | BC61: -8820.052262 | BD61: =ROUND(BC61*-FIT,0) -> 3087
AU62: 50 | AZ62: 50 | BA62: LOWER SNAKE RIVER DEFERRAL (407.3) (NEW) | BB62: =BH16 -> 5803404.153 | BC62: -121813.4532 | BD62: =ROUND(BC62*-FIT,0) -> 42635
AU63: 51 | AV63: INCREASE (DECREASE) NOI | AY63: =-AY59-AY61 -> 3683316.256 | AZ63: 51 | BA63: CHELAN RESERVATION PREPAYMENT (555) | BB63: =AS28 -> 7088065.589 | BC63: -148778.4967 | BD63: =ROUND(BC63*-FIT,0) -> 52072
AZ64: 52 | BA64: TOTAL AMORTIZATION OF REGULATORY ASSETS AND LIABILITIES | BB64: =SUM(BB47:BB63) -> 23008942.68 | BC64: =SUM(BC47:BC63) -> -482957.7068 | BD64: =SUM(BD47:BD63) -> 169034
AZ65: 53
AZ66: 54
AZ67: 55 | BA67: INCREASE(DECREASE) EXPENSE | BC67: =BB34+BB27+BB22+BB17+BB44+BB64 -> 179208576 | BD67: =BC34+BC27+BC22+BC17+BC44+BC64 -> -3761588.01
AZ68: 56 | BA68: INCREASE(DECREASE) FIT | BD68: =(+BD17+BD22+BD27+BD34+BD44+BD64) -> 1431566.86
AZ69: 57 | BA69: INCREASE(DECREASE) NOI | BD69: =-SUM(BD67:BD68) -> 2330021.15
AZ70: 58
AZ71: 59 | BA71: PRODUCTION PROPERTY RATE BASE:
AZ72: 60 | BA72: DEPRECIABLE PRODUCTION PROPERTY (INCL LSR AND WH SOLAR) | BB72: ='Prod Plant'!C49+J15+Y15 -> 3302665765 | BC72: =-ROUND(BB72*$BC$11,0) -> -69322954
AZ73: 61 | BA73: PRODUCTION PROPERTY ACCUM DEPR. (INCL LSR AND WH SOLAR) | BB73: ='Prod Plant'!E49+J16+Y16 -> -1195666811 | BC73: 25097046
AZ74: 62 | BA74: NON-DEPRECIABLE PRODUCTION PROPERTY | BB74: ='Prod Plant'!C61 -> 77287156 | BC74: -1622257
AZ75: 63 | BA75: PRODUCTION PROPERTY ACCUM AMORT. | BB75: ='Prod Plant'!E61+'Prod Plant'!E76 -> -4080190 | BC75: 85643
AZ76: 64 | BA76: COLSTRIP COMMON FERC ADJUSTMENT | BB76: 4947628 | BC76: -103851
AZ77: 65 | BA77: COLSTRIP DEFERRED DEPRECIATION FERC ADJ. | BB77: 1458712 | BC77: -30618
AZ78: 66 | BA78: ACQUISITION ADJUSTMENTS | BB78: 250524822.2 | BC78: -5258516
AZ79: 67 | BA79: ACCUMULATED AMORTIZATION ON ACQUISTION ADJ | BB79: -54306612 | BC79: 1139896
AZ80: 68 | BA80: NET PRODUCTION PROPERTY | BB80: =SUM(BB72:BB79) -> 2382830471 | BC80: =SUM(BC72:BC79) -> -50015611
AZ81: 69
AZ82: 70 | BA82: LIBR. DEPREC. POST 1980 (AMA) | BB82: =-248409806+J17+Y17 -> -325637883.6 | BC82: =-ROUND(BB82*$BC$11,0) -> 6835139
AZ83: 71 | BA83: NOL DEFERRED TAX ASSET ATTRIBUTABLE TO PRODUCTION | BB83: 6328940 | BC83: =-ROUND(BB83*$BC$11,0) -> -132844
AZ84: 72 | BA84: SUBTOTAL | BB84: =SUM(BB82:BB83) -> -319308943.6 | BC84: =SUM(BC82:BC83) -> 6702295
AZ85: 73 | BC85: =-ROUND(BB85*$BC$11,0) -> 0
AZ86: 74 | BA86: TOTAL PRODUCTION PROPERTY RATE BASE | BB86: =BB80+BB84+BB85 -> 2063521527 | BC86: =BC80+BC84+BC85 -> -43313316 | BD86: =SUM(BB86:BC86) -> 2020208211
AZ87: 75
AZ88: 76 | BA88: REGULATORY ASSETS RATE BASE:
AZ89: 77 | BA89: BEP | BB89: =AX14 -> 11214773.01 | BC89: =-ROUND(BB89*$BC$11,0) -> -235398
AZ90: 78 | BA90: WHITE RIVER PLANT COSTS | BB90: =AX15 -> 34565277.37 | BC90: -725525
AZ91: 79 | BA91: WHITE RIVER RELICENSING & CWIP | BB91: =AX16 -> 24941806.74 | BC91: -523529
AZ92: 80 | BA92: PROCEEDS FROM THE SALE OF WHITE RIVER ASSETS TO CWA | BB92: =AX17 -> -29911730 | BC92: 627847
AZ93: 81 | BA93: DFIT WHITE RIVER REG ASSETS | BB93: =AX18 -> -10331527.55 | BC93: 216859
AZ94: 82 | BA94: WESTCOAST PIPELINE CAPACITY - UE-082013 (FB ENERGY) | BB94: =AX22 -> -1529461.683 | BC94: 32103
AZ95: 83 | BA95: WESTCOAST PIPELINE CAPACITY - UE-100503 (BNP PARIBUS) | BB95: =AX23 -> -2096742.233 | BC95: 44011
AZ96: 84 | BA96: MINT FARM DEFERRAL UE-090704 | BB96: =AX24 -> 23180900.64 | BC96: -486567
AZ97: 85 | BA97: COLSTRIP 1&2 (WECO) COAL CONTRACT PREPAYMENT | BB97: =AX26 -> 3981481.481 | BC97: -83571
AZ98: 86 | BA98: FERC PART 12 NON-CONSTRUCTION STUDY COSTS UE-070074 | BB98: =AX27 -> 1193197.5 | BC98: -25045
AZ99: 87 | BA99: LOWER SNAKE RIVER PREPAID TRANSMISSION DEPOSITS | BB99: =+O14+O15 -> 99746463.46 | BC99: -2093678
AZ100: 88 | BA100: LOWER SNAKE RIVER DEFERRAL (NEW) | BB100: =BH28 -> 13105765.45 | BC100: -275090
AZ101: 89 | BA101: CARRYING CHARGES ON LSR PREPAID TRANSM DEPOSITS | BB101: =+N22 -> 11099629.76 | BC101: -232981
AZ102: 90 | BA102: CHELAN RESERVATION PAYMENT | BB102: =+AT14+AT15+AT16 -> 117130302.2 | BC102: -2458565
AZ103: 91 | BA103: CHELAN SECURITY DEPOSIT | BB103: =+AT23 -> 18500000 | BC103: -388315
AZ104: 92 | BA104: MAJOR MAINTENANCE (SUMMARIZED) | BB104: =SUM(AX29:AX33) -> 1627204.627 | BC104: -34155
AZ105: 93 | BA105: TOTAL REGULATORY ASSETS AND LIABILITIES RATE BASE | BB105: =SUM(BB89:BB104) -> 316417340.7 | BC105: =SUM(BC89:BC104) -> -6641599 | BD105: =SUM(BB105:BC105) -> 309775741.7
AZ106: 94
AZ107: 95 | BA107: TOTAL ADJUSTMENT TO RATEBASE (LINE 73 + LINE 89) | BC107: =SUM(BC86,BC105) -> -49954915

Sheet JHS-20.01(A)
N1: Exhibit No. ___(JHS-20)
N2: Page 20.01 (A)
A3: PUGET SOUND ENERGY
A4: GENERAL RATE CASE
A5: ="DETERMINATION OF NET POWER COSTS FOR GRC ADJUSTMENT JHS "&'JHS-20'!E4 -> DETERMINATION OF NET POWER COSTS FOR GRC ADJUSTMENT JHS 20.01
A6: TEST YEAR ENDED DECEMBER 31, 2010
A7: RATE YEAR ENDED APRIL 30, 2013
D10: REVISED | E10: REVISED | F10: REVISED | G10: REVISED | L10: REVISED | N10: REVISED
D11: Per Exh. DEM-XX | E11: Reclass | F11: Remove amounts shown on other adjustments | J11: Add / Remove amounts not in / in Exh DEM-XX | L11: Subtotal | N11: ="Per JHS "&'JHS-20'!E4 -> Per JHS 20.01
D13: Rate Year | E13: Jackson Prarie | F13: 20.02E | G13: 20.03E | H13: 20.09E | I13: 20.10E | N13: After Prod
D14: 12ME | E14: Move from O&M | F14: Less | G14: Less LSR | H14: Less Chelan | I14: Less Amort | J14: Remove | K14: Add | L14: Net Before | N14: Factor of
A15: Line | B15: FERC | C15: Description | D15: 2013-04-30 | E15: to Fuel | F15: LSR Plant | G15: Ppd Transm | H15: Initiation Pmt | I15: of Reg Assets | J15: Ben&Tax | K15: Hedging | L15: Prod Factor | N15: ='Production Factor'!F19 -> 0.97901
B16: a | C16: b | D16: c | E16: c.1 | F16: d | G16: e | H16: f | I16: g | J16: h | K16: i | L16: j | N16: k
A17: 1 | B17: Fuel:
A18: =A17+1 -> 2 | B18: 501 | C18: Steam Fuel | D18: ='DEM RY PC'!P10*1000 -> 90551973.03 | I18: =-SUM('JHS-20'!AX47) -> -555555.5556 | J18: 0 | L18: =SUM(D18:K18) -> 89996417.47 | N18: =L18*$N$15 -> 88107392.67
A19: 3 | B19: 547 | C19: Fuel | D19: ='DEM RY PC'!P11*1000 -> 163443097 | E19: =-E30 -> 826800 | I19: =-SUM('JHS-20'!AX43:AX44) -> 929795.8803 | J19: 0 | L19: =SUM(D19:K19) -> 165199692.9 | N19: =L19*$N$15 -> 161732151.4
A20: 4 | D20: =SUM(D18:D19) -> 253995070.1 | E20: =SUM(E18:E19) -> 826800 | F20: =SUM(F18:F19) -> 0 | I20: =SUM(I18:I19) -> 374240.3247 | J20: =SUM(J18:J19) -> 0 | K20: =SUM(K18:K19) -> 0 | L20: =SUM(L18:L19) -> 255196110.4 | N20: =SUM(N18:N19) -> 249839544
A21: 5 | B21: Purchased and Interchanged:
A22: 6 | B22: 555 | C22: Purchased Power | D22: ='DEM RY PC'!P12*1000 -> 494062782.3 | F22: =-'JHS-20'!I28 -> -776099.4993 | H22: =-'JHS-20'!AS28 -> -7088065.589 | I22: =-(+'JHS-20'!AX38) -> -3526620 | J22: 0 | L22: =SUM(D22:K22) -> 482671997.2 | N22: =L22*$N$15 -> 472540712
A23: 7
A24: 8 | B24: 557 | C24: Other Power Expense | D24: ='DEM RY PC'!P13*1000 -> 8029302.95 | J24: =-'EB&Taxes'!D9 -> -1369203.65 | L24: =SUM(D24:K24) -> 6660099.3 | N24: =L24*$N$15 -> 6520303.816
A25: 9 | C25: Hedging | D25: 0 | K25: 1451371.7 | L25: =SUM(D25:K25) -> 1451371.7 | N25: =L25*$N$15 -> 1420907.408
A26: 10 | D26: =SUM(D22:D25) -> 502092085.3 | E26: =SUM(E22:E25) -> 0 | F26: =SUM(F22:F25) -> -776099.4993 | G26: 0 | H26: -7088065.589 | I26: -3526620 | J26: =SUM(J22:J25) -> -1369203.65 | K26: 1451371.7 | L26: =SUM(L22:L25) -> 490783468.2 | N26: 480481923.2
A27: 11
A28: 12 | B28: 565 | C28: Wheeling | D28: ='DEM RY PC'!P14*1000 -> 92561144.04 | F28: =-'JHS-20'!I29 -> -7039229.379 | G28: =-'JHS-20'!O27 -> -420202.5852 | I28: =-(+'JHS-20'!AX42+'JHS-20'!AX40) -> 0 | J28: 0 | L28: =SUM(D28:K28) -> 85101712.08 | N28: =L28*$N$15 -> 83315427.14
A29: 13 | L29: =SUM(D29:K29) -> 0
A30: 14 | B30: various | C30: Hydro and Other Power | D30: ='DEM RY PC'!P28*1000 -> 134675905.2 | E30: =-1130625+303825 -> -826800 | F30: =-'ProdO&M'!F49 -> -10891023 | I30: =-SUM('JHS-20'!AX50:AX54) -> -1215107.379 | J30: =-'EB&Taxes'!D8 -> -6849513.49 | L30: =SUM(D30:K30) -> 114893461.4 | N30: =L30*$N$15 -> 112481847.6
A31: 15
A32: 16 | B32: various | C32: Trans. Exp. Incl. 500Kv O&M | D32: ='DEM RY PC'!P29*1000 -> 1419635 | L32: =SUM(D32:K32) -> 1419635 | N32: =L32*$N$15 -> 1389836.861
A33: 17 | B33: 447 | C33: Sales for Resale | D33: ='DEM RY PC'!P15*1000 -> -22887098.51 | L33: =SUM(D33:K33) -> -22887098.51 | N33: =L33*$N$15 -> -22406698.31
A34: 18 | B34: 456 | C34: Purchases/Sales Of Non-Core Gas | D34: ='DEM RY PC'!P17*1000 -> 0 | L34: =SUM(D34:K34) -> 0 | N34: =L34*$N$15 -> 0
A35: 19 | D35: =SUM(D32:D34) -> -21467463.51 | E35: 0 | F35: 0 | G35: 0 | H35: 0 | I35: =SUM(I32:I34) -> 0 | J35: 0 | K35: 0 | L35: =SUM(L32:L34) -> -21467463.51 | N35: =SUM(N32:N34) -> -21016861.45
A36: 20
A37: 21 | B37: Net Power Costs (column c per DEM Exhibit) | D37: =D20+D26+D28+D30+D35 -> 961856741.1 | E37: =E20+E26+E28+E30+E35 -> 0 | F37: -18706351.88 | G37: -420202.5852 | H37: -7088065.589 | I37: -4367487.054 | J37: -8218717.14 | K37: 1451371.7 | L37: 924507288.5 | N37: =N20+N26+N28+N30+N35 -> 905101880.6
A38: 22 | B38: various | C38: Variable Transmission Income | D38: =TransmRev!D41 -> -11622044.65 | L38: =SUM(D38:K38) -> -11622044.65 | N38: =L38*$N$15 -> -11378097.94
A39: 23
A40: 24 | B40: ="Col k = amount of adjustment on JHS "&'JHS-20'!E4&" Line 23" -> Col k = amount of adjustment on JHS 20.01 Line 23 | D40: =SUM(D37:D39) -> 950234696.4 | E40: =SUM(E37:E39) -> 0 | F40: =SUM(F37:F39) -> -18706351.88 | G40: -420202.5852 | H40: -7088065.589 | I40: -4367487.054 | J40: =SUM(J37:J39) -> -8218717.14 | K40: 1451371.7 | L40: 912885243.9 | N40: =SUM(N37:N39) -> 893723782.6
A41: 25 | N41: =ROUND(N40+'JHS-20'!D35,0) -> 0

Sheet JHS-21
A1: =ROUND(SUM(B1:G1),0) -> 0 | G1: =ROUND('JHS-19'!P49-G53,0) -> 0 | L1: =ROUND(L59-'JHS-19'!Q49,0) -> 0 | Q1: =ROUND(Q44-'JHS-19'!R49,2) -> 0 | U1: =ROUND(U32-'JHS-19'!S49,0) -> 0 | Y1: =ROUND(Y23-'JHS-19'!T49,0) -> 0 | AD1: =ROUND(AD31-'JHS-19'!U49,0) -> 0 | AI1: =ROUND(AI25-'JHS-19'!V49,0) -> 0 | AN1: =ROUND(AN20-'JHS-19'!W49,0) -> 0 | AW1: =ROUND(AW28-'JHS-19'!X49,0) -> 0 | BB1: =ROUND(BB30-'JHS-19'!Y49,0) -> 0 | BH1: =ROUND(BH19-'JHS-19'!Z49,0) -> 0 | BL1: =ROUND(BL24-'JHS-19'!AA49,0) -> 0 | BQ1: =BQ19-'JHS-19'!AB49 -> 0 | BT1: =BU20-'JHS-19'!AC51 -> 0 | BU1: =ROUND(BU15-'JHS-19'!AC49,0) -> 0 | BY1: =ROUND(BY31-'JHS-19'!AD49,0) -> 0 | CC1: =ROUND(CC31-'JHS-19'!AE49,0) -> 0 | CH1: =ROUND(CH20-'JHS-19'!AF49,0) -> 0 | CM1: =ROUND(CM18-'JHS-19'!AG49,0) -> 0 | CR1: =ROUND(CR29-'JHS-19'!AH49,0) -> 0 | CW1: =ROUND(CW40-'JHS-19'!AI49,0) -> 0 | DB1: =ROUND(DB24-'JHS-19'!AJ49,0) -> 0 | DG1: 0
G2: =DocketNumber -> Docket Number UE-111048 | L2: =DocketNumber -> Docket Number UE-111048 | Q2: =DocketNumber -> Docket Number UE-111048 | U2: =DocketNumber -> Docket Number UE-111048 | Y2: =DocketNumber -> Docket Number UE-111048 | AD2: =DocketNumber -> Docket Number UE-111048 | AI2: =DocketNumber -> Docket Number UE-111048 | AN2: =DocketNumber -> Docket Number UE-111048 | AW2: =DocketNumber -> Docket Number UE-111048 | BB2: =DocketNumber -> Docket Number UE-111048 | BH2: =DocketNumber -> Docket Number UE-111048 | BL2: =DocketNumber -> Docket Number UE-111048 | BQ2: =DocketNumber -> Docket Number UE-111048 | BU2: =DocketNumber -> Docket Number UE-111048 | BY2: =DocketNumber -> Docket Number UE-111048 | CC2: =DocketNumber -> Docket Number UE-111048 | CH2: =DocketNumber -> Docket Number UE-111048 | CM2: =DocketNumber -> Docket Number UE-111048 | CR2: =DocketNumber -> Docket Number UE-111048 | CW2: =DocketNumber -> Docket Number UE-111048 | DB2: =DocketNumber -> Docket Number UE-111048 | DG2: =DocketNumber -> Docket Number UE-111048
G3: Exhibit No. (JHS-21) | L3: =Exhibit_No.______JHS_21 -> Exhibit No. (JHS-21) | Q3: =Exhibit_No.______JHS_21 -> Exhibit No. (JHS-21) | U3: =Exhibit_No.______JHS_21 -> Exhibit No. (JHS-21) | Y3: =Exhibit_No.______JHS_21 -> Exhibit No. (JHS-21) | AD3: =Exhibit_No.______JHS_21 -> Exhibit No. (JHS-21) | AI3: =Exhibit_No.______JHS_21 -> Exhibit No. (JHS-21) | AN3: =Exhibit_No.______JHS_21 -> Exhibit No. (JHS-21) | AW3: =Exhibit_No.______JHS_21 -> Exhibit No. (JHS-21) | BB3: =Exhibit_No.______JHS_21 -> Exhibit No. (JHS-21) | BH3: =Exhibit_No.______JHS_21 -> Exhibit No. (JHS-21) | BL3: =Exhibit_No.______JHS_21 -> Exhibit No. (JHS-21) | BQ3: =Exhibit_No.______JHS_21 -> Exhibit No. (JHS-21) | BU3: =Exhibit_No.______JHS_21 -> Exhibit No. (JHS-21) | BY3: =Exhibit_No.______JHS_21 -> Exhibit No. (JHS-21) | CC3: =Exhibit_No.______JHS_21 -> Exhibit No. (JHS-21) | CH3: =Exhibit_No.______JHS_21 -> Exhibit No. (JHS-21) | CM3: =Exhibit_No.______JHS_21 -> Exhibit No. (JHS-21) | CR3: =Exhibit_No.______JHS_21 -> Exhibit No. (JHS-21) | CW3: =Exhibit_No.______JHS_21 -> Exhibit No. (JHS-21) | DB3: =Exhibit_No.______JHS_21 -> Exhibit No. (JHS-21) | DG3: =Exhibit_No.______JHS_21 -> Exhibit No. (JHS-21)
G4: 21.01 | L4: ='JHS-21'!G4+0.01 -> 21.02 | Q4: =L4+0.01 -> 21.03 | U4: ='JHS-21'!L4+0.02 -> 21.04 | Y4: ='JHS-21'!U4+0.01 -> 21.05 | AD4: =Y4+0.01 -> 21.06 | AI4: =AD4+0.01 -> 21.07 | AN4: =AI4+0.01 -> 21.08 | AW4: =AN4+0.01 -> 21.09 | BB4: =AW4+0.01 -> 21.1 | BH4: =BB4+0.01 -> 21.11 | BL4: =BH4+0.01 -> 21.12 | BQ4: =BL4+0.01 -> 21.13 | BU4: =BQ4+0.01 -> 21.14 | BY4: =BU4+0.01 -> 21.15 | CC4: =BY4+0.01 -> 21.16 | CH4: =CC4+0.01 -> 21.17 | CM4: =CH4+0.01 -> 21.18 | CR4: =CM4+0.01 -> 21.19 | CW4: =CR4+0.01 -> 21.2 | DB4: =CW4+0.01 -> 21.21 | DG4: =DB4+0.01 -> 21.22
A5: PUGET SOUND ENERGY-ELECTRIC | H5: PUGET SOUND ENERGY-ELECTRIC | M5: PUGET SOUND ENERGY-ELECTRIC | R5: PUGET SOUND ENERGY-ELECTRIC | V5: PUGET SOUND ENERGY-ELECTRIC | Z5: PUGET SOUND ENERGY-ELECTRIC | AE5: PUGET SOUND ENERGY-ELECTRIC | AJ5: PUGET SOUND ENERGY-ELECTRIC | AO5: PUGET SOUND ENERGY-ELECTRIC | AX5: PUGET SOUND ENERGY-ELECTRIC | BC5: PUGET SOUND ENERGY-ELECTRIC | BI5: PUGET SOUND ENERGY-ELECTRIC | BM5: PUGET SOUND ENERGY-ELECTRIC | BR5: PUGET SOUND ENERGY-ELECTRIC | BV5: PUGET SOUND ENERGY-ELECTRIC | BZ5: PUGET SOUND ENERGY-ELECTRIC | CD5: PUGET SOUND ENERGY-ELECTRIC | CI5: PUGET SOUND ENERGY-ELECTRIC | CN5: PUGET SOUND ENERGY-ELECTRIC | CS5: PUGET SOUND ENERGY-ELECTRIC | CX5: PUGET SOUND ENERGY-ELECTRIC | DC5: ( NEW )
A6: TEMPERATURE NORMALIZATION | H6: REVENUES AND EXPENSES | M6: PASS-THROUGH REVENUES AND EXPENSES | R6: FEDERAL INCOME TAX | V6: TAX BENEFIT OF PRO FORMA INTEREST | Z6: MISCELLANEOUS OPERATING EXPENSE | AE6: GENERAL PLANT DEPRECIATION | AJ6: NORMALIZE INJURIES AND DAMAGES | AO6: BAD DEBTS | AX6: INCENTIVE PAY | BC6: PROPERTY TAXES | BI6: EXCISE TAX & FILING FEE | BM6: DIRECTORS & OFFICERS INSURANCE | BR6: INTEREST ON CUSTOMER DEPOSITS | BV6: RATE CASE EXPENSES | BZ6: DEFERRED GAINS/LOSSES ON PROPERTY SALES | CD6: PROPERTY & LIABILITY INSURANCE | CI6: PENSION PLAN | CN6: WAGE INCREASE | CS6: INVESTMENT PLAN | CX6: EMPLOYEE INSURANCE | DC6: PUGET SOUND ENERGY-ELECTRIC
A7: FOR THE TWELVE MONTHS ENDED DECEMBER 31, 2010 | H7: =TESTYEAR -> FOR THE TWELVE MONTHS ENDED DECEMBER 31, 2010 | M7: =TESTYEAR -> FOR THE TWELVE MONTHS ENDED DECEMBER 31, 2010 | R7: =TESTYEAR -> FOR THE TWELVE MONTHS ENDED DECEMBER 31, 2010 | V7: =TESTYEAR -> FOR THE TWELVE MONTHS ENDED DECEMBER 31, 2010 | Z7: =TESTYEAR -> FOR THE TWELVE MONTHS ENDED DECEMBER 31, 2010 | AE7: =TESTYEAR -> FOR THE TWELVE MONTHS ENDED DECEMBER 31, 2010 | AJ7: =TESTYEAR -> FOR THE TWELVE MONTHS ENDED DECEMBER 31, 2010 | AO7: =TESTYEAR -> FOR THE TWELVE MONTHS ENDED DECEMBER 31, 2010 | AX7: =TESTYEAR -> FOR THE TWELVE MONTHS ENDED DECEMBER 31, 2010 | BC7: =TESTYEAR -> FOR THE TWELVE MONTHS ENDED DECEMBER 31, 2010 | BI7: =TESTYEAR -> FOR THE TWELVE MONTHS ENDED DECEMBER 31, 2010 | BM7: FOR THE TWELVE MONTHS ENDED DECEMBER 31, 2010 | BR7: =TESTYEAR -> FOR THE TWELVE MONTHS ENDED DECEMBER 31, 2010 | BV7: =TESTYEAR -> FOR THE TWELVE MONTHS ENDED DECEMBER 31, 2010 | BZ7: =TESTYEAR -> FOR THE TWELVE MONTHS ENDED DECEMBER 31, 2010 | CD7: =TESTYEAR -> FOR THE TWELVE MONTHS ENDED DECEMBER 31, 2010 | CI7: =TESTYEAR -> FOR THE TWELVE MONTHS ENDED DECEMBER 31, 2010 | CN7: =TESTYEAR -> FOR THE TWELVE MONTHS ENDED DECEMBER 31, 2010 | CS7: =TESTYEAR -> FOR THE TWELVE MONTHS ENDED DECEMBER 31, 2010 | CX7: =TESTYEAR -> FOR THE TWELVE MONTHS ENDED DECEMBER 31, 2010 | DC7: WORKING CAPITAL
A8: GENERAL RATE INCREASE | H8: GENERAL RATE INCREASE | M8: GENERAL RATE INCREASE | R8: GENERAL RATE INCREASE | V8: GENERAL RATE INCREASE | Z8: GENERAL RATE INCREASE | AE8: GENERAL RATE INCREASE | AJ8: GENERAL RATE INCREASE | AO8: GENERAL RATE INCREASE | AX8: GENERAL RATE INCREASE | BC8: GENERAL RATE INCREASE | BI8: GENERAL RATE INCREASE | BM8: GENERAL RATE CASE | BR8: GENERAL RATE INCREASE | BV8: GENERAL RATE INCREASE | BZ8: GENERAL RATE INCREASE | CD8: GENERAL RATE INCREASE | CI8: GENERAL RATE INCREASE | CN8: GENERAL RATE INCREASE | CS8: GENERAL RATE INCREASE | CX8: GENERAL RATE INCREASE | DC8: FOR THE TWELVE MONTHS ENDED DECEMBER 31, 2010
AC9: REVISED | AD9: REVISED | AW9: PERCENT | DC9: GENERAL RATE INCREASE
A10: LINE | H10: LINE | K10: REVISED | L10: REVISED | M10: LINE | R10: LINE | V10: LINE | X10: REVISED | Y10: REVISED | Z10: LINE | AC10: PROFORMA | AE10: LINE | AJ10: LINE | AO10: LINE | AQ10: NET | AR10: GROSS | AS10: SALES FOR | AT10: OTHER OPERATING | AU10: SALES FOR | AV10: NET | AW10: WRITE-OFF'S | AX10: LINE | BC10: LINE | BI10: LINE | BM10: LINE | BR10: LINE | BV10: LINE | BZ10: LINE | CD10: LINE | CI10: LINE | CN10: LINE | CQ10: REVISED | CR10: REVISED | CS10: LINE | CU10: REVISED | CV10: REVISED | CW10: REVISED | CX10: LINE | DB10: REVISED
A11: NO. | B11: DESCRIPTION | H11: NO. | I11: DESCRIPTION | K11: ADJUSTMENT | M11: NO. | N11: DESCRIPTION | Q11: ADJUSTMENT | R11: NO. | S11: DESCRIPTION | U11: AMOUNT | V11: NO. | W11: DESCRIPTION | Y11: AMOUNT | Z11: NO. | AA11: DESCRIPTION | AB11: ACTUAL | AC11: RESTATED | AD11: ADJUSTMENT | AE11: NO. | AF11: DESCRIPTION | AG11: TEST YEAR | AH11: RESTATED | AI11: ADJUSTMENT | AJ11: NO. | AK11: DESCRIPTION | AL11: TEST YEAR | AM11: RESTATED | AN11: ADJUSTMENT | AO11: NO. | AP11: YEAR | AQ11: WRITEOFF'S | AR11: REVENUES | AS11: RESALE OTHER | AT11: REVENUES | AU11: RESALE FIRM | AV11: REVENUES | AW11: TO REVENUE | AX11: NO. | AY11: DESCRIPTION | AZ11: ACTUAL | BA11: RESTATED | BB11: ADJUSTMENT | BC11: NO. | BD11: DESCRIPTION | BE11: WASHINGTON | BF11: MONTANA | BG11: OREGON | BH11: TOTAL | BI11: NO. | BJ11: DESCRIPTION | BL11: AMOUNT | BM11: NO. | BN11: DESCRIPTION | BO11: TEST YEAR | BP11: RESTATED | BQ11: ADJUSTMENT | BR11: NO. | BS11: DESCRIPTION | BU11: AMOUNT | BV11: NO. | BW11: DESCRIPTION | BY11: AMOUNT | BZ11: NO. | CA11: DESCRIPTION | CC11: AMOUNT | CD11: NO. | CE11: DESCRIPTION | CF11: ACTUAL | CG11: PROFORMA | CH11: ADJUSTMENT | CI11: NO. | CJ11: DESCRIPTION | CK11: ACTUAL | CL11: RESTATED | CM11: ADJUSTMENT | CN11: NO. | CO11: DESCRIPTION | CP11: TEST YEAR | CQ11: RATE YEAR | CR11: ADJUSTMENT | CS11: NO. | CT11: DESCRIPTION | CW11: AMOUNT | CX11: NO. | CY11: DESCRIPTION | DB11: AMOUNT | DC11: LINE
A12: 1 | B12: TEMPERATURE NORMALIZATION ADJUSTMENT: | DC12: NO. | DD12: DESCRIPTION | DE12: TEST YEAR | DF12: RESTATED | DG12: ADJUSTMENT
A13: =+A12+1 -> 2 | C13: ACTUAL | D13: TEMP ADJ | E13: MWH | F13: ADJ FOR LOSSES | H13: 1 | I13: SALES TO CUSTOMERS: | M13: 1 | N13: REMOVE REVENUE ASSOCIATED WITH RIDERS: | R13: 1 | S13: TAXABLE INCOME (LOSS) (NOTE 1) | U13: -187810292 | V13: 1 | W13: RATE BASE | X13: ='JHS-19'!AR51-X25 -> 4893796925 | Z13: 1 | AA13: OPERATING EXPENSES | AE13: 1 | AF13: ADJUSTMENT TO RATE BASE | AJ13: 1 | AK13: INJURIES & DAMAGES ACCRUALS | AL13: 195770.8014 | AM13: 1109327.78 | AN13: =AM13-AL13 -> 913556.9791 | AO13: 1 | AP13: 12 MOS ENDED | AQ13: DECEMBER | AR13: AUGUST | AS13: AUGUST | AT13: AUGUST | AU13: AUGUST | AV13: AUGUST | AX13: 1 | AY13: OPERATING EXPENSES | BC13: 1 | BD13: RESTATED PROPERTY TAX | BE13: 28650318 | BF13: 8976872 | BG13: 619081 | BH13: =+BE13+BF13+BG13 -> 38246271 | BI13: 1 | BJ13: RESTATED EXCISE TAXES | BL13: 79150521 | BM13: 1 | BN13: D & O INS. CHG EXPENSE | BO13: 322483.7236 | BP13: 270816.3751 | BQ13: -51667.34845 | BR13: 1 | BS13: INTEREST EXPENSE AT MOST CURRENT INTEREST RATE | BU13: 47149 | BV13: 1 | BW13: EXPENSES TO BE NORMALIZED: | BZ13: 1 | CA13: DEFERRED GAINS RECORDED FOR UE-090704, et al. at 4/30/2012 | CC13: -1822806.25 | CD13: 1 | CE13: PROPERTY INSURANCE EXPENSE | CF13: 2661295.195 | CG13: 2817401.173 | CH13: =+CG13-CF13 -> 156105.9776 | CI13: 1 | CJ13: QUALIFIED RETIREMENT FUND | CK13: 3279191.915 | CL13: 5594712.966 | CM13: =+CL13-CK13 -> 2315521.051 | CN13: 1 | CO13: WAGES: | CS13: 1 | CT13: NON-UNION (EXCLUDING. EXECUTIVES) | CX13: 1 | CY13: BENEFIT CONTRIBUTION:
A14: 3 | C14: GPI MWH | D14: GPI MWH | E14: CHANGE | F14: 0.068 | H14: =+H13+1 -> 2 | I14: RESTATING ADJUSTMENTS: | M14: =M13+1 -> 2 | N14: REMOVE CONSERVATION RIDER - SCHEDULE 120 | Q14: 78809572.05 | R14: =R13+1 -> 2 | V14: =V13+1 -> 2 | Z14: =Z13+1 -> 2 | AA14: REMOVE DEFERRAL OF MINT FARM COSTS | AB14: -3790492.57 | AC14: 0 | AD14: =AC14-AB14 -> 3790492.57 | AE14: =AE13+1 -> 2 | AF14: ACCUMULATED DEPRECIATION - ELECTRIC | AG14: 0 | AH14: -359644.1848 | AI14: =+AH14-AG14 -> -359644.1848 | AJ14: 2 | AK14: INJURIES & DAMAGES PAYMENTS IN EXCESS OF ACCRUALS | AL14: 615331.3742 | AM14: 818110.3149 | AN14: =AM14-AL14 -> 202778.9408 | AO14: =AO13+1 -> 2 | AP14: 2007 | AQ14: 6924811.89 | AR14: 1922618327 | AS14: 111070231 | AT14: 43200762 | AU14: 373024 | AV14: =AR14-AS14-AT14-AU14 -> 1767974310 | AW14: =ROUND(AQ14/AV14,6) -> 0.003917 | AX14: =AX13+1 -> 2 | AY14: PURCHASED POWER | AZ14: 261243 | BA14: 228708.051 | BB14: =BA14-AZ14 -> -32534.94904 | BC14: =BC13+1 -> 2 | BD14: CHARGED TO EXPENSE IN TY | BE14: 23853529 | BF14: 8578000 | BG14: 645631.92 | BH14: =+BE14+BF14+BG14 -> 33077160.92 | BI14: =BI13+1 -> 2 | BJ14: CHARGED TO EXPENSE FOR TEST YEAR | BL14: 78841322.58 | BM14: 2 | BR14: =BR13+1 -> 2 | BV14: =+BV13+1 -> 2 | BZ14: =1+BZ13 -> 2 | CA14: DEFERRED LOSSES RECORDED FOR UE-090704, et al. at 4/30/2012 | CC14: 107709.44 | CD14: =CD13+1 -> 2 | CE14: LIABILITY INSURANCE EXPENSE | CF14: 1594751.944 | CG14: 1630149.799 | CH14: =+CG14-CF14 -> 35397.8551 | CI14: =CI13+1 -> 2 | CJ14: SERP PLAN | CK14: 469391.9951 | CL14: 0 | CM14: =+CL14-CK14 -> -469391.9951 | CN14: 2 | CO14: PURCHASED POWER | CP14: 3782810 | CQ14: 3895048 | CR14: =CQ14-CP14 -> 112238 | CS14: =CS13+1 -> 2 | CT14: INVESTMENT PLAN APPLICABLE TO MANAGEMENT | CV14: 5398752.811 | CX14: 2 | CY14: SALARIED EMPLOYEES | DB14: 12639719.5 | DC14: 1 | DD14: ALLOWANCE FOR WORKING CAPITAL | DE14: 204952588 | DF14: 203573760.1 | DG14: =DF14-DE14 -> -1378827.912
A15: 4 | B15: 2010-01-01 | C15: 2154813.765 | D15: 2282982.531 | E15: =+D15-C15 -> 128168.7657 | F15: =ROUND(+E15*(1-$F$14),0) -> 119453 | H15: 3 | I15: ADD GRC INCREASE DOCKET UE-090704 | K15: 6061237.274 | M15: 3 | N15: REMOVE MUNICIPAL TAXES - SCHEDULE 81 | Q15: 75028227.01 | R15: 3 | S15: FEDERAL INCOME TAX EXPENSE (BENEFIT) @ | T15: =FIT -> 0.35 | U15: =+U13*T15 -> -65733602.2 | V15: 3 | W15: NET RATE BASE | X15: =SUM(X13:X14) -> 4893796925 | Z15: 3 | AA15: REMOVE DEFERRAL OF WILD HORSE EXPANSION COSTS | AB15: -1569757 | AC15: 0 | AD15: =AC15-AB15 -> 1569757 | AE15: 3 | AF15: ACCUMULATED DEFERRED FIT | AG15: 0 | AH15: =-AH14*0.35 -> 125875.4647 | AI15: =+AH15-AG15 -> 125875.4647 | AJ15: 3 | AK15: INCREASE/(DECREASE) IN EXPENSE | AL15: =SUM(AL13:AL14) -> 811102.1756 | AM15: =SUM(AM13:AM14) -> 1927438.095 | AN15: =SUM(AN13:AN14) -> 1116335.92 | AO15: 3 | AP15: 2008 | AQ15: 8122859.95 | AR15: 2132433310 | AS15: 95513282 | AT15: 59332118 | AU15: 374652 | AV15: =AR15-AS15-AT15-AU15 -> 1977213258 | AW15: =ROUND(AQ15/AV15,6) -> 0.004108 | AX15: 3 | AY15: OTHER POWER SUPPLY | AZ15: 1299242 | BA15: 1147368.218 | BB15: -151873.7818 | BC15: 3 | BD15: INCREASE(DECREASE) EXPENSE | BE15: =BE13-BE14 -> 4796789 | BF15: =BF13-BF14 -> 398872 | BG15: =BG13-BG14 -> -26550.92 | BH15: =BH13-BH14 -> 5169110.08 | BI15: 3 | BJ15: INCREASE (DECREASE) EXCISE TAX | BL15: =(BL13-BL14) -> 309198.4228 | BM15: 3 | BN15: INCREASE (DECREASE) IN EXPENSE | BO15: 322483.7236 | BP15: 270816.3751 | BQ15: -51667.34845 | BR15: =BR14+1 -> 3 | BS15: INCREASE (DECREASE) NOI | BU15: =-BU13 -> -47149 | BV15: 3 | BW15: 2007 AND 2009 GRC EXPENSES TO BE NORMALIZED | BX15: 982000 | BZ15: 3 | CA15: TOTAL DEFERRED NET GAINS FOR UE-090704, et al. at 4/30/2012 | CC15: =SUM(CC13:CC14) -> -1715096.81 | CD15: 3 | CE15: INCREASE(DECREASE) EXPENSE | CF15: =SUM(CF13:CF14) -> 4256047.139 | CG15: =SUM(CG13:CG14) -> 4447550.972 | CH15: =SUM(CH13:CH14) -> 191503.8327 | CI15: =CI14+1 -> 3 | CJ15: INCREASE(DECREASE) EXPENSE | CK15: =SUM(CK13:CK14) -> 3748583.91 | CL15: =SUM(CL13:CL14) -> 5594712.966 | CM15: =SUM(CM13:CM14) -> 1846129.056 | CN15: 3 | CO15: OTHER POWER SUPPLY | CP15: 18813086 | CQ15: 19286741 | CR15: 473655 | CS15: 3 | CT15: RATE YEAR MANAGEMENT WAGE INCREASE | CU15: 0.0297 | CV15: =+CV14*CU15 -> 160342.9585 | CX15: 3 | CY15: UNION EMPLOYEES | DB15: 9705789.682
A16: 5 | B16: 2010-02-01 | C16: 1895525.908 | D16: 1986792.913 | E16: 91267.0051 | F16: 85061 | H16: 4 | I16: REMOVE PCA INCREASE | K16: -4974.18 | M16: 4 | N16: REMOVE LOW INCOME AMORTIZATION - SCHEDULE 129 | Q16: 11261428.14 | R16: 4 | S16: CURRENTLY PAYABLE | U16: =+U15 -> -65733602.2 | V16: 4 | Z16: 4 | AA16: LAID OFF EMPLOYEES: | AE16: 4 | AF16: TOTAL ADJUSTMENT TO RATE BASE | AG16: =SUM(AG13:AG14) -> 0 | AH16: =SUM(AH14:AH15) -> -233768.7201 | AI16: =SUM(AI14:AI15) -> -233768.7201 | AJ16: 4 | AO16: 4 | AP16: 2009 | AQ16: 10727813.25 | AR16: 2093755523 | AS16: 64642019.06 | AT16: 7215398.17 | AU16: 360828.64 | AV16: =AR16-AS16-AT16-AU16 -> 2021537277 | AW16: =ROUND(AQ16/AV16,6) -> 0.005307 | AX16: 4 | AY16: TRANSMISSION | AZ16: 210121 | BA16: 184354.7155 | BB16: -25766.28452 | BC16: 4 | BI16: 4 | BM16: 4 | BV16: 4 | BZ16: 4 | CD16: 4 | CI16: =CI15+1 -> 4 | CN16: 4 | CO16: TRANSMISSION | CP16: 3042579 | CQ16: 3128925 | CR16: 86346 | CS16: 4 | CT16: TOTAL COMPANY CONTRIBUTION FOR MANAGEMENT | CW16: =SUM(CV14:CV15) -> 5559095.77 | CX16: 4 | CY16: PRO FORMA INSURANCE COSTS | DB16: =SUM(DB14:DB15) -> 22345509.18
A17: 6 | B17: 2010-03-01 | C17: 2022381.922 | D17: 2041216.627 | E17: 18834.70509 | F17: 17554 | H17: 5 | I17: REMOVE SCHEDULE 95A PRODUCTION TAX CREDITS | K17: 16481251.35 | M17: 5 | N17: REMOVE RESIDENTIAL EXCHANGE - SCH 194 | Q17: -78576305.16 | R17: 5 | V17: 5 | W17: WEIGHTED COST OF DEBT | X17: ='JHS-22'!H13+'JHS-22'!H14 -> 0.031 | Z17: 5 | AA17: OTHER PRODUTION EXPENSES | AB17: 77824.864 | AC17: 0 | AD17: =AC17-AB17 -> -77824.864 | AE17: 5 | AJ17: 5 | AK17: INCREASE/(DECREASE) IN OPERATING EXPENSE (LINE 3) | AN17: =AN15 -> 1116335.92 | AO17: 5 | AP17: 3-YR AVERAGE OF NET WRITE OFF RATE | AW17: =ROUND(IF(ISERROR(AVERAGE(AW14,AW15,AW16)),0,AVERAGE(AW14,AW15,AW16)),6) -> 0.004444 | AX17: 5 | AY17: DISTRIBUTION | AZ17: 1505513 | BA17: 1332437.487 | BB17: -173075.5132 | BC17: 5 | BD17: INCREASE(DECREASE) FIT @ | BG17: =FIT -> 0.35 | BH17: =-ROUND(+BH15*BG17,0) -> -1809189 | BI17: 5 | BJ17: RESTATED WUTC FILING FEE | BL17: =BL18 -> 4157945 | BM17: 5 | BN17: INCREASE (DECREASE) FIT @ | BP17: 0.35 | BQ17: 18083.57196 | BV17: 5 | BW17: ANNUAL NORMALIZATION (LINE 3 ¸ 2 YEARS) | BX17: =BX15/2 -> 491000 | BZ17: 5 | CA17: DEFERRED GAINS PENDING APPROVAL SINCE UE-090704 | CC17: -76216.95 | CD17: 5 | CE17: INCREASE (DECREASE) OPERATING EXPENSE | CH17: =CH15 -> 191503.8327 | CI17: =CI16+1 -> 5 | CJ17: INCREASE (DECREASE) FIT @ | CK17: 0.35 | CM17: =-CK17*CM15 -> -646145.1697 | CN17: 5 | CO17: DISTRIBUTION | CP17: 21799940 | CQ17: 22323872 | CR17: 523932 | CS17: 5 | CX17: 5
A18: 7 | B18: 2010-04-01 | C18: 1844813.61 | D18: 1833220.609 | E18: -11593.00122 | F18: -10805 | H18: 6 | I18: RECLASS TRANSPORTATION IMBALANCE REVENUE TO OTHER OPERATING REVENUES | K18: -1936015 | M18: 6 | N18: GREEN POWER - SCH 135/136 (TAGS ELIM IN PAGE 4.03) | Q18: 3243189.68 | R18: 6 | S18: DEFERRED FIT - DEBIT | U18: 125546463 | V18: 6 | W18: PROFORMA INTEREST | Y18: =+X15*X17 -> 151707704.7 | Z18: 6 | AA18: DISTRIBUTION | AB18: 112533.504 | AC18: 0 | AD18: -112533.504 | AE18: 6 | AF18: ADJUSTMENT TO OPERATING EXPENSES | AJ18: 6 | AK18: INCREASE (DECREASE) FIT @ | AM18: 0.35 | AN18: =ROUND(-AN17*AM18,0) -> -390718 | AO18: 6 | AX18: 6 | AY18: CUSTOMER ACCTS | AZ18: 893833 | BA18: 791673.8626 | BB18: -102159.1374 | BC18: 6 | BI18: 6 | BJ18: CHARGED TO EXPENSE FOR TEST YEAR | BL18: 4157945 | BM18: 6 | BV18: 6 | BW18: LESS TEST YEAR EXPENSE | BX18: 641575 | BZ18: 6 | CA18: DEFERRED LOSSES PENDING APPROVAL SINCE UE-090704 | CC18: 290235.91 | CD18: 6 | CI18: =CI17+1 -> 6 | CJ18: INCREASE (DECREASE) NOI | CM18: =-CM15-CM17 -> -1199983.887 | CN18: 6 | CO18: CUSTOMER ACCTS | CP18: 12942747 | CQ18: 13248616 | CR18: 305869 | CS18: 6 | CT18: NON-UNION (EXECUTIVES) | CX18: 6 | CY18: APPLICABLE TO OPERATIONS @ | CZ18: 0.6056 | DB18: =ROUND(+CZ18*DB16,0) -> 13532440
A19: 8 | B19: 2010-05-01 | C19: 1764805.203 | D19: 1748090.295 | E19: -16714.90808 | F19: -15578 | H19: 7 | I19: REMOVE MERGER RATE CREDIT SCH 132 | K19: 6253914.312 | M19: 7 | N19: GREEN POWER - SCH 135/136 ELIMINATE UNDER EXPENSED | Q19: 394978.82 | R19: 7 | S19: DEFERRED FIT - CREDIT | U19: -15514213.63 | V19: 7 | Z19: 7 | AA19: ADMIN & GENERAL | AB19: 34160.19092 | AC19: 0 | AD19: -34160.19092 | AE19: 7 | AF19: DEPRECIATION EXPENSE | AG19: 10971542.56 | AH19: 9912384.517 | AI19: =AH19-AG19 -> -1059158.04 | AJ19: 7 | AO19: 7 | AP19: TEST PERIOD REVENUES | AR19: ='JHS-19'!AN21 -> 2274653391 | AS19: ='JHS-19'!AN19 -> 201262557 | AT19: ='JHS-19'!AN20 -> 30706332.76 | AU19: ='JHS-19'!AN18 -> 350182.38 | AV19: =AR19-AS19-AT19-AU19 -> 2042334319 | AX19: 7 | AY19: CUSTOMER SERVICE | AZ19: 79167 | BA19: 69617.89366 | BB19: -9549.106336 | BC19: 7 | BD19: INCREASE(DECREASE) NOI | BH19: =-BH15-BH17 -> -3359921.08 | BI19: 7 | BJ19: INCREASE(DECREASE) WUTC FILING FEE | BL19: =(BL17-BL18) -> 0 | BM19: 7 | BN19: INCREASE (DECREASE) NOI | BQ19: 33583.77649 | BV19: 7 | BW19: INCREASE (DECREASE) EXPENSE | BX19: =+BX17-BX18 -> -150575 | BY19: =+BX19 -> -150575 | BZ19: 7 | CA19: NET DEFERRED LOSSES PENDING APPROVAL | CC19: =SUM(CC17:CC18) -> 214018.96 | CD19: 7 | CE19: INCREASE (DECREASE) FIT @ | CF19: 0.35 | CH19: =-CF19*CH17 -> -67026.34143 | CN19: 7 | CO19: CUSTOMER SERVICE | CP19: 1146347 | CQ19: 1177753 | CR19: 31406 | CS19: 7 | CT19: INVESTMENT PLAN APPLICABLE TO MANAGEMENT | CV19: 132721.8984 | CX19: 7 | CY19: CHARGED TO EXPENSE DURING TEST YEAR | DB19: 13515093
A20: 9 | B20: 2010-06-01 | C20: 1618462.369 | D20: 1630729.652 | E20: 12267.2828 | F20: 11433 | H20: 8 | I20: REMOVE TENASKA REGULATORY ASSET TRACKER (SCH 133) | K20: =-32253105.2348128-2890382 -> -35143487.23 | M20: 8 | N20: REMOVE REC REVENUES - SCH 137 | Q20: -10990696.03 | R20: 8 | S20: ADDITIONAL DEFERRED CREDITS | U20: 0 | V20: 8 | W20: INCREASE (DECREASE) INCOME | Y20: =-Y18-X20 -> -151707704.7 | Z20: 8 | AA20: EXECUTIVE SALARY | AB20: 502917.2797 | AC20: 118832.6503 | AD20: -384084.6294 | AE20: 8 | AJ20: 8 | AK20: INCREASE (DECREASE) NOI | AN20: =-AN17-AN18 -> -725617.9198 | AO20: 8 | AX20: 8 | AY20: SALES | AZ20: 7752 | BA20: 6788.255027 | BB20: -963.7449726 | BI20: 8 | BV20: 8 | BZ20: 8 | CD20: 8 | CE20: INCREASE (DECREASE) NOI | CH20: =-CH17-CH19 -> -124477.4912 | CN20: 8 | CO20: SALES | CP20: 112249 | CQ20: 115580 | CR20: 3331 | CS20: 8 | CT20: RATE YEAR MANAGEMENT WAGE INCREASE | CU20: 0 | CV20: =+CV19*CU20 -> 0 | CX20: 8 | CY20: INCREASE(DECREASE) EXPENSE | DB20: =DB18-DB19 -> 17347
A21: 10 | B21: 2010-07-01 | C21: 1688022.392 | D21: 1697903.962 | E21: 9881.569834 | F21: 9210 | H21: 9 | I21: MISCELLANEOUS RESTATING ADJUSTMENT | K21: 1385859.886 | M21: 9 | N21: REMOVE OFFSET TO REDUCTION OF REC LIABILITY - SCH 137 | Q21: 10504775.03 | R21: 9 | S21: TOTAL RESTATED FIT | U21: =SUM(U16:U20) -> 44298647.2 | V21: 9 | Z21: 9 | AA21: BENEFITS ON THE ABOVE WAGE ADJUSTMENTS | AB21: 198811.6882 | AC21: 0 | AD21: -198811.6882 | AE21: 9 | AF21: INCREASE (DECREASE) EXPENSE | AI21: =AI19 -> -1059158.04 | AO21: 9 | AP21: PROFORMA BAD DEBT RATE | AV21: =AW17-'JHS-20'!BR30 -> 0.004444 | AX21: 9 | AY21: ADMIN. & GENERAL | AZ21: 1532695 | BA21: 1343052.705 | BB21: -189642.2948 | BI21: 9 | BJ21: INCREASE(DECREASE) EXPENSE | BL21: =BL19+BL15 -> 309198.4228 | BV21: 9 | BW21: 2005 AND 2007 PCORC EXPENSES TO BE NORMALIZED | BX21: 329000 | BZ21: 9 | CA21: NET GAIN (LINE 3 + LINE 7) | CC21: =CC15+CC19 -> -1501077.85 | CN21: 9 | CO21: ADMIN. & GENERAL | CP21: 22193516 | CQ21: 22842123 | CR21: 648607 | CS21: 9 | CT21: TOTAL COMPANY CONTRIBUTION FOR MANAGEMENT | CW21: =SUM(CV19:CV20) -> 132721.8984 | CX21: 9
A22: 11 | B22: 2010-08-01 | C22: 1703414.988 | D22: 1695905.814 | E22: -7509.174449 | F22: -6999 | H22: 10 | I22: RESTATING ADJUSTMENTS SALES TO CUSTOMERS | K22: =SUM(K15:K21) -> -6902213.592 | M22: 10 | N22: REMOVE OFFSET TO REDUCTION OF REC LIABILITY - PTC OFFSETS | Q22: 21591916 | R22: 10 | V22: 10 | W22: INCREASE (DECREASE) FIT @ | X22: =FIT -> 0.35 | Y22: =+Y20*FIT -> -53097696.64 | Z22: 10 | AA22: PAYROLL TAXES ON THE ABOVE WAGE ADJUSTMENTS | AB22: 29687.37412 | AC22: 1910.238608 | AD22: -27777.13551 | AE22: 10 | AO22: 10 | AP22: PROFORMA BAD DEBTS | AV22: =ROUND(AV19*AV21,0) -> 9076134 | AX22: 10 | AY22: TOTAL INCENTIVE/MERIT PAY | AZ22: =SUM(AZ14:AZ21) -> 5789566 | BA22: =SUM(BA14:BA21) -> 5104001.188 | BB22: =SUM(BB14:BB21) -> -685564.8121 | BI22: 10 | BV22: 10 | BZ22: 10 | CN22: 10 | CO22: TOTAL WAGE INCREASE | CP22: =SUM(CP14:CP21) -> 83833274 | CQ22: =SUM(CQ14:CQ21) -> 86018658 | CR22: =SUM(CR13:CR21) -> 2185384 | CS22: 10 | CX22: 10 | CY22: INCREASE(DECREASE) FIT @ | CZ22: =FIT -> 0.35 | DB22: =-ROUND(+DB20*CZ22,0) -> -6071
A23: 12 | B23: 2010-09-01 | C23: 1637493.102 | D23: 1642184.375 | E23: 4691.273164 | F23: 4372 | H23: 11 | M23: 11 | N23: TOTAL (INCREASE) DECREASE IN REVENUES | Q23: =SUM(Q14:Q22) -> 111267085.5 | R23: 11 | S23: FIT PER BOOKS: | V23: 11 | W23: INCREASE (DECREASE) NOI | Y23: =-Y22 -> 53097696.64 | Z23: 11 | AA23: ADJUST FERC LAND USE FEES | AB23: -315680.45 | AC23: 340290.55 | AD23: =AC23-AB23 -> 655971 | AE23: 11 | AF23: INCREASE(DECREASE) FIT @ | AH23: =FIT -> 0.35 | AI23: =-AI21*0.35 -> 370705.314 | AO23: 11 | AX23: 11 | BI23: 11 | BJ23: INCREASE(DECREASE) FIT @ | BK23: =FIT -> 0.35 | BL23: =ROUND(-BL21*BK23,0) -> -108219 | BV23: 11 | BW23: ANNUAL NORMALIZATION (LINE 9 ¸ 4 YEARS) | BX23: =BX21/4 -> 82250 | BZ23: 11 | CA23: ANNUAL AMORTIZATION (LINE 9 ÷ 36 MONHS) x 12 MONTHS | CC23: =CC21/36*12 -> -500359.2833 | CN23: 11 | CS23: 11 | CT23: IBEW | CX23: 11
A24: 13 | B24: 2010-10-01 | C24: 1814109.534 | D24: 1830542.794 | E24: 16433.25963 | F24: 15316 | H24: 12 | M24: 12 | R24: 12 | S24: CURRENTLY PAYABLE | T24: 16263334 | Z24: 12 | AA24: RECLASS FERC 557 | AB24: 0 | AC24: 1464898 | AD24: =AC24-AB24 -> 1464898 | AE24: 12 | AO24: 12 | AP24: UNCOLLECTIBLES CHARGED TO EXPENSE IN TEST YEAR | AV24: 11596412.02 | AX24: 12 | AY24: PAYROLL TAXES ASSOC WITH MERIT PAY | AZ24: 475542.5435 | BA24: 419231.7191 | BB24: =BA24-AZ24 -> -56310.82441 | BI24: 12 | BJ24: INCREASE(DECREASE) NOI | BL24: =-BL21-BL23 -> -200979.4228 | BV24: 12 | BW24: LESS TEST YEAR EXPENSE | BX24: 0 | BZ24: 12 | CN24: 12 | CO24: PAYROLL TAXES | CP24: 7347779.228 | CQ24: 7489825.228 | CR24: =CQ24-CP24 -> 142046 | CS24: 12 | CT24: INVESTMENT PLAN APPLICABLE TO IBEW | CV24: 1409135.523 | CX24: 12 | CY24: INCREASE(DECREASE) NOI | DB24: =-DB20-DB22 -> -11276
A25: 14 | B25: 2010-11-01 | C25: 2122228.038 | D25: 2059041.043 | E25: -63186.9954 | F25: -58890 | H25: 13 | I25: PROFORMA ADJUSTMENTS: | M25: 13 | N25: DECREASE REVENUE SENSITIVE ITEMS FOR DECREASE IN REVENUES: | R25: 13 | S25: DEFERRED FIT - DEBIT | T25: 205470963.6 | Z25: 13 | AA25: REMOVE NON-BUSINESS OR NON-UTILITY RELATED EXPENSES | AB25: 63989 | AC25: 47110 | AD25: =AC25-AB25 -> -16879 | AE25: 13 | AF25: INCREASE (DECREASE) NOI | AI25: =-AI21-AI23 -> 688452.726 | AO25: 13 | AP25: INCREASE (DECREASE) EXPENSE | AW25: =ROUND(AV22-AV24,0) -> -2520278 | AX25: 13 | AY25: INCREASE(DECREASE) EXPENSE | AZ25: =SUM(AZ22:AZ24) -> 6265108.543 | BA25: =SUM(BA22:BA24) -> 5523232.907 | BB25: =SUM(BB22:BB24) -> -741875.6365 | BV25: 13 | BW25: INCREASE (DECREASE) EXPENSE | BX25: =+BX23-BX24 -> 82250 | BY25: =+BX25 -> 82250 | BZ25: 13 | CA25: AMORTIZATION OF DEFERRED NET GAIN FOR TEST YEAR | CC25: -2082384.1 | CN25: 13 | CO25: TOTAL WAGES & TAXES | CP25: =SUM(CP22:CP24) -> 91181053.23 | CQ25: =SUM(CQ22:CQ24) -> 93508483.23 | CR25: =SUM(CR22:CR24) -> 2327430 | CS25: 13 | CT25: RATE YEAR IBEW WAGE INCREASE | CU25: 0.021938 | CV25: =+CV24*CU25 -> 30913.61511
A26: 15 | B26: 2010-12-01 | C26: 2328202.876 | D26: 2397719.324 | E26: 69516.44799 | F26: 64789 | H26: 14 | I26: RECLASS OF CUSTOMERS BETWEEN TARIFFS | K26: -436486.0154 | M26: 14 | N26: BAD DEBTS | P26: ='JHS-22'!$M$13 -> 0.004444 | Q26: =-$Q$23*P26 -> -494470.9282 | R26: 14 | S26: DEFERRED FIT - CREDIT | T26: -237907201.1 | Z26: 14 | AA26: INCREASE (DECREASE) IN EXPENSE | AB26: =SUM(AB14:AB25) -> -4656006.119 | AC26: =SUM(AC14:AC25) -> 1973041.439 | AD26: =SUM(AD14:AD25) -> 6629047.558 | AO26: 14 | AX26: 14 | BV26: 14 | BZ26: 14 | CN26: 14 | CS26: 14 | CT26: TOTAL COMPANY CONTRIBUTION FOR IBEW | CW26: =SUM(CV24:CV25) -> 1440049.138
A27: 16 | C27: =ROUND(SUM(C15:C26),0) -> 22594274 | D27: =ROUND(SUM(D15:D26),0) -> 22846330 | E27: =ROUND(SUM(E15:E26),0) -> 252056 | F27: =ROUND(SUM(F15:F26),0) -> 234916 | H27: 15 | I27: PROFORMA ADJUSTMENTS SALES TO CUSTOMERS | K27: =SUM(K25:K26) -> -436486.0154 | M27: 15 | N27: ANNUAL FILING FEE | P27: ='JHS-22'!$M$14 -> 0.002 | Q27: =-$Q$23*P27 -> -222534.1711 | R27: 15 | S27: DEFERRED FIT - INV TAX CREDIT, NET OF AMORT. | Z27: 15 | AO27: 15 | AP27: INCREASE (DECREASE) FIT | AV27: 0.35 | AW27: =ROUND(-AW25*AV27,0) -> 882097 | AX27: 15 | AY27: INCREASE (DECREASE) OPERATING EXPENSE | BB27: =BB25 -> -741875.6365 | BV27: 15 | BZ27: 15 | CA27: INCREASE (DECREASE) EXPENSE | CC27: =CC23-CC25 -> 1582024.817 | CN27: 15 | CO27: INCREASE (DECREASE) OPERATING EXPENSE | CR27: =CR25 -> 2327430 | CS27: 15
A28: 17 | E28: KWH | H28: 16 | M28: 16 | N28: STATE UTILITY TAX | P28: ='JHS-22'!$M$15 -> 0.038558 | Q28: =-$Q$23*P28 -> -4290236.284 | R28: 16 | S28: TOTAL CHARGED TO EXPENSE | U28: =SUM(T24:T27) -> -16172903.48 | Z28: 16 | AA28: INCREASE(DECREASE) OPERATING EXPENSE | AD28: =AD26 -> 6629047.558 | AO28: 16 | AP28: INCREASE (DECREASE) NOI | AW28: =-AW25-AW27 -> 1638181 | AX28: 16 | BV28: 16 | BW28: TOTAL INCREASE (DECREASE) EXPENSE | BY28: =+BY19+BY25 -> -68325 | BZ28: 16 | CN28: 16 | CO28: INCREASE (DECREASE) FIT @ 35% | CR28: =-CR27*0.35 -> -814600.5 | CS28: 16 | CT28: UA
A29: 18 | B29: REVENUE ADJUSTMENT: | C29: SCHEDULE 7 | E29: 133624643 | F29: 13759867 | H29: 17 | I29: TOTAL INCREASE (DECREASE) SALES TO CUSTOMERS | L29: =K22+K27 -> -7338699.608 | M29: 17 | N29: TOTAL | Q29: =SUM(Q26:Q28) -> -5007241.384 | R29: 17 | T29: =IF(ROUND(U28,0)=ROUND(('JHS-19'!C45+'JHS-19'!C46),0),"",U28-('JHS-19'!C45+'JHS-19'!C46)) ->  | Z29: 17 | AA29: INCREASE(DECREASE) FIT @ | AC29: =FIT -> 0.35 | AD29: =-ROUND(AC29*AD28,0) -> -2320167 | AX29: 17 | AY29: INCREASE (DECREASE) FIT @ | BA29: =FIT -> 0.35 | BB29: =ROUND(-BB27*BA29,0) -> 259656 | BV29: 17 | BZ29: 17 | CA29: INCREASE (DECREASE) FIT @ 35% | CC29: =-CC27*0.35 -> -553708.6858 | CN29: 17 | CO29: INCREASE (DECREASE) NOI | CR29: =-CR27-CR28 -> -1512829.5 | CS29: 17 | CT29: INVESTMENT PLAN APPLICABLE TO UA | CV29: 936138.7432
A30: 19 | C30: SCHEDULE 24 | E30: 34368344.52 | F30: 2990016.253 | H30: 18 | M30: 18 | R30: 18 | S30: INCREASE(DECREASE) FIT | U30: =U16-T24 -> -81996936.2 | Z30: 18 | AX30: 18 | AY30: INCREASE (DECREASE) NOI | BB30: =-BB27-BB29 -> 482219.6365 | BV30: 18 | BW30: INCREASE(DECREASE) FIT @ | BX30: 0.35 | BY30: =-BY28*BX30 -> 23913.75 | BZ30: 18 | CS30: 18 | CT30: RATE YEAR UA WAGE INCREASE | CU30: 0.022625 | CV30: =+CV29*CU30 -> 21180.13906
A31: 20 | C31: SCHEDULE 25 | E31: 34964493.97 | F31: 2241783.495 | H31: 19 | I31: SALES FOR RESALE - SMALL FIRM AND SPECIAL CONTRACT | M31: 19 | N31: REMOVE EXPENSES ASSOCIATED WITH RIDERS | R31: 19 | S31: INCREASE(DECREASE) DEFERRED FIT | U31: =U18+U19+U20-T25-T26-T27 -> 142468486.9 | Z31: 19 | AA31: INCREASE(DECREASE) NOI | AD31: =-AD28-AD29 -> -4308880.558 | BV31: 19 | BW31: INCREASE(DECREASE) NOI | BY31: =-BY28-BY30 -> 44411.25 | BZ31: 19 | CA31: INCREASE (DECREASE) NOI | CC31: =-CC27-CC29 -> -1028316.131 | CS31: 19 | CT31: TOTAL COMPANY CONTRIBUTION FOR UA | CW31: =SUM(CV29:CV30) -> 957318.8822
A32: 21 | C32: SCHEDULE 26 | E32: 15451095.21 | F32: 951926.5246 | H32: 20 | I32: MISCELLANEOUS RESTATING ADJUSTMENT | K32: -15398 | M32: 20 | N32: REMOVE CONSERVATION RIDER - SCHEDULE 120 | Q32: -75334320 | R32: 20 | S32: INCREASE(DECREASE) NOI | U32: =-SUM(U30:U31) -> -60471550.68 | CS32: 20
A33: 22 | C33: SCHEDULE 29 | E33: -107334.9306 | F33: -5741.282966 | H33: 21 | I33: RECLASS SPECIAL CONTRACT REVENUE FROM OTHER OPERATING | K33: 879870.14 | M33: 21 | N33: REMOVE MUNICIPAL TAXES - SCHEDULE 81 | Q33: -72142816.26 | R33: 21 | CS33: 21 | CT33: TOTAL
A34: 23 | C34: SCHEDULE 31 | E34: 9574375.759 | F34: 570154.0765 | H34: 22 | M34: 22 | N34: REMOVE LOW INCOME AMORTIZATION - SCHEDULE 129 | Q34: -10768145.59 | R34: 22 | CS34: 22 | CT34: TOTAL PROFORMA COSTS (LN 4 + LN 9 + LN 14 + LN 19) | CW34: =+CW16+CW26+CW31+CW21 -> 8089185.688
A35: 24 | C35: SCHEDULE 43 | E35: 3801196.819 | F35: 212912.6362 | H35: 23 | I35: TOTAL INCREASE (DECREASE) SALES FOR RESALE - SMALL FIRM | L35: =SUM(K32:K33) -> 864472.14 | M35: 23 | N35: REMOVE RESIDENTIAL EXCHANGE - SCH 194 | Q35: 75109150.28 | R35: 23 | S35: (NOTE 1) | CS35: 23 | CT35: PRO FORMA COSTS APPLICABLE TO OPERATIONS | CU35: 0.6056 | CW35: =+CW34*CU35 -> 4898810.853
A36: 25 | C36: SCHEDULE 40 - MED SEC VOLTAGE | H36: 24 | M36: 24 | N36: GREEN POWER - SCH 135/136 (TAGS ELIM IN PAGE 4.03) | Q36: -990957.02 | R36: 24 | S36: DOES NOT INCLUDE A DEDUCTION FOR INTEREST AS THE TAX EFFECT FOR TOTAL | CS36: 24 | CT36: CHARGED TO EXPENSE FOR YEAR ENDED 12/31/10 | CW36: =(+CV14+CV24+CV29+CV19)*CU35 -> 4770159.18
A37: 26 | C37: SCHEDULE 40 - LARGE SEC VOLTAGE | E37: 3151344.266 | F37: 172414.3392 | H37: 25 | I37: OTHER OPERATING REVENUES: | M37: 25 | N37: GREEN POWER - SCH 135/136 BENEFITS PORTION OF ADMIN | Q37: -53247 | R37: 25 | S37: PROFORMA INTEREST IS CALCULATED IN ADJUSTMENT 21.05 | CS37: 25 | CT37: INCREASE (DECREASE) EXPENSE | CW37: =CW35-CW36 -> 128651.6732
A38: 27 | C38: SCHEDULE 40 - PRIMARY VOLTAGE | H38: 26 | I38: POLE ATTACHMENT REVENUES | K38: -20001.48 | M38: 26 | N38: GREEN POWER - SCH 135/136 TAXES PORTION OF ADMIN | Q38: -16138.7 | CS38: 26
A39: 28 | C39: LIGHTING | H39: 27 | I39: RECLASS TRANSPORTATION IMBALANCE REVENUE FROM SALES TO CUSTOMERS | K39: =-K18 -> 1936015 | M39: 27 | N39: REMOVE EXPENSE RECOGNIZED FOR FUTURE PTC LIABILITY | Q39: -21591916 | CS39: 27 | CT39: INCREASE (DECREASE) FIT @ | CU39: =FIT -> 0.35 | CW39: =ROUND(-CW37*CU39,0) -> -45028
A40: 29 | C40: FIRM RESALE | E40: 88247.90888 | F40: 3093 | H40: 28 | I40: RECLASS SPECIAL CONTRACT REVENUE TO SALES TO CUSTOMERS | K40: =-K33 -> -879870.14 | M40: 28 | N40: TOTAL INCREASE (DECREASE) EXPENSE | Q40: =SUM(Q32:Q39) -> -105788390.3 | CS40: 28 | CT40: INCREASE (DECREASE) NOI | CW40: =-CW37-CW39 -> -83623.67319
A41: 30 | B41: INCREASE (DECREASE) SALES TO CUSTOMERS | E41: =SUM(E29:E40) -> 234916406.5 | G41: =SUM(F29:F40) -> 20896426.04 | H41: 29 | M41: 29
A42: 31 | H42: 30 | I42: TOTAL INCREASE (DECREASE) OTHER OPERATING REVENUE | L42: =SUM(K38:K41) -> 1036143.38 | M42: 30 | N42: INCREASE (DECREASE) OPERATING INCOME BEFORE FIT | Q42: =-Q23-Q29-Q40 -> -471453.871
A43: 32 | B43: UNCOLLECTIBLES @ | E43: =+'JHS-22'!M13 -> 0.004444 | F43: =ROUND(G41*E43,0) -> 92864 | H43: 31 | M43: 31 | N43: INCREASE (DECREASE) FIT | Q43: =Q42*0.35 -> -165008.8548
A44: 33 | B44: ANNUAL FILING FEE @ | E44: =+'JHS-22'!M14 -> 0.002 | F44: =ROUND(G41*E44,0) -> 41793 | H44: 32 | I44: TOTAL INCREASE (DECREASE) REVENUES | L44: =SUM(L15:L43) -> -5438084.088 | M44: 32 | N44: INCREASE (DECREASE) NOI | Q44: =Q42-Q43 -> -306445.0161
A45: 31 | B45: INCREASE (DECREASE) EXPENSES | G45: =SUM(F43:F44) -> 134657 | H45: 33
A46: =+A45+1 -> 32 | H46: 34 | I46: OPERATING EXPENSES:
A47: 33 | B47: STATE UTILITY TAX @ | E47: =+'JHS-22'!M15 -> 0.038558 | F47: =ROUND(G41*E47,0) -> 805724 | H47: 35 | I47: REMOVE EXPENSE ASSOCIATED WITH FUTURE PTC LIABILITY | L47: -7273471
A48: 34 | B48: INCREASE (DECREASE) TAXES OTHER | G48: =SUM(F47:F47) -> 805724 | H48: 36
A49: 35 | H49: 37 | I49: UNCOLLECTIBLES @ | J49: =+'JHS-22'!M13 -> 0.004444 | K49: =+L44*J49 -> -24166.84569
A50: 36 | B50: INCREASE (DECREASE) INCOME | G50: =G41-G45-G48 -> 19956045.04 | H50: 38 | I50: ANNUAL FILING FEE @ | J50: =+'JHS-22'!M14 -> 0.002 | K50: =+L44*J50 -> -10876.16818
A51: 37 | H51: 39 | I51: INCREASE (DECREASE) EXPENSES | L51: =SUM(K49:K50) -> -35043.01386
A52: 38 | B52: INCREASE (DECREASE) FIT @ | E52: =FIT -> 0.35 | G52: =ROUND(G50*E52,0) -> 6984616 | H52: 40
A53: 39 | B53: INCREASE (DECREASE) NOI | G53: =G50-G52 -> 12971429.04 | H53: 41 | I53: STATE UTILITY TAX @ | J53: =+'JHS-22'!M15 -> 0.038558 | K53: =+L44*J53 -> -209681.6463
H54: 42 | I54: INCREASE (DECREASE) TAXES OTHER | L54: =SUM(K53:K53) -> -209681.6463
H55: 43
H56: 44 | I56: INCREASE (DECREASE) INCOME | L56: =L44-L47-L51-L54 -> 2080111.572
H57: 45
H58: 46 | I58: INCREASE (DECREASE) FIT @ | J58: =FIT -> 0.35 | L58: =ROUND(L56*J58,0) -> 728039
H59: 47 | I59: INCREASE (DECREASE) NOI | L59: =L56-L58 -> 1352072.572

Sheet JHS-22
C2: =DocketNumber -> Docket Number UE-111048 | H2: =DocketNumber -> Docket Number UE-111048 | M2: =DocketNumber -> Docket Number UE-111048
C3: =Exhibit_No._____JHS_22 -> Exhibit No. ___ (JHS-22) | H3: =Exhibit_No._____JHS_22 -> Exhibit No. ___ (JHS-22) | M3: Exhibit No. ___ (JHS-22)
C4: 22.01 | H4: =C4+0.01 -> 22.02 | M4: =H4+0.01 -> 22.03
A5: PUGET SOUND ENERGY-ELECTRIC | D5: PUGET SOUND ENERGY-ELECTRIC | I5: PUGET SOUND ENERGY-ELECTRIC
A6: GENERAL RATE INCREASE | D6: PRO FORMA COST OF CAPITAL | I6: CONVERSION FACTOR
A7: =TESTYEAR -> FOR THE TWELVE MONTHS ENDED DECEMBER 31, 2010 | D7: =TESTYEAR -> FOR THE TWELVE MONTHS ENDED DECEMBER 31, 2010 | I7: =TESTYEAR -> FOR THE TWELVE MONTHS ENDED DECEMBER 31, 2010
A8: GENERAL RATE INCREASE | D8: GENERAL RATE INCREASE | I8: GENERAL RATE INCREASE
G9: REVISED | H9: REVISED
A10: LINE | C10: REVISED | D10: LINE | F10: PRO FORMA | H10: COST OF | I10: LINE
A11: NO. | B11: DESCRIPTION | D11: NO. | E11: DESCRIPTION | F11: CAPITAL % | G11: COST % | H11: CAPITAL | I11: NO. | J11: DESCRIPTION | M11: RATE
A13: 1 | B13: RATE BASE | C13: ='JHS-19'!AP51 -> 4893796925 | D13: 1 | E13: SHORT TERM DEBT | F13: 0.04 | G13: 0.0268 | H13: =ROUND(F13*G13,4) -> 0.0011 | I13: 1 | J13: BAD DEBTS | M13: ='JHS-21'!AW17 -> 0.004444
A14: =A13+1 -> 2 | B14: RATE OF RETURN | C14: =H17 -> 0.0826 | D14: 2 | E14: LONG TERM DEBT | F14: =F17-F13-F15-F16 -> 0.48 | G14: 0.0622 | H14: =ROUND(F14*G14,4) -> 0.0299 | I14: 2 | J14: ANNUAL FILING FEE | M14: 0.002
A15: 3 | D15: 3 | E15: PREFERRED | F15: 0 | G15: 0 | H15: =ROUND(F15*G15,4) -> 0 | I15: 3 | J15: ="STATE UTILITY TAX ( "&L15*100&"% - ( LINE 1 * "&L15*100&"% ) )" -> STATE UTILITY TAX ( 3.873% - ( LINE 1 * 3.873% ) ) | L15: 0.03873 | M15: =ROUND(L15-(L15*M13),6) -> 0.038558
A16: 4 | B16: OPERATING INCOME REQUIREMENT | C16: =+C13*C14 -> 404227626 | D16: 4 | E16: EQUITY | F16: 0.48 | G16: 0.1075 | H16: =ROUND(F16*G16,4) -> 0.0516 | I16: 4
A17: 5 | D17: 5 | E17: TOTAL | F17: 1 | H17: =SUM(H13:H16) -> 0.0826 | I17: 5 | J17: SUM OF TAXES OTHER | M17: =ROUND(SUM(M13:M15),6) -> 0.045002
A18: 6 | B18: PRO FORMA OPERATING INCOME | C18: ='JHS-19'!AM49 -> 326017732.5 | D18: 6 | I18: 6
A19: 7 | B19: OPERATING INCOME DEFICIENCY | C19: =+C16-C18+0.5 -> 78209893.98 | D19: 7 | E19: AFTER TAX SHORT TERM DEBT ( (LINE 1)* 65%) | F19: =F13 -> 0.04 | G19: =G13*0.65 -> 0.01742 | H19: =ROUND(H13*0.65,4) -> 0.0007 | I19: 7 | J19: ="CONVERSION FACTOR EXCLUDING FEDERAL INCOME TAX ( 1 - LINE "&$I$17&" )" -> CONVERSION FACTOR EXCLUDING FEDERAL INCOME TAX ( 1 - LINE 5 ) | M19: =ROUND(1-M17,6) -> 0.954998
A20: 8 | D20: 8 | E20: AFTER TAX LONG TERM DEBT ( (LINE 2)* 65%) | F20: =F14 -> 0.48 | G20: =G14*0.65 -> 0.04043 | H20: =ROUND(H14*0.65,4) -> 0.0194 | I20: 8 | J20: ="FEDERAL INCOME TAX ( LINE "&I19&" * "&FIT*100&"% )" -> FEDERAL INCOME TAX ( LINE 7 * 35% ) | L20: 0.35 | M20: =ROUND((M19)*FIT,6) -> 0.334249
A21: 9 | B21: CONVERSION FACTOR | C21: =+M21 -> 0.620749 | D21: 9 | E21: PREFERRED | F21: =F15 -> 0 | G21: =G15 -> 0 | H21: =ROUND(F21*G21,4) -> 0 | I21: 9 | J21: ="CONVERSION FACTOR INCL FEDERAL INCOME TAX ( LINE "&I19&" - LINE "&I20&" ) " -> CONVERSION FACTOR INCL FEDERAL INCOME TAX ( LINE 7 - LINE 8 ) | M21: =M19-M20 -> 0.620749
A22: 10 | B22: REVENUE REQUIREMENT DEFICIENCY | C22: =ROUND(+C19/C21,0) -> 125992783 | D22: 10 | E22: EQUITY | F22: =F16 -> 0.48 | G22: =G16 -> 0.1075 | H22: =ROUND(F22*G22,4) -> 0.0516
A23: 11 | B23: LARGE FIRM WHOLESALE | C23: 427352 | D23: 11 | E23: TOTAL AFTER TAX COST OF CAPITAL | F23: =SUM(F19:F22) -> 1 | H23: =SUM(H19:H22) -> 0.0717
A24: 12 | B24: SALES FROM RESALE-FIRM | C24: 164110
A25: 13 | B25: REVENUE REQUIREMENT DEFICIENCY | C25: =+C22-C24-C23 -> 125401321

Sheet JHS-23
L1: Exhibit No. ___(JHS-23)
A2: COMPARISON OF PSE REBUTTAL AND STAFF RESPONSE (ELECTRIC)
D4: PSE Rebuttal | G4: Staff Response Filing | J4: Staff > PSE / (Staff < PSE)
A5: Adj No | B5: Description | C5: Contested | D5: NOI | E5: Rate Base | F5: Rev Req | G5: NOI | H5: Rate Base | I5: Rev Req | J5: NOI | K5: Rate Base | L5: Rev Req
A6: (a) | B6: (b) | C6: (c) | D6: (d) | E6: (e) | F6: (f) | G6: (g) | H6: (h) | I6: (i) | J6: (j) | K6: (k) | L6: (l)
B8: Actual Results of Operations | D8: ='JHS-19'!$C49 -> 117427311.3 | E8: ='JHS-19'!$C51 -> 4100870913 | F8: =((E8*'JHS-22'!$H$17)-D8)/'JHS-22'!$M$21 -> 356512255.5 | G8: 117427311.3 | H8: 4100870913 | I8: =((H8*0.0759)-G8)/'JHS-22'!$M$21 -> 312249864.2 | J8: =G8-D8 -> 0 | K8: =H8-E8 -> -0.06237697601 | L8: =I8-F8 -> -44262391.27
A9: 21.01 | B9: Power Costs | C9: C | D9: ='JHS-19'!$D49 -> 111802837.6 | E9: ='JHS-19'!$D51 -> 0 | F9: =((E9*'JHS-22'!$H$17)-D9)/'JHS-22'!$M$21 -> -180109573.5 | G9: 115317944.3 | H9: 0 | I9: =((H9*0.0759)-G9)/'JHS-22'!$M$21 -> -185772259.4 | J9: 3515106.614 | K9: 0 | L9: =I9-F9 -> -5662685.907
A10: 21.02 | B10: Lower Snake River | C10: C | D10: ='JHS-19'!$E49 -> -37275750.46 | E10: ='JHS-19'!$E51 -> 664324545.6 | F10: =((E10*'JHS-22'!$H$17)-D10)/'JHS-22'!$M$21 -> 148448016.7 | G10: -35151089 | H10: 644066095.1 | I10: =((H10*0.0759)-G10)/'JHS-22'!$M$21 -> 135377915.4 | J10: 2124661.461 | K10: -20258450.51 | L10: -13070101.3
A11: 21.03 | B11: LSR Ppd Transm Dep | D11: ='JHS-19'!$F49 -> -726665.3242 | E11: ='JHS-19'!$F51 -> 110846093.2 | F11: =((E11*'JHS-22'!$H$17)-D11)/'JHS-22'!$M$21 -> 15920368.17 | G11: -726665.6207 | H11: 110846093.2 | I11: =((H11*0.0759)-G11)/'JHS-22'!$M$21 -> 14723961.05 | J11: -0.2965000002 | K11: 0 | L11: -1196407.128
A12: 21.04 | B12: Mt Electric Energy Tax | D12: ='JHS-19'!$G49 -> -103078.9202 | E12: ='JHS-19'!$G51 -> 0 | F12: =((E12*'JHS-22'!$H$17)-D12)/'JHS-22'!$M$21 -> 166055.7169 | G12: -100185.3683 | H12: 0 | I12: =((H12*0.0759)-G12)/'JHS-22'!$M$21 -> 161394.329 | J12: 2893.551863 | K12: 0 | L12: -4661.387876
A13: 21.05 | B13: Wild Horse Solar | D13: ='JHS-19'!$H49 -> 179072.66 | E13: ='JHS-19'!$H51 -> -3370636 | F13: =((E13*'JHS-22'!$H$17)-D13)/'JHS-22'!$M$21 -> -736992.2362 | G13: 179072.66 | H13: -3370636 | I13: =((H13*0.0759)-G13)/'JHS-22'!$M$21 -> -700611.5715 | J13: 0 | K13: 0 | L13: 36380.66465
A14: 21.06 | B14: Asc 815 (Prev. SFAS 133) | D14: ='JHS-19'!$I49 -> 108519513 | E14: ='JHS-19'!$I51 -> 0 | F14: =((E14*'JHS-22'!$H$17)-D14)/'JHS-22'!$M$21 -> -174820278.4 | G14: 108519513 | H14: 0 | I14: =((H14*0.0759)-G14)/'JHS-22'!$M$21 -> -174820278.4 | J14: 0 | K14: 0 | L14: 0
A15: 21.07 | B15: Storm Damage | C15: C | D15: ='JHS-19'!$J49 -> 1349514.236 | E15: ='JHS-19'!$J51 -> 0 | F15: =((E15*'JHS-22'!$H$17)-D15)/'JHS-22'!$M$21 -> -2174009.521 | G15: 2107628.353 | H15: 0 | I15: =((H15*0.0759)-G15)/'JHS-22'!$M$21 -> -3395298.829 | J15: 758114.1165 | K15: 0 | L15: -1221289.308
A16: 21.08 | B16: Remove Tenaska | D16: ='JHS-19'!$K49 -> 30284100 | E16: ='JHS-19'!$K51 -> -56496129.25 | F16: =((E16*'JHS-22'!$H$17)-D16)/'JHS-22'!$M$21 -> -56304046.04 | G16: 30284100 | H16: -56496129.25 | I16: =((H16*0.0759)-G16)/'JHS-22'!$M$21 -> -55694260.02 | J16: 0 | K16: 0 | L16: 609786.0262
A17: 21.09 | B17: Chelan Payments | D17: ='JHS-19'!$L49 -> -4607242.589 | E17: ='JHS-19'!$L51 -> 135630302.2 | F17: =((E17*'JHS-22'!$H$17)-D17)/'JHS-22'!$M$21 -> 25469723.75 | G17: -4607242.589 | H17: 135630302.2 | I17: =((H17*0.0759)-G17)/'JHS-22'!$M$21 -> 24005809.96 | J17: 0 | K17: 0 | L17: -1463913.795
A18: 21.1 | B18: Regulatory Assets and Liabilities | C18: C | D18: ='JHS-19'!$M49 -> 3683316.256 | E18: ='JHS-19'!$M51 -> -19546417.71 | F18: =((E18*'JHS-22'!$H$17)-D18)/'JHS-22'!$M$21 -> -8534609.574 | G18: =1374710.41171862-G20-G21 -> 4410066.355 | H18: =-11625468.9585773-H20-H21 -> -21539981.76 | I18: =((H18*0.0759)-G18)/'JHS-22'!$M$21 -> -9738156.599 | J18: 726750.0991 | K18: -1993564.055 | L18: -1203547.025
A19: 21.11 | B19: Production Adjustment | D19: ='JHS-19'!$N49 -> 2330021.15 | E19: ='JHS-19'!$N51 -> -49954915 | F19: =((E19*'JHS-22'!$H$17)-D19)/'JHS-22'!$M$21 -> -10400817.61 | G19: 2224593.299 | H19: -49421747 | I19: =((H19*0.0759)-G19)/'JHS-22'!$M$21 -> -9626602.533 | J19: -105427.851 | K19: 533168 | L19: 774215.0735
A20: 21.12 | B20: LSR Deferral | C20: C | D20: ='JHS-19'!O49 -> -3772212.699 | E20: ='JHS-19'!O51 -> 13105765.45 | F20: =((E20*'JHS-22'!$H$17)-D20)/'JHS-22'!$M$21 -> 7820792.181 | G20: =-5616071.97393617*0.65 -> -3650446.783 | H20: 12682421.58 | I20: =((H20*0.0759)-G20)/'JHS-22'!$M$21 -> 7431413.633 | J20: 121765.9162 | K20: -423343.8663 | L20: =I20-F20 -> -389378.5477
A21: Staff | B21: REC Liability | F21: =((E21*'JHS-22'!$H$17)-D21)/'JHS-22'!$M$21 -> 0 | G21: =946293.6*0.65 -> 615090.84 | H21: -2767908.78 | I21: =((H21*0.0759)-G21)/'JHS-22'!$M$21 -> -1329321.701 | J21: 615090.84 | K21: -2767908.78 | L21: =I21-F21 -> -1329321.701
A22: 22.01 | B22: Temperature Normalization | D22: ='JHS-19'!$P49 -> 12971429.04 | E22: ='JHS-19'!$P51 -> 0 | F22: =((E22*'JHS-22'!$H$17)-D22)/'JHS-22'!$M$21 -> -20896415.53 | G22: 12971429.04 | H22: 0 | I22: =((H22*0.0759)-G22)/'JHS-22'!$M$21 -> -20896415.53 | J22: 0 | K22: 0 | L22: 0
A23: 22.02 | B23: Revenues & Expenses | D23: ='JHS-19'!$Q49 -> 1352072.572 | E23: ='JHS-19'!$Q51 -> 0 | F23: =((E23*'JHS-22'!$H$17)-D23)/'JHS-22'!$M$21 -> -2178130.891 | G23: 1490395.048 | H23: 0 | I23: =((H23*0.0759)-G23)/'JHS-22'!$M$21 -> -2400962.463 | J23: 138322.4755 | K23: 0 | L23: -222831.5719
A24: 22.03 | B24: Pass-Through Revs. & Exps. | D24: ='JHS-19'!$R49 -> -306445.0161 | E24: ='JHS-19'!$R51 -> 0 | F24: =((E24*'JHS-22'!$H$17)-D24)/'JHS-22'!$M$21 -> 493669.7701 | G24: -306445.0161 | H24: 0 | I24: =((H24*0.0759)-G24)/'JHS-22'!$M$21 -> 493669.7701 | J24: 0 | K24: 0 | L24: 0
A25: 22.04 | B25: Federal Income Tax | C25: C | D25: ='JHS-19'!$S49 -> -60471550.68 | E25: ='JHS-19'!$S51 -> 0 | F25: =((E25*'JHS-22'!$H$17)-D25)/'JHS-22'!$M$21 -> 97417073.05 | G25: -60471550.68 | H25: -41414322 | I25: =((H25*0.0759)-G25)/'JHS-22'!$M$21 -> 92353275.87 | J25: 0 | K25: -41414322 | L25: -5063797.187
A26: 22.05 | B26: Tax Benefit of Pro Forma Interest | D26: ='JHS-19'!$T49 -> 53097696.64 | E26: ='JHS-19'!$T51 -> 0 | F26: =((E26*'JHS-22'!$H$17)-D26)/'JHS-22'!$M$21 -> -85538110.63 | G26: 54026841.81 | H26: 0 | I26: =((H26*0.0759)-G26)/'JHS-22'!$M$21 -> -87034923.64 | J26: 929145.1778 | K26: 0 | L26: -1496813.008
A27: 22.06 | B27: Operating Expenses | C27: C | D27: ='JHS-19'!$U49 -> -4308880.558 | E27: ='JHS-19'!$U51 -> 0 | F27: =((E27*'JHS-22'!$H$17)-D27)/'JHS-22'!$M$21 -> 6941421.666 | G27: -4219510.908 | H27: 0 | I27: =((H27*0.0759)-G27)/'JHS-22'!$M$21 -> 6797450.995 | J27: 89369.65032 | K27: 0 | L27: -143970.6714
A28: 22.07 | B28: General Plant Depreciation | D28: ='JHS-19'!$V49 -> 688452.726 | E28: ='JHS-19'!$V51 -> -233768.7201 | F28: =((E28*'JHS-22'!$H$17)-D28)/'JHS-22'!$M$21 -> -1140174.245 | G28: 688452.726 | H28: -233768.7201 | I28: =((H28*0.0759)-G28)/'JHS-22'!$M$21 -> -1137651.083 | J28: 0 | K28: 0 | L28: 2523.16222
A29: 22.08 | B29: Normalize Inj & Dmgs | D29: ='JHS-19'!$W49 -> -725617.9198 | E29: ='JHS-19'!$W51 -> 0 | F29: =((E29*'JHS-22'!$H$17)-D29)/'JHS-22'!$M$21 -> 1168939.329 | G29: -725617.9198 | H29: 0 | I29: =((H29*0.0759)-G29)/'JHS-22'!$M$21 -> 1168939.329 | J29: 0 | K29: 0 | L29: 0
A30: 22.09 | B30: Bad Debts | D30: ='JHS-19'!$X49 -> 1638181 | E30: ='JHS-19'!$X51 -> 0 | F30: =((E30*'JHS-22'!$H$17)-D30)/'JHS-22'!$M$21 -> -2639039.29 | G30: 1638181 | H30: 0 | I30: =((H30*0.0759)-G30)/'JHS-22'!$M$21 -> -2639039.29 | J30: 0 | K30: 0 | L30: 0
A31: 22.1 | B31: Incentive Pay | C31: C | D31: ='JHS-19'!$Y49 -> 482219.6365 | E31: ='JHS-19'!$Y51 -> 0 | F31: =((E31*'JHS-22'!$H$17)-D31)/'JHS-22'!$M$21 -> -776835.1403 | G31: 2277269.943 | H31: 0 | I31: =((H31*0.0759)-G31)/'JHS-22'!$M$21 -> -3668584.152 | J31: 1795050.307 | K31: 0 | L31: -2891749.011
A32: 22.11 | B32: Property Taxes | C32: C | D32: ='JHS-19'!$Z49 -> -3359921.08 | E32: ='JHS-19'!$Z51 -> 0 | F32: =((E32*'JHS-22'!$H$17)-D32)/'JHS-22'!$M$21 -> 5412688.671 | G32: -474213.58 | H32: 0 | I32: =((H32*0.0759)-G32)/'JHS-22'!$M$21 -> 763937.7268 | J32: 2885707.5 | K32: 0 | L32: -4648750.944
A33: 22.12 | B33: Excise Tax & Filing Fee | D33: ='JHS-19'!$AA49 -> -200979.4228 | E33: ='JHS-19'!$AA51 -> 0 | F33: =((E33*'JHS-22'!$H$17)-D33)/'JHS-22'!$M$21 -> 323769.2252 | G33: -200979.4228 | H33: 0 | I33: =((H33*0.0759)-G33)/'JHS-22'!$M$21 -> 323769.2252 | J33: 0 | K33: 0 | L33: 0
A34: 22.13 | B34: D&O Insurance | C34: C | D34: ='JHS-19'!$AB49 -> 33583.77649 | E34: ='JHS-19'!$AB51 -> 0 | F34: =((E34*'JHS-22'!$H$17)-D34)/'JHS-22'!$M$21 -> -54102.02271 | G34: 77591.62034 | H34: 0 | I34: =((H34*0.0759)-G34)/'JHS-22'!$M$21 -> -124996.7706 | J34: 44007.84384 | K34: 0 | L34: -70894.74787
A35: 22.14 | B35: Interest on Cust Deposits | D35: ='JHS-19'!$AC49 -> -47149 | E35: ='JHS-19'!$AC51 -> 0 | F35: =((E35*'JHS-22'!$H$17)-D35)/'JHS-22'!$M$21 -> 75955.01563 | G35: -47149 | H35: 0 | I35: =((H35*0.0759)-G35)/'JHS-22'!$M$21 -> 75955.01563 | J35: 0 | K35: 0 | L35: 0
A36: 22.15 | B36: Rate Case Expenses | C36: C | D36: ='JHS-19'!$AD49 -> 44411.25 | E36: ='JHS-19'!$AD51 -> 0 | F36: =((E36*'JHS-22'!$H$17)-D36)/'JHS-22'!$M$21 -> -71544.61787 | G36: 0 | H36: 0 | I36: =((H36*0.0759)-G36)/'JHS-22'!$M$21 -> 0 | J36: -44411.25 | K36: 0 | L36: 71544.61787
A37: 22.16 | B37: Deferred G/L on Property Sales | D37: ='JHS-19'!$AE49 -> -1028316.131 | E37: ='JHS-19'!$AE51 -> 0 | F37: =((E37*'JHS-22'!$H$17)-D37)/'JHS-22'!$M$21 -> 1656573.157 | G37: -1028316.131 | H37: 0 | I37: =((H37*0.0759)-G37)/'JHS-22'!$M$21 -> 1656573.157 | J37: 0 | K37: 0 | L37: 0
A38: 22.17 | B38: Property & Liability Ins | D38: ='JHS-19'!$AF49 -> -124477.4912 | E38: ='JHS-19'!$AF51 -> 0 | F38: =((E38*'JHS-22'!$H$17)-D38)/'JHS-22'!$M$21 -> 200527.8965 | G38: -124477.4912 | H38: 0 | I38: =((H38*0.0759)-G38)/'JHS-22'!$M$21 -> 200527.8965 | J38: 0 | K38: 0 | L38: 0
A39: 22.18 | B39: Pension Plan | D39: ='JHS-19'!$AG49 -> -1199983.887 | E39: ='JHS-19'!$AG51 -> 0 | F39: =((E39*'JHS-22'!$H$17)-D39)/'JHS-22'!$M$21 -> 1933122.545 | G39: -1199983.887 | H39: 0 | I39: =((H39*0.0759)-G39)/'JHS-22'!$M$21 -> 1933122.545 | J39: 0 | K39: 0 | L39: 0
A40: 22.19 | B40: Wage Increase | D40: ='JHS-19'!$AH49 -> -1512829.5 | E40: ='JHS-19'!$AH51 -> 0 | F40: =((E40*'JHS-22'!$H$17)-D40)/'JHS-22'!$M$21 -> 2437103.403 | G40: -1512829.644 | H40: 0 | I40: =((H40*0.0759)-G40)/'JHS-22'!$M$21 -> 2437103.635 | J40: -0.1442535708 | K40: 0 | L40: 0.232386312
A41: 22.2 | B41: Investment Plan | D41: ='JHS-19'!$AI49 -> -83623.67319 | E41: ='JHS-19'!$AI51 -> 0 | F41: =((E41*'JHS-22'!$H$17)-D41)/'JHS-22'!$M$21 -> 134714.1489 | G41: -83623.73048 | H41: 0 | I41: =((H41*0.0759)-G41)/'JHS-22'!$M$21 -> 134714.2411 | J41: -0.05728937034 | K41: 0 | L41: 0.09229071709
A42: 22.21 | B42: Employee Insurance | C42: C | D42: ='JHS-19'!$AJ49 -> -11276 | E42: ='JHS-19'!$AJ51 -> 0 | F42: =((E42*'JHS-22'!$H$17)-D42)/'JHS-22'!$M$21 -> 18165.1521 | G42: 69938 | H42: 0 | I42: =((H42*0.0759)-G42)/'JHS-22'!$M$21 -> -112667.1167 | J42: 81214 | K42: 0 | L42: -130832.2688
A43: 22.22 | B43: Working Capital | C43: C | D43: ='JHS-19'!AK49 -> 0 | E43: ='JHS-19'!AK51 -> -1378827.912 | F43: =((E43*'JHS-22'!$H$17)-D43)/'JHS-22'!$M$21 -> -183473.8124 | H43: -34987818 | I43: =((H43*0.0759)-G43)/'JHS-22'!$M$21 -> -4278017.985 | J43: 0 | K43: -33608990.09 | L43: =I43-F43 -> -4094544.173
B44: Total Adjustment | D44: =SUM(D9:D43) -> 208590421.2 | E44: 792926011.8 | F44: -230519473.5 | G44: 222267781.2 | H44: 692992600.5 | I44: -273330513.3 | J44: 13677359.95 | K44: -99933411.3 | L44: -42811039.81
B45: Adjusted Results of Operations | D45: =D8+D44 -> 326017732.5 | E45: 4893796925 | F45: =F8+F44+1 -> 125992783 | G45: 339695092.5 | H45: 4793863513 | I45: 38919350.92 | J45: 13677359.95 | K45: -99933411.36 | L45: -87073431.08

Sheet JHS-24 Unit Cost
A1: PUGET SOUND ENERGY
A2: ELECTRIC RESULTS OF OPERATIONS
A3: FORECAST TWELVE MONTHS ENDED DECEMBER 31, 2010 VS DECEMBER 31, 2008 GENERAL RATE CASE
A4: UNIT COST
D5: REVISED | E5: REVISED | H5: REVISED
D6: 2010-12-31 | F6: 2008-12-31
D7: RESTATED | E7: UNIT COST | F7: RESTATED | G7: UNIT COST
A8: LINE | D8: RESULTS OF | E8: Dollars/Kwh | F8: RESULTS OF | G8: Dollars/Kwh
A9: NO. | D9: OPERATIONS | E9: ='Production Factor'!F16 -> 2.11433e+10 | F9: OPERATIONS | G9: 21821673792 | H9: VARIANCE
A11: 1 | C11: OPERATING REVENUES:
A12: =+A11+1 -> 2 | C12: SALES TO CUSTOMERS | D12: ='JHS-19'!AP17 -> 1977113537 | E12: =+D12/E$9 -> 0.09351016807 | F12: 2034174915 | G12: =+F12/G$9 -> 0.0932180975 | H12: =(G12-E12)*E$9 -> -6175335.763
A13: 3 | C13: SALES FROM RESALE-FIRM | D13: ='JHS-19'!AP18 -> 1217747.52 | E13: =+D13/E$9 -> 5.75949601e-05 | F13: 353135.57 | G13: =+F13/G$9 -> 1.618279026e-05 | H13: =(G13-E13)*E$9 -> -875589.9308
A14: 4 | C14: SALES TO OTHER UTILITIES | D14: ='JHS-19'!AP19 -> 22406698.31 | E14: =+D14/E$9 -> 0.001059754074 | F14: 29152007.95 | G14: =+F14/G$9 -> 0.001335919885 | H14: =(G14-E14)*E$9 -> 5839056.608
A15: 5 | C15: OTHER OPERATING REVENUES | D15: ='JHS-19'!AP20 -> 36674343.02 | E15: =+D15/E$9 -> 0.001734560973 | F15: 40410071.39 | G15: =+F15/G$9 -> 0.001851831889 | H15: =(G15-E15)*E$9 -> 2479494.161
A16: 6 | C16: TOTAL OPERATING REVENUES | D16: =SUM(D12:D15) -> 2037412326 | E16: =+D16/E$9 -> 0.09636207808 | F16: =SUM(F12:F15) -> 2104090130 | G16: =+F16/G$9 -> 0.09642203206 | H16: =SUM(H12:H15) -> 1267625.074
A17: 7
A18: 8 | C18: OPERATING REVENUE DEDUCTIONS:
A19: 9
A20: 10 | C20: POWER COSTS:
A21: 11 | C21: FUEL | D21: ='JHS-19'!AP26 -> 249473159 | E21: =+D21/E$9 -> 0.01179915902 | F21: 300188768.4 | G21: =+F21/G$9 -> 0.01375645018 | H21: =(E21-G21)*E$9 -> -41383594.15
A22: 12 | C22: PURCHASED AND INTERCHANGED | D22: ='JHS-19'!AP27 -> 491711645.8 | E22: =+D22/E$9 -> 0.02325614477 | F22: 630151588.8 | G22: =+F22/G$9 -> 0.02887732604 | H22: =(E22-G22)*E$9 -> -118850321.9
A23: 13 | C23: WHEELING | D23: ='JHS-19'!AP28 -> 90618285.63 | E23: =+D23/E$9 -> 0.004285910223 | F23: 82203316.07 | G23: =+F23/G$9 -> 0.003767049075 | H23: =(E23-G23)*E$9 -> 10970436.92
A24: 14 | C24: RESIDENTIAL EXCHANGE | D24: ='JHS-19'!AP29 -> 0 | E24: =+D24/E$9 -> 0 | F24: 0 | G24: =+F24/G$9 -> 0 | H24: =(E24-G24)*E$9 -> 0
A25: 15 | C25: TOTAL PRODUCTION EXPENSES | D25: =SUM(D21:D24) -> 831803090.5 | E25: =+D25/E$9 -> 0.03934121402 | F25: =SUM(F21:F24) -> 1012543673 | G25: =+F25/G$9 -> 0.0464008253 | H25: =SUM(H21:H24) -> -149263479.2
A26: 16
A27: 17 | C27: OTHER POWER SUPPLY EXPENSES | D27: ='JHS-19'!AP32 -> 124572705.5 | E27: =+D27/E$9 -> 0.005891828878 | F27: 107091100.1 | G27: =+F27/G$9 -> 0.00490755664 | H27: =(E27-G27)*E$9 -> 20810763.21
A28: 18 | C28: TRANSMISSION EXPENSE | D28: ='JHS-19'!AP33 -> 11947107.9 | E28: 0.0005650540786 | F28: 8899925.229 | G28: 0.0004078479641 | H28: 3323856.042
A29: 19 | C29: DISTRIBUTION EXPENSE | D29: ='JHS-19'!AP34 -> 81556923.94 | E29: 0.003857341282 | F29: 74958556.08 | G29: 0.003435050711 | H29: 8928616.224
A30: 20 | C30: CUSTOMER ACCOUNT EXPENSES | D30: ='JHS-19'!AP35 -> 47476892.61 | E30: 0.00224548167 | F30: 41977338.78 | G30: 0.001923653482 | H30: 6804509.928
A31: 21 | C31: CUSTOMER SERVICE EXPENSES | D31: ='JHS-19'!AP36 -> 1696753.501 | E31: 8.025017383e-05 | F31: 2200804.972 | G31: 0.0001008540863 | H31: -435634.7023
A32: 22 | C32: CONSERVATION AMORTIZATION | D32: ='JHS-19'!AP37 -> 2589.45 | E32: 1.224714212e-07 | F32: 1062.36 | G32: 4.868370823e-08 | H32: 1560.115752
A33: 23 | C33: AMORTIZATION OF PROPERTY LOSS | D33: ='JHS-19'!AP41 -> 16940732.54 | E33: 0.0008012340807 | F33: 17897856.14 | G33: 0.0008201871366 | H33: -400730.1468
A34: 24 | C34: OTHER OPERATING EXPENSES | D34: ='JHS-19'!AP42 -> 9259408.676 | E34: 0.0004379358319 | F34: 8190584.117 | G34: 0.0003753416991 | H34: 1323446.53
A35: 25 | C35: ASC 815 | D35: ='JHS-19'!AP43 -> 0 | E35: 0 | F35: 0 | G35: 0 | H35: 0
A36: 26 | C36: ADMIN & GENERAL EXPENSE | D36: ='JHS-19'!AP38 -> 99871729.9 | E36: 0.004723563961 | F36: 89781328.75 | G36: 0.004114319076 | H36: 12881447.37
A37: 27 | C37: Subtotal | D37: =SUM(D27:D36) -> 393324844 | E37: 0.01860281243 | F37: =SUM(F27:F36) -> 350998556.6 | G37: 0.01608485948 | H37: 53237834.57
A38: 28 | C38: DEPRECIATION | D38: ='JHS-19'!AP39 -> 219505546.1 | E38: 0.01038180162 | F38: 175753601.7 | G38: 0.008054084365 | H38: 49215624.16
A39: =+A37+1 -> 28 | C39: AMORTIZATION | D39: ='JHS-19'!AP40 -> 39947888.38 | E39: 0.001889387578 | F39: 41715382.97 | G39: 0.001911649096 | H39: -470681.949
A40: =+A39+1 -> 29 | C40: TAXES OTHER INCOME TAXES | D40: ='JHS-19'!AP44 -> 125594216.6 | E40: 0.005940142579 | F40: 122553986.9 | G40: 0.005616158871 | H40: 6850084.724
A41: 30 | C41: INCOME TAXES | D41: ='JHS-19'!AP45 -> -67246825.76 | E41: -0.003180526491 | F41: 47621990.14 | G41: 0.00218232527 | H41: -113388383.6
A42: 31 | C42: DEFERRED INCOME TAXES | D42: ='JHS-19'!AP46 -> 168465833.3 | E42: 0.007967811708 | F42: 49297727.18 | G42: 0.002259117593 | H42: 120700632.3
A43: 32 | C43: TOTAL OPERATING REV. DEDUCT. | D43: =SUM(D37:D42)+D25 -> 1711394593 | E43: =SUM(E37:E42)+E25 -> 0.08094264344 | F43: =SUM(F37:F42)+F25 -> 1800484919 | G43: =SUM(G37:G42)+G25 -> 0.08250901997 | H43: =SUM(H37:H42)+H25 -> -33118369
A44: 33
A45: 34 | C45: NET OPERATING INCOME | D45: =D16-D43 -> 326017732.5 | E45: =+D45/E$9 -> 0.01541943464 | F45: 303605211.3 | G45: =+F45/G$9 -> 0.01391301209 | H45: =+H16+H43 -> -31850743.93
A46: 35
A47: 36 | C47: RATE BASE | D47: ='JHS-19'!AP51 -> 4893796925 | E47: =+D47/E$9 -> 0.2314585199 | F47: 3748212489 | G47: =+F47/G$9 -> 0.1717655815
A48: 37 | C48: RATE OF RETURN | D48: ='JHS-22'!H17 -> 0.0826 | F48: 0.081
A49: 38 | C49: RETURN ON RATE BASE | D49: =D47*D48 -> 404227626 | E49: =+D49/E$9 -> 0.01911847375 | F49: =F47*F48 -> 303605211.6 | G49: =+F49/G$9 -> 0.0139130121 | H49: =(E49-G49)*E$9 -> 110060637.1
A50: 39 | C50: REVENUE DEFICIENCY - NET OF TAX | D50: =D49-D45+0.5 -> 78209893.98 | F50: =F49-F45 -> 0.2751339078 | H50: =+H45+H49+1 -> 78209894.21
D52: =D50-'JHS-19'!AQ49 -> -0.07751736045

Sheet JHS-25 Ex A-1
J1: =DocketNumber -> Docket Number UE-111048
J2: =Exhibit_No.______JHS_25 -> Exhibit No. ___ (JHS-25)
D3: REVISED | E3: REVISED | H3: REVISED | J3: Page 1 of 12
B4: Exhibit A-1 Power Cost Rate | D4: TOTAL
A5: Row | D5: Test Year
A6: 3 | B6: Regulatory Assets (Variable) | D6: ='JHS-20'!BD105 -> 309775741.7
A7: 4 | B7: Transmission Rate Base (Fixed) | D7: ='JHS-25 Ex A-2'!E54 -> 94699227.84
A8: 5 | B8: Production Rate Base (Fixed) | D8: ='JHS-20'!BD86 -> 2020208211
A9: 6 | D9: =SUM(D6:D8) -> 2424683181 | H9: Production
A10: 7 | B10: Net of tax rate of return | D10: ='JHS-22'!$H$23 -> 0.0717 | H10: Factor
A11: 8 | E11: Test Yr | H11: ='Production Factor'!F19 -> 0.97901
A12: 9 | E12: $/MWh | H12: Rate Year | I12: Per Month for Schedule B
A13: 10 | B13: Regulatory Asset Recovery (on Row 3) | D13: =(D6*D10)/0.65 -> 34170647.2 | E13: =ROUND(D13/$D$39,3) -> 1.616 | G13: (c)
A14: 11 | B14: Fixed Asset Recovery Other (on Row 4) | D14: =D7*D10/0.65 -> 10446053.29 | E14: 0.494 | F14: (a) | H14: =D14 -> 10446053.29 | I14: =H14/12 -> 870504.4405
A15: 12 | B15: Fixed Asset Recovery-Prod Factored (on Row 5) | D15: =(D8*D10)/0.65 -> 222844505.7 | E15: 10.54 | F15: (a) | H15: =D15/$H$11 -> 227622297.8 | I15: =H15/12 -> 18968524.81 | J15: =SUM(I14:I15) -> 19839029.26
A16: 13 | B16: 501-Steam Fuel | D16: ='JHS-20.01(A)'!N18 -> 88107392.67 | E16: 4.167 | G16: (c)
A17: 14 | B17: 555-Purchased power | D17: ='JHS-20.01(A)'!N22+'JHS-20'!BB38+'JHS-20'!BC38 -> 473300521.2 | E17: 22.385 | G17: (c)
A18: 15 | B18: 557-Other Power Exp | D18: ='JHS-20.01(A)'!N24+SUM('JHS-20'!BB15:BC15) -> 6598333.9 | E18: 0.312 | F18: (a) | H18: =D18/$H$11 -> 6739802.351 | I18: =H18/12 -> 561650.1959
A19: 15a | B19: Payroll Overheads - Worker's Comp | D19: =SUM('JHS-20'!BB20:BC20) -> 4904765.372 | E19: 0.232 | F19: (a) | H19: =D19/$H$11 -> 5009923.67 | I19: =H19/12 -> 417493.6392
A20: 15b | B20: Property Insurance | D20: =SUM('JHS-20'!BB21:BC21)+SUM('JHS-20'!BB42:BC42) -> 3287266.128 | E20: 0.155 | F20: (a) | H20: =D20/$H$11 -> 3357745.2 | I20: =H20/12 -> 279812.1
A21: 15c | B21: Montana Electric Energy Tax | D21: =SUM('JHS-20'!BB32:BC32) -> 1664979.97 | E21: 0.079 | F21: (a) | H21: =D21/$H$11 -> 1700677.184 | I21: =H21/12 -> 141723.0987
A22: 15d | B22: Payroll Taxes on Production Wages | D22: =SUM('JHS-20'!BB33:BC33) -> 1979896.822 | E22: 0.094 | F22: (a) | H22: =D22/$H$11 -> 2022345.861 | I22: =H22/12 -> 168528.8218
A23: 16 | B23: 547-Fuel | D23: ='JHS-20.01(A)'!N19+SUM('JHS-20'!BB37:BC37) -> 161732151.4 | E23: 7.649 | G23: (c)
A24: 17 | B24: 565-Wheeling | D24: ='JHS-19'!AM28-SUM('JHS-20'!BB61:BC61) -> 90206903.09 | E24: 4.266 | G24: (c)
A25: 18 | B25: Variable Transmission Income | D25: =TransmRev!D11*H11 -> -5495638.128 | E25: -0.26 | G25: (c)
A26: 19 | B26: Hydro and Other Pwr. | D26: ='JHS-19'!AP32-SUM('JHS-20'!BB59:BC59) -> 123383103.3 | E26: 5.836 | F26: (a) | H26: =D26/$H$11 -> 126028440.2 | I26: =H26/12 -> 10502370.02 | J26: =SUM(I18:I34) -> 23105642.55
A27: 20 | B27: 447-Sales to Others | D27: =-'JHS-19'!AM19 -> -22406698.31 | E27: -1.06 | G27: (c)
A28: 21 | B28: 456-Subaccounts 00012, 18, 35, 36 | D28: ='JHS-20.01(A)'!N34 -> 0 | E28: 0 | G28: (c)
A29: 22 | B29: Transmission Exp - 500KV | D29: ='JHS-20.01(A)'!N32 -> 1389836.861 | E29: 0.066 | F29: (a) | H29: =D29/$H$11 -> 1419635 | I29: =H29/12 -> 118302.9167
A30: 23 | B30: Depreciation & Amort -Production (FERC 403) | D30: =SUM('JHS-20'!BB27:BC27) -> 104531600.9 | E30: 4.944 | F30: (a) | H30: =D30/$H$11 -> 106772761.1 | I30: =H30/12 -> 8897730.094
A31: 24 | B31: Depreciation-Transmission | D31: ='JHS-25 Ex A-2'!I54 -> 4091621.914 | E31: 0.194 | F31: (a) | H31: =D31/$H$11 -> 4179346.395 | I31: =H31/12 -> 348278.8662
A32: 25 | B32: Amortization-Production Reg Assets | D32: =SUM('JHS-20'!BB64+'JHS-20'!BC64) -> 22525984.97 | E32: 1.065 | G32: (c)
A33: 26 | B33: Property Taxes-Production | D33: =SUM('JHS-20'!BB30:BC31)+SUM('JHS-20'!BB43:BC43) -> 17921922.98 | E33: 0.848 | F33: (a) | H33: =D33/$H$11 -> 18306169.48 | I33: =H33/12 -> 1525514.123
A34: =A33+1 -> 27 | B34: Property Taxes-Transmission | D34: ='Restated TY'!G34 -> 1694533.23 | E34: 0.08 | F34: (a) | H34: =D34/$H$11 -> 1730864.067 | I34: =H34/12 -> 144238.6722
A35: =A34+1 -> 28 | B35: Hedging Line of Credit | D35: ='JHS-20.01(A)'!N25 -> 1420907.408 | E35: 0.067 | G35: (c)
A36: =A35+1 -> 29 | B36: Subtotal & Baseline Rate | D36: =SUM(D13:D35) -> 1348300592 | E36: =SUM(E13:E35) -> 63.769 | F36: (b) | H36: =SUM(H13:H35) -> 515336061.6 | I36: =SUM(I14:I35) -> 42944671.8 | J36: =SUM(J15:J35) -> 42944671.8
A37: =A36+1 -> 30 | B37: Revenue Sensitive Items | D37: ='JHS-22'!M19 -> 0.954998
A38: 31 | D38: =D36/D37 -> 1411836037
A39: 32 | B39: Test Year DELIVERED Load (MWH's) | D39: =ROUND('Production Factor'!F16/1000,0) -> 21143300 | E39: <-- includes Firm Wholesale
A40: 33
A41: 34
A42: 35
A43: 36 | D43: Before Rev. | G43: After Rev.
A44: 37 | D44: Sensitive Items | G44: Sensitive Items
A45: 38 | B45: Power Cost in Rates with Revenue Sensitive
A46: 39 | B46: Items (the adjusted baseline) | D46: =E36 -> 63.769 | E46: =+E36/$D$37 -> 66.77396183
A47: 40 | B47: sum of (a) = Fixed Rate Component | D47: =SUMIF($F$13:$F$35,"(a)",E13:E35) -> 23.874 | E47: =D47/$D$37 -> 24.99900523
A48: 41 | B48: (b) = Power Cost Rate | D48: =E36 -> 63.769 | E48: =D48/$D$37 -> 66.77396183
A49: 42 | B49: sum of (c) = Variable Power Rate Component | D49: =SUMIF($G$13:$G$35,"(c)",E13:E35) -> 39.895 | E49: =D49/$D$37 -> 41.7749566

Sheet JHS-25 Ex A-2
I1: =DocketNumber -> Docket Number UE-111048
I2: Exhibit No. ___ (JHS-25)
I3: Page 2 of 12
A4: Exhibit A-2 Transmission Rate Base
A6: Row | E6: Plant | F6: AMA Accum | I6: Annualized
A7: =ROW() -> 7 | E7: AMA 12/31/2010 | F7: Deprec/Amort | G7: Net | I7: Depreciation
A8: =ROW() -> 8
A9: 6 | C9: TRANS - COLSTRIP 1 & 2
A10: 7 | B10: E350 | C10: Land and Land Rights | E10: 10246.74 | F10: 0 | G10: 10246.74 | I10: 0
A11: 8 | B11: E351 | C11: Easements | E11: 685927 | F11: -410851 | G11: 275076 | I11: 13032.6
A12: 9 | B12: E353 | C12: Station Equipment | E12: 1231131 | F12: -977385 | G12: 253746 | I12: 25976.88
A13: 10 | B13: E354 | C13: Towers & Fixtures | E13: 14555900 | F13: -9079746 | G13: 5476154 | I13: 243073.52
A14: 11 | B14: E355 | C14: Poles & Fixtures | E14: 49007 | F14: -48986 | G14: 21 | I14: 1480.08
A15: 12 | B15: E356 | C15: OH Conductors & Devices | E15: 13158153 | F15: -8931160 | G15: 4226993 | I15: 277636.92
A16: 13 | B16: E359 | C16: Roads & Trails | E16: 113968 | F16: -67588 | G16: 46380 | I16: 1629.72
A17: 14 | E17: =SUM(E10:E16) -> 29804332.74 | F17: =SUM(F10:F16) -> -19515716 | G17: =SUM(G10:G16) -> 10288616.74 | I17: 562829.72
A18: 15
A19: 16 | C19: TRANS - COLSTRIP 3 & 4
A20: 17 | B20: E351 | C20: Easements | E20: 1071124 | F20: -629893 | G20: 441231 | I20: 20351.4
A21: 18 | B21: E352 | C21: Structures & Improvements | E21: 488761 | F21: -289792 | G21: 198969 | I21: 8308.92
A22: 19 | B22: E353 | C22: Station Equipment | E22: 19708485 | F22: -11596586 | G22: 8111899 | I22: 415074.29
A23: 20 | B23: E354 | C23: Towers & Fixtures | E23: 20580759 | F23: -12558757 | G23: 8022002 | I23: 343687.59
A24: 21 | B24: E355 | C24: Poles & Fixtures | E24: 88692 | F24: -34278 | G24: 54414 | I24: 2678.52
A25: 22 | B25: E356 | C25: OH Conductors & Devices | E25: 19991226 | F25: -13315474 | G25: 6675752 | I25: 421814.76
A26: 23 | B26: E359 | C26: Roads & Trails | E26: 341015 | F26: -199610 | G26: 141405 | I26: 4876.56
A27: 24 | E27: =SUM(E20:E26) -> 62270062 | F27: =SUM(F20:F26) -> -38624390 | G27: =SUM(G20:G26) -> 23645672 | I27: 1216792.04
A28: 25
A29: 26 | C29: TRANS - 3RD NW-SW INTERTIE
A30: 27 | B30: E350 | C30: Land and Land Rights | E30: 1769178.02 | F30: 0 | G30: 1769178.02 | I30: 0
A31: 28 | B31: E352 | C31: Structures & Improvements | E31: 1276264 | F31: -392280 | G31: 883984 | I31: 21696.48
A32: 29 | B32: E353 | C32: Station Equipment | E32: 32769281 | F32: -12112963 | G32: 20656318 | I32: 691431.84
A33: 30 | B33: E354 | C33: Towers & Fixtures | E33: 22781417 | F33: -7135115 | G33: 15646302 | I33: 380449.56
A34: 31 | B34: E355 | C34: Poles & Fixtures | E34: 204200 | F34: -70037 | G34: 134163 | I34: 6166.92
A35: 32 | B35: E356 | C35: OH Conductors & Devices | E35: 23498389 | F35: -9910549 | G35: 13587840 | I35: 495816
A36: 33 | B36: E359 | C36: Roads & Trails | E36: 59215 | F36: -10155 | G36: 49060 | I36: 846.72
A37: 35 | E37: =SUM(E30:E36) -> 82357944.02 | F37: =SUM(F30:F36) -> -29631099 | G37: =SUM(G30:G36) -> 52726845.02 | I37: 1596407.52
A38: 36
A39: 37 | C39: TRANS - NORTHERN INTERTIE
A40: 38 | B40: E350 | C40: Land and Land Rights | E40: 30604.26 | F40: 0 | G40: 30604.26
A41: 39 | B41: E354 | C41: Towers & Fixtures | E41: 4786748 | F41: -1234196 | G41: 3552552 | H41: 95926.44 | I41: 95926.44
A42: 40 | B42: E355 | C42: Poles & Fixtures | E42: 3412478 | F42: -1257397 | G42: 2155081 | H42: 104589.66 | I42: 104589.66
A43: 41 | B43: E356 | C43: OH Conductors & Devices | E43: 11363534 | F43: -3874637 | G43: 7488897 | H43: 266953.59 | I43: 266953.59
A44: 44 | E44: =SUM(E40:E43) -> 19593364.26 | F44: =SUM(F40:F43) -> -6366230 | G44: =SUM(G40:G43) -> 13227134.26 | I44: 467469.69
A45: 45
A46: 46
A47: 47 | B47: Total Transmission | E47: =E17+E27+E37+E44 -> 194025703 | F47: =F17+F27+F37+F44 -> -94137435 | G47: =G17+G27+G37+G44 -> 99888268.02 | I47: =I17+I27+I37+I44 -> 3843498.97
A48: 48 | B48: Accumulated Depreciation (AMA) | E48: =F47 -> -94137435
A49: 49 | B49: Deferred Taxes (AMA) | E49: -8651536.5
A50: 50 | B50: Transmission portion of:
A51: 51 | B51: Colstrip Common FERC Adj, net of accum amort | E51: 2980141.17 | I51: 213630.15
A52: 52 | B52: Colstrip Def Depr FERC Adj, net of accum amort | E52: 482355.1495 | I52: 34492.794
A53: 53
A54: 54 | B54: Total Transmission Rate Base | E54: =SUM(E47:E53) -> 94699227.84 | I54: =SUM(I47:I53) -> 4091621.914

Sheet JHS-25 Ex A-3
B1: Exhibit A-3 Colstrip Fixed Costs (1 of 2) | I1: Exhibit No. ___(JHS-25)
A2: Row | B2: Revenue Requirement for Colstrip | I2: Page 3 of 12
A3: =ROW() -> 3 | C3: Plant | D3: =F67 -> 754943461.4
A4: =ROW() -> 4 | C4: Accumulated Depreciation | D4: =I67 -> -446054900.6
A5: =ROW() -> 5 | C5: Deferred Taxes - AMA 12/31/2010 | D5: -66724781
A6: =ROW() -> 6 | C6: Net Plant | D6: =SUM(D3:D5) -> 242163779.7
A7: =ROW() -> 7 | C7: Rate of Return (net of Tax) | D7: ='JHS-22'!H23 -> 0.0717
A8: =ROW() -> 8 | C8: Revenue Requirement after tax | D8: =D6*D7 -> 17363143.01 | E8: (Line 6 X Line 7)
A9: =ROW() -> 9 | C9: Plant Revenue Requirement | D9: =D8/(1-0.35) -> 26712527.7 | E9: (Adjusted for Federal Tax) (Line 8 / (1 - 35%))
A10: =ROW() -> 10 | C10: Expenses | D10: =D113 -> 62453516.2
A11: =ROW() -> 11 | C11: Total Revenue Requirement | D11: =D10+D9 -> 89166043.9 | E11: (before revenue sensitive items)
A12: =ROW() -> 12
A13: =ROW() -> 13 | B13: Support for Revenue Requirement - Ratebase
A14: =ROW() -> 14 | B14: FERC | C14: DESCRIPTION | D14: 2009 December In Thousands | E14: 2010 December In Thousands | F14: 13 MONTH AMA | G14: ANNUITY RATE | H14: ANNUALIZED DEPRECIATION | I14: AMA ACUMM. DEPR.
A15: =ROW() -> 15 | C15: COLSTRIP #1
A16: =ROW() -> 16 | B16: E311 | C16: Structures & Improvements | D16: 7355 | E16: 7417 | F16: 7390065 | G16: 0.0174 | H16: 128515.62 | I16: -4710418
A17: =ROW() -> 17 | B17: E312 | C17: Boiler Plant Equipment | D17: 70162 | E17: 73551 | F17: 71626270 | G17: 0.0169 | H17: 1214377.01 | I17: -40690146
A18: =ROW() -> 18 | B18: E314 | C18: Turbo Generating Units | D18: 23973 | E18: 24407 | F18: 24217324 | G18: 0.0236 | H18: 570890.85 | I18: -11048685
A19: =ROW() -> 19 | B19: E315 | C19: Accessory Electric Equipment | D19: 5895 | E19: 5912 | F19: 5906906 | G19: 0.0093 | H19: 54902.83 | I19: -4405415
A20: =ROW() -> 20 | B20: E316 | C20: Misc. Power Plant Equipment | D20: 796 | E20: 808 | F20: 805101 | G20: 0.0231 | H20: 18526.43 | I20: -248899
A21: =ROW() -> 21 | C21: TOTAL | D21: =SUM(D16:D20) -> 108181 | E21: 112095 | F21: 109945666 | G21: =ROUND(+H21/F21,4) -> 0.0181 | H21: =SUM(H16:H20) -> 1987212.74 | I21: =SUM(I16:I20) -> -61103563
A22: =ROW() -> 22 | C22: COLSTRIP #2
A23: =ROW() -> 23 | B23: E311 | C23: Structures & Improvements | D23: 2541 | E23: 2608 | F23: 2579925 | G23: 0.0132 | H23: 33932.79 | I23: -1002662
A24: =ROW() -> 24 | B24: E312 | C24: Boiler Plant Equipment | D24: 63084 | E24: 65040 | F24: 64505013 | G24: 0.0178 | H24: 1139738.46 | I24: -33864137
A25: =ROW() -> 25 | B25: E314 | C25: Turbo Generating Units | D25: 26787 | E25: 28439 | F25: 27620914 | G25: 0.0229 | H25: 629409.8 | I25: -10330632
A26: =ROW() -> 26 | B26: E315 | C26: Accessory Electric Equipment | D26: 2869 | E26: 2886 | F26: 2880593 | G26: 0.0136 | H26: 39130.1 | I26: -1267181
A27: =ROW() -> 27 | B27: E316 | C27: Misc. Power Plant Equipment | D27: 918 | E27: 930 | F27: 927101 | G27: 0.0238 | H27: 21983.57 | I27: -338064
A28: =ROW() -> 28 | C28: TOTAL | D28: =SUM(D23:D27) -> 96199 | E28: 99903 | F28: 98513546 | G28: =ROUND(+H28/F28,4) -> 0.0189 | H28: =SUM(H23:H27) -> 1864194.72 | I28: =SUM(I23:I27) -> -46802676
A29: =ROW() -> 29 | C29: COLSTRIP 1 & 2 COMMON
A30: =ROW() -> 30 | B30: E311 | C30: Structures & Improvements | D30: 31201 | E30: 31201 | F30: 31201182 | G30: 0.0123 | H30: 286761.13 | I30: -25849541
A31: =ROW() -> 31 | B31: E312 | C31: Boiler Plant Equipment | D31: 6209 | E31: 6209 | F31: 6209456 | G31: 0.0127 | H31: 78860.16 | I31: -4859524
A32: =ROW() -> 32 | B32: E314 | C32: Turbo Generating Units | D32: 3821 | E32: 3821 | F32: 3821272 | G32: 0.0124 | H32: 47383.68 | I32: -3287547
A33: =ROW() -> 33 | B33: E315 | C33: Accessory Electric Equipment | D33: 2333 | E33: 2333 | F33: 2332703 | G33: 0.0114 | H33: 26592.84 | I33: -1818121
A34: =ROW() -> 34 | B34: E316 | C34: Misc. Power Plant Equipment | D34: 6248 | E34: 6248 | F34: 6248428 | G34: 0.014 | H34: 87477.96 | I34: -4829577
A35: =ROW() -> 35 | B35: E317 | C35: Asset Retirement Obligation | D35: 540 | E35: 540 | F35: 540097 | G35: 0 | H35: 23022.12 | I35: -480942.62
A36: =ROW() -> 36 | C36: TOTAL | D36: =SUM(D30:D35) -> 50352 | E36: 50352 | F36: 50353138 | G36: =ROUND(+H36/F36,4) -> 0.0109 | H36: =SUM(H30:H35) -> 550097.89 | I36: =SUM(I30:I35) -> -41125252.62
A37: =ROW() -> 37 | C37: COLSTRIP 3
A38: =ROW() -> 38 | B38: E311 | C38: Structures & Improvements | D38: 28527 | E38: 28575 | F38: 28560518 | G38: 0.0133 | H38: 379726.87 | I38: -19203195
A39: =ROW() -> 39 | B39: E312 | C39: Boiler Plant Equipment | D39: 127151 | E39: 127916 | F39: 127278293 | G39: 0.0144 | H39: 1836477.79 | I39: -84254011
A40: =ROW() -> 40 | B40: E314 | C40: Turbo Generating Units | D40: 39395 | E40: 41704 | F40: 40516395 | G40: 0.0187 | H40: 758279.42 | I40: -18451357
A41: =ROW() -> 41 | B41: E315 | C41: Accessory Electric Equipment | D41: 6358 | E41: 6383 | F41: 6369547 | G41: 0.0128 | H41: 81543.24 | I41: -4018765
A42: =ROW() -> 42 | B42: E316 | C42: Misc. Power Plant Equipment | D42: 763 | E42: 770 | F42: 768745 | G42: 0.0201 | H42: 15411.96 | I42: -272770
A43: =ROW() -> 43 | C43: TOTAL | D43: =SUM(D38:D42) -> 202194 | E43: 205348 | F43: 203493498 | G43: =ROUND(+H43/F43,4) -> 0.0151 | H43: =SUM(H38:H42) -> 3071439.28 | I43: =SUM(I38:I42) -> -126200098
A44: =ROW() -> 44 | C44: COLSTRIP 4
A45: =ROW() -> 45 | B45: E311 | C45: Structures & Improvements | D45: 26721 | E45: 26769 | F45: 26754610 | G45: 0.0142 | H45: 379778.75 | I45: -17040192
A46: =ROW() -> 46 | B46: E312 | C46: Boiler Plant Equipment | D46: 113239 | E46: 114141 | F46: 113849136 | G46: 0.0164 | H46: 1864517.43 | I46: -66673143
A47: =ROW() -> 47 | B47: E314 | C47: Turbo Generating Units | D47: 39588 | E47: 40825 | F47: 40674578 | G47: 0.0192 | H47: 771961.89 | I47: -17832098
A48: =ROW() -> 48 | B48: E315 | C48: Accessory Electric Equipment | D48: 5660 | E48: 5660 | F48: 5660408 | G48: 0.014 | H48: 79245.72 | I48: -3324241
A49: =ROW() -> 49 | B49: E316 | C49: Misc. Power Plant Equipment | D49: 891 | E49: 898 | F49: 896213 | G49: 0.0193 | H49: 17258.69 | I49: -309205
A50: =ROW() -> 50 | C50: TOTAL | D50: =SUM(D45:D49) -> 186099 | E50: 188293 | F50: 187834945 | G50: =ROUND(+H50/F50,4) -> 0.0166 | H50: =SUM(H45:H49) -> 3112762.48 | I50: =SUM(I45:I49) -> -105178879
A51: =ROW() -> 51 | C51: COLSTRIP 3 & 4 COMMON
A52: =ROW() -> 52 | B52: E311 | C52: Structures & Improvements | D52: 70515 | E52: 70515 | F52: 70514806 | G52: 0.0131 | H52: 861460.99 | I52: -47724478
A53: =ROW() -> 53 | B53: E312 | C53: Boiler Plant Equipment | D53: 16957 | E53: 16957 | F53: 16957167 | G53: 0.0149 | H53: 252661.8 | I53: -10318676
A54: =ROW() -> 54 | B54: E314 | C54: Turbo Generating Units | D54: 11 | E54: 11 | F54: 10515 | G54: 0.2655 | H54: 2791.8 | I54: 106861
A55: =ROW() -> 55 | B55: E315 | C55: Accessory Electric Equipment | D55: 7645 | E55: 7645 | F55: 7645315 | G55: 0.0128 | H55: 97860 | I55: -4782271
A56: =ROW() -> 56 | B56: E316 | C56: Misc. Power Plant Equipment | D56: 4503 | E56: 4503 | F56: 4503330 | G56: 0.0163 | H56: 73404.24 | I56: -2515969
A57: =ROW() -> 57 | B57: E317 | C57: Asset Retirement Obligation | D57: 334 | E57: 334 | F57: 333978 | G57: 0 | H57: 5013.48 | I57: -236566.03
A58: =ROW() -> 58 | C58: TOTAL | D58: =SUM(D52:D57) -> 99965 | E58: 99965 | F58: 99965111 | G58: =ROUND(+H58/F58,4) -> 0.0129 | H58: =SUM(H52:H57) -> 1293192.31 | I58: =SUM(I52:I57) -> -65471099.03
A59: =ROW() -> 59 | C59: COLSTRIP 1-4 COMMON
A60: =ROW() -> 60 | B60: E316 | C60: Misc. Power Plant Equip. | D60: 252 | E60: 252 | F60: 251534 | G60: 0.0138 | H60: 3471.12 | I60: -173333
A61: =ROW() -> 61 | C61: TOTAL | D61: =SUM(D60) -> 252 | E61: 252 | F61: 251534 | G61: =ROUND(+H61/F61,4) -> 0.0138 | H61: =SUM(H60:H60) -> 3471.12 | I61: =SUM(I60) -> -173333
A62: =ROW() -> 62
A63: =ROW() -> 63 | B63: Subtotal before Colstrip FERC Adjustments (Line 63 + 65) | D63: =D21+D28+D36+D43+D50+D58+D61 -> 743242 | E63: 756208 | F63: 750357438 | G63: =H63/F63 -> 0.01583561372 | H63: =H21+H28+H36+H43+H50+H58+H61 -> 11882370.54 | I63: =I21+I28+I36+I43+I50+I58+I61 -> -446054900.6
A64: =ROW() -> 64 | B64: ARO - Electric Colstrip 1-4 (Acct: 23001021 - 1031) Adj (AMA is Net of Accum. Amort.) | F64: -2302671.466 | H64: 136274.21
A65: =ROW() -> 65 | B65: Colstrip Common FERC Adj. (AMA is Net of Accum. Amort.) | F65: 4947627.85 | H65: 354668.76
A66: =ROW() -> 66 | B66: Colstrip Def Depr FERC Adj. (AMA is Net of Accum. Amort.) | F66: 1941067 | H66: 104311.206
A67: =ROW() -> 67 | D67: Totals | F67: =SUM(F63:F66) -> 754943461.4 | G67: =H67/F67 -> 0.01652789295 | H67: =SUM(H63:H66) -> 12477624.72 | I67: =SUM(I63:I66) -> -446054900.6
I72: Exhibit No. ___(JHS-25)
I73: Page 4 of 12
A74: ROW | B74: Exhibit A-3 Colstrip Fixed Costs (2 of 2)
A75: =ROW() -> 75
A76: =ROW() -> 76
A77: =ROW() -> 77
A78: =ROW() -> 78
A79: =ROW() -> 79 | B79: Support for Revenue Requirement - Expenses
A80: =ROW() -> 80 | D80: Amount before
A81: =ROW() -> 81 | B81: Order | C81: Description | D81: Prod. Adj.
A82: =ROW() -> 82 | B82: 50004011 | C82: Colstrip 1&2 - Supv & Eng'g - Steam Ope | D82: 61749.81
A83: =ROW() -> 83 | B83: 50005011 | C83: Colstrip 3&4 - Supv & Eng'g - Steam Ope | D83: 50554.2
A84: =ROW() -> 84 | B84: 50204001 | C84: Colstrip 1&2 - Steam Exp - Steam Gen Op | D84: 4155364.14
A85: =ROW() -> 85 | B85: 50205001 | C85: Colstrip 3&4 - Steam Exp - Steam Gen Op | D85: 2502216.05
A86: =ROW() -> 86 | B86: 50504001 | C86: Colstrip 1&2 - Electric Exp - Steam Gen | D86: 97082
A87: =ROW() -> 87 | B87: 50505001 | C87: Colstrip 3&4 - Electric Exp - Steam Gen | D87: 87816.18
A88: =ROW() -> 88 | B88: 50604001 | C88: Colstrip 1&2 - Misc Stm Pwr - Steam Gen | D88: 3784561.96
A89: =ROW() -> 89 | B89: 50605001 | C89: Colstrip 3&4 - Misc Stm Pwr - Steam Gen | D89: 3178647.51
A90: =ROW() -> 90 | B90: 50704001 | C90: Colstrip 1&2 - Rents - Steam Gen Oper | D90: 9047.16
A91: =ROW() -> 91 | B91: 50705001 | C91: Colstrip 3&4 - Rents - Steam Gen Oper | D91: 32765.92
A92: =ROW() -> 92 | B92: 51004001 | C92: Colstrip 1&2 - Supv & Eng'g - Steam Gen | D92: 827100.53
A93: =ROW() -> 93 | B93: 51005001 | C93: Colstrip 3&4 - Supv & Eng'g - Steam Gen | D93: 589309.22
A94: =ROW() -> 94 | B94: 51104001 | C94: Colstrip 1&2 - Structures - Steam Gen M | D94: 1124651.37
A95: =ROW() -> 95 | B95: 51105001 | C95: Colstrip 3&4 - Structures - Steam Gen M | D95: 847752.84
A96: =ROW() -> 96 | B96: 51204001 | C96: Colstrip 1&2 - Boiler Plant - Steam Gen | D96: 5176408.54
A97: =ROW() -> 97 | B97: 51205001 | C97: Colstrip 3&4 - Boiler Plant - Steam Gen | D97: 4412220.69
A98: =ROW() -> 98 | B98: 51304001 | C98: Colstrip 1&2 - Electric Plant - Steam G | D98: 578522.5
A99: =ROW() -> 99 | B99: 51305001 | C99: Colstrip 3&4 - Electric Plant - Steam G | D99: 538075.82
A100: =ROW() -> 100 | B100: 51404001 | C100: Colstrip 1&2 -Misc Steam Plt -Steam Gen | D100: 1264419.28
A101: =ROW() -> 101 | B101: 51405001 | C101: Colstrip 3&4 -Misc Steam Plt -Steam Gen | D101: 863749.4
A102: =ROW() -> 102 | B102: 50604002 | C102: Colstrip 1&2 Belmontez Settlement | D102: 400000
A103: =ROW() -> 103 | B103: 50604003 | C103: Colstrip 1&2 Global Settlement | D103: -3437598
A104: =ROW() -> 104 | B104: 50604004 | C104: Colstrip 1&2 Ash Pond Settlement | D104: 785531
A105: =ROW() -> 105 | B105: 50605003 | C105: Colstrip 3&4 Global Settemt | D105: -1636257
A106: =ROW() -> 106 | B106: 50605004 | C106: Colstrip 3&4 Ash Pond Settlement | D106: 1458844
A107: =ROW() -> 107 | C107: Subtotal for the test year | D107: =SUM(D82:D106) -> 27752535.12
A108: =ROW() -> 108 | C108: Adjustment to the rate year | D108: ='ProdO&M'!L31 -> 11956364.79
A109: =ROW() -> 109 | C109: Subtotal on Orders | D109: =SUM(D107:D108) -> 39708899.91 | E109: =D109-SUM('ProdO&M'!H6:H8)-'ProdO&M'!L31 -> 0
A110: =ROW() -> 110 | C110: Property Taxes-Montana | D110: 8570766
A111: =ROW() -> 111 | C111: Electric Energy Tax | D111: 1696225.566
A112: =ROW() -> 112 | B112: 403xxxxx | C112: Depreciation | D112: =H67 -> 12477624.72
A113: =ROW() -> 113 | D113: =D109+D110+D111+D112 -> 62453516.2

Sheet JHS-25 Ex A-4
F1: Exhibit No. ___(JHS-25)
F2: Page 5 of 12
B3: Exhibit A-4 Production Adjustment (1 of 2)
A6: PUGET SOUND ENERGY
A7: PRODUCTION ADJUSTMENT
A8: =TESTYEAR -> FOR THE TWELVE MONTHS ENDED DECEMBER 31, 2010
A9: GENERAL RATE INCREASE
C10: REVISED | D10: REVISED | E10: REVISED | F10: Net of Prod.
A11: LINE | C11: PROFORMA | D11: PRODUCTION | E11: FIT | F11: Factor
A12: NO. | B12: DESCRIPTION | C12: AND RESTATED | D12: ='Production Factor'!F21 -> 0.02099 | E12: =FIT -> 0.35
C13: (A) | D13: (B) | F13: ( C) = (A)+(B)
A14: 1 | B14: O&M ON PRODUCTION PROPERTY
A15: =A14+1 -> 2 | B15: PRODUCTION WAGE ADJUSTMENTS AND INCENTIVE:
A16: 3 | B16: PURCHASED POWER | C16: ='JHS-20'!BB15 -> 79703.05096 | D16: ='JHS-20'!BC15 -> -1672.96704 | E16: ='JHS-20'!BD15 -> 586 | F16: =C16+D16 -> 78030.08392
A17: 4 | B17: OTHER POWER SUPPLY | C17: ='JHS-20'!BB16 -> 243956.3542 | D17: ='JHS-20'!BC16 -> -5120.643874 | E17: ='JHS-20'!BD16 -> 1792 | F17: =C17+D17 -> 238835.7103
A18: 5 | B18: TOTAL WAGE RELATED ADJUSTMENTS | C18: ='JHS-20'!BB17 -> 323659.4051 | D18: ='JHS-20'!BC17 -> -6793.610913 | E18: ='JHS-20'!BD17 -> 2378 | F18: =C18+D18 -> 316865.7942
A19: 6
A20: 7 | B20: ADMIN & GENERAL EXPENSES
A21: 8 | B21: PAYROLL OVERHEADS | C21: ='JHS-20'!BB20 -> 5009923.67 | D21: ='JHS-20'!BC20 -> -105158.2978 | E21: ='JHS-20'!BD20 -> 36805 | F21: =C21+D21 -> 4904765.372
A22: 9 | B22: PROPERTY INSURANCE | C22: ='JHS-20'!BB21 -> 2835322 | D22: ='JHS-20'!BC21 -> -59513.40878 | E22: ='JHS-20'!BD21 -> 20830 | F22: =C22+D22 -> 2775808.591
A23: 10 | B23: TOTAL ADMIN & GENERAL EXPENSES | C23: ='JHS-20'!BB22 -> 7845245.67 | D23: ='JHS-20'!BC22 -> -164671.7066 | E23: ='JHS-20'!BD22 -> 57635 | F23: =C23+D23 -> 7680573.963
A24: 11
A25: 12 | B25: DEPRECIATION / AMORTIZATION:
A26: 13 | B26: DEPRECIATION | C26: ='JHS-20'!BB25 -> 95508718.74 | D26: ='JHS-20'!BC25 -> -2004728.006 | E26: ='JHS-20'!BD25 -> 819310.7114 | F26: =C26+D26 -> 93503990.73
A27: 14 | B27: AMORTIZATION (OTHER THAN REGULATORY ASSETS/LIAB) | C27: ='JHS-20'!BB26 -> 11264042.39 | D27: ='JHS-20'!BC26 -> -236432.2498 | E27: ='JHS-20'!BD26 -> 80107.14909 | F27: =C27+D27 -> 11027610.14
A28: 15 | B28: TOTAL DEPRECIATION AND AMORTIZATION (FERC 403) | C28: ='JHS-20'!BB27 -> 106772761.1 | D28: ='JHS-20'!BC27 -> -2241160.256 | E28: ='JHS-20'!BD27 -> 899417.8605 | F28: =C28+D28 -> 104531600.9
A29: 16
A30: 17 | B30: TAXES OTHER-PRODUCTION PROPERTY:
A31: 18 | B31: PROPERTY TAXES - WASHINGTON | C31: ='JHS-20'!BB30 -> 7396041 | D31: ='JHS-20'!BC30 -> -155242.9006 | E31: ='JHS-20'!BD30 -> 54335 | F31: =C31+D31 -> 7240798.099
A32: 19 | B32: PROPERTY TAXES - MONTANA | C32: ='JHS-20'!BB31 -> 7977272 | D32: ='JHS-20'!BC31 -> -167442.9393 | E32: ='JHS-20'!BD31 -> 58605 | F32: =C32+D32 -> 7809829.061
A33: 20 | B33: ELECTRIC ENERGY TAX | C33: ='JHS-20'!BB32 -> 1700677.184 | D33: ='JHS-20'!BC32 -> -35697.2141 | E33: ='JHS-20'!BD32 -> 12494 | F33: =C33+D33 -> 1664979.97
A34: 21 | B34: PAYROLL TAXES | C34: ='JHS-20'!BB33 -> 2022345.861 | D34: ='JHS-20'!BC33 -> -42449.03963 | E34: ='JHS-20'!BD33 -> 14857 | F34: =C34+D34 -> 1979896.822
A35: 22 | B35: TOTAL TAXES OTHER | C35: ='JHS-20'!BB34 -> 19096336.05 | D35: ='JHS-20'!BC34 -> -400832.0936 | E35: ='JHS-20'!BD34 -> 140291 | F35: =C35+D35 -> 18695503.95
A36: 23
A37: 24 | B37: LOWER SNAKE RIVER
A38: 25
A39: 26 | B39: PURCHASED POWER | C39: ='JHS-20'!BB38 -> 776099.4993 | D39: ='JHS-20'!BC38 -> -16290.32849 | E39: ='JHS-20'!BD38 -> 5702 | F39: =C39+D39 -> 759809.1708
A40: 27 | B40: WHEELING | C40: ='JHS-20'!BB39 -> 7039229.379 | D40: ='JHS-20'!BC39 -> -147753.4247 | E40: ='JHS-20'!BD39 -> 51714 | F40: =C40+D40 -> 6891475.954
A41: 28 | B41: SALES FOR RESALE | C41: ='JHS-20'!BB40 -> 0 | D41: ='JHS-20'!BC40 -> 0 | E41: ='JHS-20'!BD40 -> 0 | F41: 0
A42: 29 | B42: PRODUCTION O&M | C42: ='JHS-20'!BB41 -> 10891022.51 | D42: ='JHS-20'!BC41 -> -228602.5624 | E42: ='JHS-20'!BD41 -> 80011 | F42: 10662419.94
A43: 30 | B43: PROPERTY INSURANCE | C43: ='JHS-20'!BB42 -> 522423.2001 | D43: ='JHS-20'!BC42 -> -10965.66297 | E43: ='JHS-20'!BD42 -> 3838 | F43: 511457.5371
A44: 31 | B44: PROPERTY TAX | C44: ='JHS-20'!BB43 -> 2932856.476 | D44: ='JHS-20'!BC43 -> -61560.65742 | E44: ='JHS-20'!BD43 -> 21546 | F44: 2871295.818
A45: 32 | B45: TOTAL OPERATING EXPENSES LOWER SNAKE RIVER | C45: ='JHS-20'!BB44 -> 22161631.06 | D45: ='JHS-20'!BC44 -> -465172.636 | E45: ='JHS-20'!BD44 -> 162811 | F45: 21696458.42
A46: 33
A47: 34 | B47: AMORTIZATION ON REGULATORY ASSETS:
A48: 35 | B48: BEP (555) | C48: ='JHS-20'!BB47 -> 3526620 | D48: ='JHS-20'!BC47 -> -74023.7538 | E48: ='JHS-20'!BD47 -> 25908 | F48: =C48+D48 -> 3452596.246
A49: 36 | B49: WHITE RIVER PLANT COSTS (407) | C49: ='JHS-20'!BB48 -> 1494701.722 | D49: ='JHS-20'!BC48 -> -31373.78915 | E49: ='JHS-20'!BD48 -> 10981 | F49: =C49+D49 -> 1463327.933
A50: 37 | B50: WHITE RIVER RELICENSING & CWIP | C50: ='JHS-20'!BB49 -> 0 | D50: ='JHS-20'!BC49 -> 0 | E50: ='JHS-20'!BD49 -> 0 | F50: 0
A51: 38 | B51: HOPKINS RIDGE PREPAID TRANSMISSION (565) | C51: ='JHS-20'!BB50 -> 0 | D51: ='JHS-20'!BC50 -> 0 | E51: ='JHS-20'!BD50 -> 0 | F51: 0
A52: 39 | B52: GOLDENDALE FIXED COSTS DEFERRAL (407.3) | C52: ='JHS-20'!BB51 -> 0 | D52: ='JHS-20'!BC51 -> 0 | E52: ='JHS-20'!BD51 -> 0 | F52: 0
A53: 40 | B53: HOPKINS RIDGE MITIGATION CREDIT (555) | C53: ='JHS-20'!BB52 -> 0 | D53: ='JHS-20'!BC52 -> 0 | E53: ='JHS-20'!BD52 -> 0 | F53: 0
A54: 41 | B54: WESTCOAST PIPELINE CAPACITY - UE-082013 (FB ENERGY) (547) | C54: ='JHS-20'!BB53 -> -392169.6667 | D54: ='JHS-20'!BC53 -> 8231.641303 | E54: ='JHS-20'!BD53 -> -2881 | F54: -383938.0254
A55: 42 | B55: WESTCOAST PIPELINE CAPACITY - UE-100503 (BNP PARIBUS) (547) | C55: ='JHS-20'!BB54 -> -537626.2136 | D55: ='JHS-20'!BC54 -> 11284.77422 | E55: ='JHS-20'!BD54 -> -3950 | F55: -526341.4394
A56: 43 | B56: MINT FARM DEFERRAL (407.3) | C56: ='JHS-20'!BB55 -> 2872181.835 | D56: ='JHS-20'!BC55 -> -60287.09673 | E56: ='JHS-20'!BD55 -> 21100 | F56: 2811894.739
A57: 44 | B57: WILD HORSE EXPANSION DEFERRAL (407.3) | C57: ='JHS-20'!BB56 -> 0 | D57: ='JHS-20'!BC56 -> 0 | E57: ='JHS-20'!BD56 -> 0 | F57: 0
A58: 45 | B58: COLSTRIP 1&2 (WECO) COAL CONTRACT PREPAYMENT (501) | C58: ='JHS-20'!BB57 -> 555555.5556 | D58: ='JHS-20'!BC57 -> -11661.11111 | E58: ='JHS-20'!BD57 -> 4081 | F58: 543894.4444
A59: 46 | B59: FERC PART 12 NON-CONSTRUCTION STUDY COSTS UE-070074 (407.3) | C59: ='JHS-20'!BB58 -> 265155 | D59: ='JHS-20'!BC58 -> -5565.60345 | E59: ='JHS-20'!BD58 -> 1948 | F59: 259589.3966
A60: 47 | B60: MAJOR MAINTENANCE (SUMMARIZED) (PROD O&M) | C60: ='JHS-20'!BB59 -> 1215107.379 | D60: ='JHS-20'!BC59 -> -25505.10388 | E60: ='JHS-20'!BD59 -> 8927 | F60: 1189602.275
A61: 48 | B61: LOWER SNAKE RIVER PREPAID TRANS DEPOSITS (407.3) | C61: ='JHS-20'!BB60 -> 697744.739 | D61: ='JHS-20'!BC60 -> -14645.66207 | E61: ='JHS-20'!BD60 -> 5126 | F61: 683099.0769
A62: 49 | B62: LOWER SNAKE RIVER PREPAID TRANS PRINCIPAL BAL. (565) | C62: ='JHS-20'!BB61 -> 420202.5852 | D62: ='JHS-20'!BC61 -> -8820.052262 | E62: ='JHS-20'!BD61 -> 3087 | F62: 411382.5329
A63: 50 | B63: LOWER SNAKE RIVER AMORTIZATION (407.3) | C63: ='JHS-20'!BB62 -> 5803404.153 | D63: ='JHS-20'!BC62 -> -121813.4532 | E63: ='JHS-20'!BD62 -> 42635 | F63: 5681590.7
A64: 51 | B64: CHELAN RESERVATION PREPAYMENT (555) | C64: ='JHS-20'!BB63 -> 7088065.589 | D64: ='JHS-20'!BC63 -> -148778.4967 | E64: ='JHS-20'!BD63 -> 52072 | F64: 6939287.093
A65: 52
A66: 53 | B66: TOTAL AMORTIZATION OF REGULATORY ASSETS AND LIABILITIES | C66: ='JHS-20'!BB64 -> 23008942.68 | D66: ='JHS-20'!BC64 -> -482957.7068 | E66: ='JHS-20'!BD64 -> 169034 | F66: 22525984.97
A67: 54
A68: 55
A69: 56 | B69: INCREASE(DECREASE) EXPENSE | D69: ='JHS-20'!BC67 -> 179208576 | E69: ='JHS-20'!BD67 -> -3761588.01
A70: 57 | B70: INCREASE(DECREASE) FIT | E70: ='JHS-20'!BD68 -> 1431566.86
A71: 58 | B71: INCREASE(DECREASE) NOI | E71: ='JHS-20'!BD69 -> 2330021.15
F72: Exhibit No. ___(JHS-25)
B73: Exhibit A-4 Production Adjustment (2 of 2) | F73: Page 6 of 12
A74: PUGET SOUND ENERGY
A75: PRODUCTION ADJUSTMENT
A76: =TESTYEAR -> FOR THE TWELVE MONTHS ENDED DECEMBER 31, 2010
A77: GENERAL RATE INCREASE
C78: REVISED | D78: REVISED
A79: LINE | C79: PROFORMA | D79: PRODUCTION | E79: FIT
A80: NO. | B80: DESCRIPTION | C80: AND RESTATED | D80: =D12 -> 0.02099 | E80: =FIT -> 0.35
A82: =A71+1 -> 59 | B82: PRODUCTION PROPERTY RATE BASE:
A83: 60 | B83: DEPRECIABLE PRODUCTION PROPERTY (INCL LSR AND WH SOLAR) | C83: ='JHS-20'!BB72 -> 3302665765 | D83: ='JHS-20'!BC72 -> -69322954
A84: 61 | B84: PRODUCTION PROPERTY ACCUM DEPR. (INCL LSR AND WH SOLAR) | C84: ='JHS-20'!BB73 -> -1195666811 | D84: ='JHS-20'!BC73 -> 25097046
A85: 62 | B85: NON-DEPRECIABLE PRODUCTION PROPERTY | C85: ='JHS-20'!BB74 -> 77287156 | D85: ='JHS-20'!BC74 -> -1622257
A86: 63 | B86: PRODUCTION PROPERTY ACCUM AMORT. | C86: ='JHS-20'!BB75 -> -4080190 | D86: ='JHS-20'!BC75 -> 85643
A87: 64 | B87: COLSTRIP COMMON FERC ADJUSTMENT | C87: ='JHS-20'!BB76 -> 4947628 | D87: ='JHS-20'!BC76 -> -103851
A88: 65 | B88: COLSTRIP DEFERRED DEPRECIATION FERC ADJ. | C88: ='JHS-20'!BB77 -> 1458712 | D88: ='JHS-20'!BC77 -> -30618
A89: 66 | B89: ACQUISITION ADJUSTMENTS | C89: ='JHS-20'!BB78 -> 250524822.2 | D89: ='JHS-20'!BC78 -> -5258516
A90: =A89+1 -> 67 | B90: ACCUMULATED AMORTIZATION ON ACQUISTION ADJ | C90: ='JHS-20'!BB79 -> -54306612 | D90: ='JHS-20'!BC79 -> 1139896
A91: =A90+1 -> 68 | B91: NET PRODUCTION PROPERTY | C91: ='JHS-20'!BB80 -> 2382830471 | D91: ='JHS-20'!BC80 -> -50015611
A92: =A91+1 -> 69
A93: =A92+1 -> 70 | B93: LIBR. DEPREC. POST 1980 (AMA) | C93: ='JHS-20'!BB82 -> -325637883.6 | D93: ='JHS-20'!BC82 -> 6835139
A94: 71 | B94: NOL DEFERRED TAX ASSET ATTRIBUTABLE TO PRODUCTION | C94: ='JHS-20'!BB83 -> 6328940 | D94: ='JHS-20'!BC83 -> -132844
A95: =A94+1 -> 72 | B95: SUBTOTAL | C95: ='JHS-20'!BB84 -> -319308943.6 | D95: ='JHS-20'!BC84 -> 6702295
A96: 73 | C96: ='JHS-20'!BB85 -> 0 | D96: ='JHS-20'!BC85 -> 0
A97: 74 | B97: TOTAL PRODUCTION PROPERTY RATE BASE | C97: ='JHS-20'!BB86 -> 2063521527 | D97: ='JHS-20'!BC86 -> -43313316 | E97: ='JHS-20'!BD86 -> 2020208211
A98: 75
A99: 76 | B99: REGULATORY ASSETS RATE BASE:
A100: 77 | B100: BEP | C100: ='JHS-20'!BB89 -> 11214773.01 | D100: ='JHS-20'!BC89 -> -235398
A101: 78 | B101: WHITE RIVER PLANT COSTS | C101: ='JHS-20'!BB90 -> 34565277.37 | D101: ='JHS-20'!BC90 -> -725525
A102: 79 | B102: WHITE RIVER RELICENSING & CWIP | C102: ='JHS-20'!BB91 -> 24941806.74 | D102: ='JHS-20'!BC91 -> -523529
A103: 80 | B103: PROCEEDS FROM THE SALE OF WHITE RIVER ASSETS TO CWA | C103: ='JHS-20'!BB92 -> -29911730 | D103: ='JHS-20'!BC92 -> 627847
A104: 81 | B104: DFIT WHITE RIVER REG ASSETS | C104: ='JHS-20'!BB93 -> -10331527.55 | D104: ='JHS-20'!BC93 -> 216859
A105: 82 | B105: WESTCOAST PIPELINE CAPACITY - UE-082013 (FB ENERGY) | C105: ='JHS-20'!BB94 -> -1529461.683 | D105: ='JHS-20'!BC94 -> 32103
A106: 83 | B106: WESTCOAST PIPELINE CAPACITY - UE-100503 (BNP PARIBUS) | C106: ='JHS-20'!BB95 -> -2096742.233 | D106: ='JHS-20'!BC95 -> 44011
A107: 84 | B107: MINT FARM DEFERRAL UE-090704 | C107: ='JHS-20'!BB96 -> 23180900.64 | D107: ='JHS-20'!BC96 -> -486567
A108: 85 | B108: COLSTRIP 1&2 (WECO) COAL CONTRACT PREPAYMENT | C108: ='JHS-20'!BB97 -> 3981481.481 | D108: ='JHS-20'!BC97 -> -83571
A109: 86 | B109: FERC PART 12 NON-CONSTRUCTION STUDY COSTS UE-070074 | C109: ='JHS-20'!BB98 -> 1193197.5 | D109: ='JHS-20'!BC98 -> -25045
A110: =A107+1 -> 85 | B110: LOWER SNAKE RIVER PREPAID TRANSMISSION DEPOSITS | C110: ='JHS-20'!BB99 -> 99746463.46 | D110: ='JHS-20'!BC99 -> -2093678
A111: =A108+1 -> 86 | B111: LOWER SNAKE RIVER AMORTIZATION | C111: ='JHS-20'!BB100 -> 13105765.45 | D111: ='JHS-20'!BC100 -> -275090
A112: 87 | B112: CARRYING CHARGES ON LSR PREPAID TRANSM DEPOSITS | C112: ='JHS-20'!BB101 -> 11099629.76 | D112: ='JHS-20'!BC101 -> -232981
A113: 86 | B113: CHELAN RESERVATION PAYMENT | C113: ='JHS-20'!BB102 -> 117130302.2 | D113: ='JHS-20'!BC102 -> -2458565
A114: 87 | B114: CHELAN SECURITY DEPOSIT | C114: ='JHS-20'!BB103 -> 18500000 | D114: ='JHS-20'!BC103 -> -388315
A115: 88 | B115: MAJOR MAINTENANCE (SUMMARIZED) | C115: ='JHS-20'!BB104 -> 1627204.627 | D115: ='JHS-20'!BC104 -> -34155
A116: 87 | B116: TOTAL REGULATORY ASSETS AND LIABILITIES RATE BASE | C116: ='JHS-20'!BB105 -> 316417340.7 | D116: ='JHS-20'!BC105 -> -6641599 | E116: ='JHS-20'!BD105 -> 309775741.7
A117: 88
A118: 89 | B118: TOTAL ADJUSTMENT TO RATEBASE (LINE 73 + LINE 89) | D118: ='JHS-20'!BC107 -> -49954915

Sheet JHS-25 Ex A-5
E1: ='JHS-20'!E2 -> Docket Number UE-111048
E2: ='JHS-25 Ex A-1'!J2 -> Exhibit No. ___ (JHS-25)
B3: Exhibit A-5 Power Costs | E3: Page 7 of 12
A6: PUGET SOUND ENERGY
A7: POWER COSTS
A8: =TESTYEAR -> FOR THE TWELVE MONTHS ENDED DECEMBER 31, 2010
A9: GENERAL RATE INCREASE
D10: REVISED | E10: REVISED
A11: LINE | E11: INCREASE
A12: NO. | B12: DESCRIPTION | C12: ACTUAL | D12: PROFORMA | E12: (DECREASE)
A14: 1 | B14: SALES FOR RESALE | C14: ='JHS-20'!C13 -> 201262557 | D14: ='JHS-20'!D13 -> 22406698.31 | E14: =D14-C14 -> -178855858.7
A15: =A14+1 -> 2
A16: 3 | B16: PURCHASES/SALES OF NON-CORE GAS | C16: ='JHS-20'!C15 -> -36748461.42 | D16: ='JHS-20'!D15 -> 0 | E16: =D16-C16 -> 36748461.42
A17: 4 | B17: WHEELING FOR OTHERS | C17: ='JHS-20'!C16 -> 10703022.63 | D17: ='JHS-20'!D16 -> 11378097.94 | E17: =D17-C17 -> 675075.3061
A18: 5 | C18: =SUM(C16:C17) -> -26045438.79 | D18: =SUM(D16:D17) -> 11378097.94 | E18: =SUM(E16:E17) -> 37423536.73
A19: 6
A20: 7 | B20: TOTAL OPERATING REVENUES | C20: =SUM(C14:C17) -> 175217118.2 | D20: =SUM(D14:D17) -> 33784796.25 | E20: =SUM(E14:E17) -> -141432322
A21: 8
A22: 9 | B22: FUEL | C22: ='JHS-20'!C21 -> 269007822.1 | D22: ='JHS-20'!D21 -> 249839544 | E22: =D22-C22 -> -19168278.1
A23: 10
A24: 11 | B24: PURCHASED AND INTERCHANGED | C24: ='JHS-20'!C23 -> 792862060.1 | D24: ='JHS-20'!D23 -> 479061015.8 | E24: =D24-C24 -> -313801044.2
A25: 12 | B25: HEDGING | C25: ='JHS-20'!C24 -> 0 | D25: ='JHS-20'!D24 -> 1420907.408 | E25: =D25-C25 -> 1420907.408
A26: 13
A27: 14 | B27: SUBTOTAL PURCHASED AND INTERCHANGED | C27: =SUM(C24:C26) -> 792862060.1 | D27: =SUM(D24:D26) -> 480481923.2 | E27: =SUM(E24:E26) -> -312380136.8
A28: 15 | B28: WHEELING | C28: ='JHS-20'!C27 -> 76487810.83 | D28: ='JHS-20'!D27 -> 83315427.14 | E28: =D28-C28 -> 6827616.31
A29: 16
A30: 17 | B30: TOTAL PRODUCTION EXPENSES | C30: =C22+C27+C28 -> 1138357693 | D30: =D22+D27+D28 -> 813636894.4 | E30: =E22+E27+E28 -> -324720798.6
A31: 18 | B31: HYDRO AND OTHER POWER | C31: ='JHS-20'!C30 -> 101194084.3 | D31: ='JHS-20'!D30 -> 112481847.6 | E31: =D31-C31 -> 11287763.3
A32: 19 | B32: TRANS. EXP. INCL. 500KV O&M | C32: ='JHS-20'!C31 -> 1419634.77 | D32: ='JHS-20'!D31 -> 1389836.861 | E32: =D32-C32 -> -29797.90865
A33: 20
A34: 21 | B34: TOTAL OPERATING EXPENSES | C34: =SUM(C30:C32) -> 1240971412 | D34: =SUM(D30:D32) -> 927508578.9 | E34: =SUM(E30:E32) -> -313462833.2
A35: 22
A36: 23 | B36: ="INCREASE (DECREASE) OPERATING INCOME (LINE "&A20&" - LINE "&A34&")" -> INCREASE (DECREASE) OPERATING INCOME (LINE 7 - LINE 21) | C36: =C20-C34 -> -1065754294 | D36: =D20-D34 -> -893723782.6 | E36: =E20-E34 -> 172030511.3
A37: 24
A38: 25 | B38: ="STATE UTILITY TAX SAVINGS FOR LINE "&A17 -> STATE UTILITY TAX SAVINGS FOR LINE 4 | C38: ='JHS-20'!C37 -> 0.03873 | E38: =-E17*C38 -> -26145.6666
A39: 26 | B39: INCREASE (DECREASE) INCOME | E39: =E36+E38 -> 172004365.6
A40: 27 | B40: INCREASE (DECREASE) FIT @ | C40: =FIT -> 0.35 | E40: =E39*FIT -> 60201527.96
A41: 28 | B41: INCREASE (DECREASE) NOI | E41: =+E39-E40 -> 111802837.6

Sheet DEM RY PC
C2: PUGET SOUND ENERGY, INC.
C3: 2011 GRC Power Costs Projections - AURORA + Not in Models
C4: Rate Year May 2012 through April 2013
C5: Updated Gas Price date: 12/08/11
C6: (dollars are in thousands)
B8: GRC Rate Year:
D9: 2012-05-01 | E9: 2012-06-01 | F9: 2012-07-01 | G9: 2012-08-01 | H9: 2012-09-01 | I9: 2012-10-01 | J9: 2012-11-01 | K9: 2012-12-01 | L9: 2013-01-01 | M9: 2013-02-01 | N9: 2013-03-01 | O9: 2013-04-01 | P9: Rate Year
A10: 501 | C10: Coal Fuel | D10: 5725.680273 | E10: 7729.705674 | F10: 7936.671503 | G10: 7945.228817 | H10: 7735.375531 | I10: 7945.915474 | J10: 7735.397889 | K10: 7945.764674 | L10: 8020.52744 | M10: 7377.876597 | N10: 8020.761983 | O10: 6433.067169 | P10: =SUM(B10:O10) -> 90551.97303
A11: 547 | C11: Natural Gas Fuel | D11: 5055.344107 | E11: 9301.676268 | F11: 16266.08926 | G11: 19216.30372 | H11: 18925.2372 | I11: 16800.81491 | J11: 11915.88271 | K11: 12830.87279 | L11: 15166.46036 | M11: 16136.66305 | N11: 10819.74166 | O11: 11008.011 | P11: 163443.097
A12: 555 | C12: Purchase & Interchange | D12: 37015.04104 | E12: 33860.4411 | F12: 22315.59197 | G12: 21105.58515 | H12: 23229.64389 | I12: 38237.88335 | J12: 56163.30586 | K12: 68556.4584 | L12: 59769.50335 | M12: 50618.37477 | N12: 48807.93215 | O12: 34383.02127 | P12: 494062.7823
A13: 557 | C13: Other Power Supply | D13: 669.1085792 | E13: 669.1085792 | F13: 669.1085792 | G13: 669.1085792 | H13: 669.1085792 | I13: 669.1085792 | J13: 669.1085792 | K13: 669.1085792 | L13: 669.1085792 | M13: 669.1085792 | N13: 669.1085792 | O13: 669.1085792 | P13: 8029.30295
A14: 565 | C14: Wheeling | D14: 7395.474258 | E14: 7476.185679 | F14: 7384.746558 | G14: 7501.093648 | H14: 7613.72995 | I14: 7753.241572 | J14: 7927.72611 | K14: 7957.481197 | L14: 8020.589602 | M14: 8038.534055 | N14: 7799.190174 | O14: 7693.151238 | P14: 92561.14404
A15: 447 | C15: Secondary Sales | D15: -1298.908179 | E15: -8795.029143 | F15: -1954.579167 | G15: -1260.607829 | H15: -800.6247771 | I15: -2537.946359 | J15: -599.955 | K15: -643.384581 | L15: -1399.524931 | M15: -2340.927871 | N15: -911.524071 | O15: -344.0866009 | P15: -22887.09851
C16: Subtotal | D16: =SUM(D10:D15) -> 54561.74007 | E16: 50242.08816 | F16: 52617.62871 | G16: 55176.71209 | H16: 57372.47037 | I16: 68869.01753 | J16: 83811.46615 | K16: 97316.30106 | L16: 90246.66441 | M16: 80499.62918 | N16: 75205.21048 | O16: 59842.27266 | P16: =SUM(P10:P15) -> 825761.2009
A17: 456 | C17: Non-Core Gas | P17: =SUM(D17:O17) -> 0
C18: Total Power Costs | D18: =SUM(D16:D17) -> 54561.74007 | E18: =SUM(E16:E17) -> 50242.08816 | F18: 52617.62871 | G18: 55176.71209 | H18: 57372.47037 | I18: 68869.01753 | J18: 83811.46615 | K18: 97316.30106 | L18: 90246.66441 | M18: 80499.62918 | N18: 75205.21048 | O18: 59842.27266 | P18: =SUM(P16:P17) -> 825761.2009
C20: Load in MWh | D20: 1739665 | E20: 1648131 | F20: 1690523 | G20: 1701706 | H20: 1647401 | I20: 1831551 | J20: 2073398 | K20: 2438265 | L20: 2383076 | M20: 2055226 | N20: 2102831 | O20: 1860671 | P20: =SUM(D20:O20) -> 23172444
A21: 0.068 | C21: Delivered Load | D21: 1621367.78 | E21: 1536058.092 | F21: 1575567.436 | G21: 1585989.992 | H21: 1535377.732 | I21: 1707005.532 | J21: 1932406.936 | K21: 2272462.98 | L21: 2221026.832 | M21: 1915470.632 | N21: 1959838.492 | O21: 1734145.372 | P21: =SUM(D21:O21) -> 21596717.81
O22: Revenue Requirement Adjustments:
O23: Before adjustment | P23: =P18 -> 825761.2009
J24: ='JHS-22'!$H$23 -> 0.0717 | M24: Tenaska Buyout Disallowance | N24: 0.5 | O24: 4218.981349
M25: Tenaska Prudence Disallowance | N25: 0.012 | O25: 155127.3421
M26: March Point 2 Prudence Disallowance | N26: 0.03 | O26: 37714.42185
O27: Net Power Costs | P27: =SUM(P23:P26) -> 825761.2009
O28: Production O&M (including ben & p/r tax) | P28: ='ProdO&M'!H58/1000 -> 134675.9052
O29: Colstrip 500 KV Expense | P29: 1419.635
O30: Costs for Revenue Requirement | P30: =SUM(P27:P29) -> 961856.7411
P31: DEM-9

Sheet LSR Power Costs
A1: Summary of Tranmission Expense on LSR Phase 1
D3: Included in DEM
C4: Additional BPA | D4: Power Cost
B5: Included in | C5: Credits Identified | D5: Summary | E5: Plant Adj | F5: Ppd Dep Adj
A6: Item | B6: DEM-Exhibit | C6: in Staff DR 195 | D6: Exhibit | E6: JHS 20.02 | F6: JHS 20.03
A7: a | B7: b | C7: c | D7: d = b + c = e + f | E7: e | F7: f
A9: LT and ST Firm PTP | B9: 5385018 | D9: 5385018 | F9: =D9 -> 5385018
A10: All Other PTP, ASII | B10: =6220716-5385018 -> 835698 | D10: 835698 | E10: =D10 -> 835698
A11: Total Variable | B11: 6203531.379 | D11: 6203531.379 | E11: =D11 -> 6203531.379
A12: Interest Credit | B12: -2917380.67 | C12: -2047434.745 | D12: -4964815.415 | F12: =D12 -> -4964815.415
A13: LSR Transmission Expense | B13: =SUM(B9:B12) -> 9506866.709 | C13: =SUM(C9:C12) -> -2047434.745 | D13: =SUM(D9:D12) -> 7459431.964 | E13: =SUM(E9:E12) -> 7039229.379 | F13: =SUM(F9:F12) -> 420202.5852

Sheet Restated TY
B2: Calculation of property taxes on production and transmission:
B3: The amounts determined below are used in the production adjustment as well as the development of the power cost rate for
B4: the PCA mechanism. The amounts below are considered to be a component of the restated amount of property taxes shown in the Property
B5: Tax Adjustment GRC Page 15.15
D8: Memo | F8: Production | G8: Transmission | H8: Total
B10: Oregon property taxes (2011 - Payable 2012; All taxes-Third Intertie) | D10: ='09-10'!F26 -> 619062 | F10: 0 | G10: =D10 -> 619062 | H10: =SUM(F10:G10) -> 619062
B12: Washington property taxes (2011 - Payable 2012) | D12: ='09-10'!D26 -> 28280318
B14: Allocation of WA property taxes to production based on production%: | C14: ='09-10'!D23 -> 0.2615261072 | F14: =D12*'09-10'!D23 -> 7396041.477 | H14: =SUM(F14:G14) -> 7396041.477
B16: Transmission-Northern Intertie based on Northern Intertie %: | C16: ='09-10'!D24 -> 0.003161181962 | G16: =D12*'09-10'!D24 -> 89399.23113 | H16: =SUM(F16:G16) -> 89399.23113
H17: =SUM(F17:G17) -> 0
B18: Subtotal Washington | F18: =SUM(F14:F17) -> 7396041.477 | G18: =SUM(G14:G17) -> 89399.23113 | H18: =SUM(H14:H17) -> 7485440.708
B20: Montana (All taxes are treated as either production or transmission)
B21: Total Montana taxes | D21: ='09-10'!H26 -> 8969872
B22: Less: Non-oper property | D22: ='09-10'!H28 -> -6528
B23: Beneficial use (For BPA use) | D23: ='09-10'!H29 -> 0
B24: Property taxes on PSE property (=Total Montana taxes - Non-Oper Property - Beneficial use) | D24: =SUM(D21:D23) -> 8963344
B26: Property taxes on PSE property distribution:
B27: Non-oper property | G27: 0 | H27: =SUM(F27:G27) -> 0
B28: Transmission | D28: =D24-D29-D23 -> 986071.9989 | G28: =D28 -> 986071.9989 | H28: =SUM(F28:G28) -> 986071.9989
B29: Production based on 2010 production %: | C29: ='09-10'!H23 -> 0.8899883795 | D29: ='09-10'!H32 -> 7977272.001 | F29: =D29 -> 7977272.001 | H29: =SUM(F29:G29) -> 7977272.001
F30: =D30*87.86% -> 0 | G30: =D30-F30 -> 0 | H30: =SUM(F30:G30) -> 0
B31: Subtotal Montana | D31: =SUM(D27:D30) -> 8963344 | F31: =SUM(F21:F30) -> 7977272.001 | G31: =SUM(G21:G30) -> 986071.9989 | H31: =SUM(H21:H30) -> 8963344
B34: Total restated RY production & transmission property taxes | F34: =F10+F18+F31 -> 15373313.48 | G34: =G10+G18+G31 -> 1694533.23 | H34: =H10+H18+H31 -> 17067846.71

Sheet 09-10
A4: Puget Sound Energy
A5: Property Tax Dept
A6: Allocation of Property Taxes to Production Property
A7: For Assessment Year 2011 Payable in 2012
A8: (11-12)
D10: 40810006 | F10: 40810012 | H10: 40810013
D11: Washington | F11: Oregon | H11: Montana | J11: Total
A13: (A) | B13: Total plant in Service | C13: Actual | D13: =139753838+6892888780-F13-H13 -> 6090585523 | F13: 88135868 | H13: 853921227 | J13: =+D13+F13+H13 -> 7032642618
A14: (B) | B14: Future Use | C14: Actual | D14: 29445702 | F14: 0 | H14: 0 | J14: =+D14+F14+H14 -> 29445702
A15: (C) | B15: Acquisition Adj | C15: Actual | D15: 251782251 | F15: 0 | H15: 0 | J15: =+D15+F15+H15 -> 251782251
A16: (D) | B16: CWIP | C16: Actual | D16: =287383908+297734000 -> 585117908 | F16: 0 | H16: 0 | J16: =+D16+F16+H16 -> 585117908
A18: (E) | B18: Total Utility Plant | C18: Actual | D18: =SUM(D13:D17) -> 6956931384 | F18: =SUM(F13:F17) -> 88135868 | H18: =SUM(H13:H17) -> 853921227 | J18: =+D18+F18+H18 -> 7898988479
A20: (F) | B20: Production Plant | C20: Actual | D20: =1139427257+292648800+1147323095-H20 -> 1819419183 | F20: 0 | H20: 759979969 | J20: =+D20+F20+H20 -> 2579399152
B21: Northern Intertie | D21: 21992126
A23: (G) | B23: Production Plant % | C23: (F) / (E) | D23: =+D20/D18 -> 0.2615261072 | F23: =+F20/F18 -> 0 | H23: =+H20/H18 -> 0.8899883795
B24: Northern Intertie % | D24: =+D21/D18 -> 0.003161181962
A26: (H) | B26: Property Taxes Pro-Forma | D26: 28280318 | F26: =314442+304620 -> 619062 | H26: 8969872
B27: Centrally Assessed Taxes | D27: -240000 | F27: 0
B28: Locally Ased Taxes | D28: -130000 | H28: -6528
B29: Less MT Beneficial Use
D30: =SUM(D26:D29) -> 27910318 | F30: =SUM(F26:F29) -> 619062 | H30: =SUM(H26:H29) -> 8963344
A32: (I) | B32: Property taxes on Prod Plant | C32: (G) X (H) | D32: =+D23*D30 -> 7299276.818 | F32: =+F23*F30 -> 0 | H32: =+H23*H30 -> 7977272.001
B34: Property Tax on Transmission
B35: Northern Intertie | D35: 60856
B36: 3rd AC | F36: =+F30 -> 619062
B37: Colstrip | H37: =+H30-H32-H29 -> 986071.9989
B39: Other | D39: =+D26 -> 28280318 | H39: =+H32 -> 7977272.001
B40: Non -Oper property | D40: =D27+D28 -> -370000 | H40: 11304
D42: =SUM(D38:D40) -> 27910318 | F42: =SUM(F36:F41) -> 619062 | H42: =SUM(H37:H40) -> 8974648

Sheet 557
A3: PUGET SOUND ENERGY
A4: 2006 GENERAL RATE CASE
A5: TEST YEAR TWELVE MONTHS ENDED DEC 31, 200
A6: RATE YEAR TWELVE MONTHS ENDED MARCH 2011
A7: DETAIL OF COSTS INCLUDED IN 557 FOR PURPOSES OF CALUCATING THE POWER COST RATE
A11: LINE | C11: RATE YEAR | D11: PRODUCTION | E11: INCLUDED IN
A12: NO. | B12: DESCRIPTION | C12: 12ME 12/09 | D12: ADJUSTMENT | E12: 557 IN PCR
A14: 1 | B14: POWER COSTS IN ORDER GROUP 557 (OTHER POWER | C14: ='JHS-20.01(A)'!L24+'JHS-20'!BB15 -> 6739802.351 | D14: =-C14*'JHS-20'!$BC$11 -> -141468.4513 | E14: =SUM(C14:D14) -> 6598333.9
B15: SUPPLY EXPENSE)
A16: =A14+1 -> 2 | B16: PAYROLL TAXES ON PRODUCTION WAGES | C16: ='JHS-20'!BB33 -> 2022345.861 | D16: =-C16*'JHS-20'!$BC$11 -> -42449.03963 | E16: =SUM(C16:D16) -> 1979896.822
A17: =A16+1 -> 3 | B17: PROPERTY INSURANCE | C17: ='JHS-20'!BB21 -> 2835322 | D17: =-C17*'JHS-20'!$BC$11 -> -59513.40878 | E17: =SUM(C17:D17) -> 2775808.591
A18: =A17+1 -> 4 | B18: MONTANA ELECTRIC ENERGY TAX | C18: ='JHS-20'!BB32 -> 1700677.184 | D18: =-C18*'JHS-20'!$BC$11 -> -35697.2141 | E18: =SUM(C18:D18) -> 1664979.97
A19: =A18+1 -> 5 | B19: PAYROLL OVERHEADS | C19: ='JHS-20'!BB20 -> 5009923.67 | D19: =-C19*'JHS-20'!$BC$11 -> -105158.2978 | E19: =SUM(C19:D19) -> 4904765.372
A20: =A19+1 -> 6
A21: =A20+1 -> 7 | B21: TOTAL 557 INCLUDED IN POWER COST RATE | C21: =SUM(C14:C20) -> 18308071.07 | D21: =SUM(D14:D20) -> -384286.4117 | E21: =SUM(E14:E20) -> 17923784.65

Sheet Production Adjustment
A4: Puget Sound Energy
A5: Production Adjustment
A6: For the Twelve Months Ended 12/31/2010
A7: Rate Year: Twelve Months Ended 04/31/2013
D9: REVISED | F9: REVISED | G9: REVISED
C10: % Tax | D10: Proforma | E10: Production | F10: Production | G10: Per Books
A11: Line | B11: Description | C11: Deductible | D11: Amount | E11: Wage % | F11: Amount | G11: FIT Amount
A13: 1 | B13: Purchased Power | F13: ='JHS-21'!CR14+'JHS-21'!BB14 -> 79703.05096
A14: =A13+1 -> 2 | B14: Other Power Supply | F14: ='JHS-21'!CR15+'JHS-21'!BB15+'JHS-21'!AD17 -> 243956.3542
A15: =A14+1 -> 3 | B15: Production Wage and Incentive Plan Increase (2) | F15: =SUM(F13:F14) -> 323659.4051
A16: =A15+1 -> 4 | B16: Payroll Taxes on Production Wages and Incentive | D16: ='JHS-21'!CQ24+'JHS-21'!BA24 -> 7909056.947 | E16: 0.2557 | F16: =+D16*E16 -> 2022345.861
A17: 5
A18: 6 | B18: Payroll Overheads:
A19: 7 | B19: Investment Plan | D19: ='JHS-21'!CW35 -> 4898810.853 | E19: =E16 -> 0.2557 | F19: =+D19*E19 -> 1252625.935
A20: 8 | B20: Employee Insurance | D20: ='JHS-21'!DB18 -> 13532440 | E20: =+E19 -> 0.2557 | F20: =+D20*E20 -> 3460244.908
A21: 9 | B21: Worker's Compensation | D21: 1161724 | E21: =E20 -> 0.2557 | F21: =+D21*E21 -> 297052.8268
A22: 10 | B22: Total Overheads | D22: =SUM(D19:D21) -> 19592974.85 | F22: =SUM(F19:F21) -> 5009923.67
A23: 11
A24: 12 | B24: Production Property Depreciation (FERC 403):
A25: 13 | B25: Test Year Depreciable Production Property | F25: ='Prod Plant'!D49 -> 63184736 | G25: 29401018.19
A26: 14 | B26: Lower Snake River - Taxable (5.02) | F26: ='JHS-20'!J22 -> 27796539.28 | G26: =+F26*0.35 -> 9728788.747
A27: 15 | B27: Lower Snake River Non-Taxable (5.02) | F27: ='JHS-20'!I23 -> 4802940.123 | G27: 0
A28: 16 | B28: Wild Horse Solar (4.38) | F28: ='JHS-20'!Y21 -> -275496.66 | G28: =F28*0.35 -> -96423.831
A29: 17 | B29: Subtotal Depreciation | F29: =SUM(F25:F28) -> 95508718.74 | G29: =SUM(G25:G28) -> 39033383.11
A30: 18 | B30: Production Property Amortization (FERC 403):
A31: 19 | B31: Non-Depreciable Production Property:
A32: 20 | B32: Non-Depreciable Production Property | F32: ='Prod Plant'!D61 -> 1251705.19 | G32: =+F32*0.35 -> 438096.8165
A33: 21 | B33: Colstrip Common FERC Adj. - Reg Asset (1) | D33: 0.0148 | F33: 354669 | G33: =-F33*D33*0.35 -> -1837.18542
A34: 22 | B34: Colstrip Def Depr FERC Adj. - Reg Asset | F34: 104311 | G34: =+F34*0.35 -> 36508.85
A35: 23 | B35: Encogen Acquisition Adjustment | F35: 2652900 | G35: =+F35*0.35 -> 928515
A36: 24 | B36: Whitehorn Acquisition Adjustment | F36: 2284109.76 | G36: =+F36*0.35 -> 799438.416
A37: 25 | B37: Mint Farm Amortization of Acquisition Adjustment | F37: 4616347.44 | G37: =+F37*0.35 -> 1615721.604
A38: 26 | F38: =SUM(F32:F37) -> 11264042.39 | G38: =SUM(G32:G37) -> 3816443.501
A39: 27 | B39: Total Production Property Depreciation & Amortization | F39: =F29+F38 -> 106772761.1 | G39: =G29+G38 -> 42849826.61
A40: 28
A41: 29 | B41: Production Factor | G41: =+'Production Factor'!F21 -> 0.02099
A42: 30
A43: 31 | B43: Tax Benefit of Production Adjusted Depreciation (FERC 403) | G43: =+G29*G41 -> 819310.7114
A44: 32 | B44: Tax Benefit of Production Adjusted Amortization (FERC 403) | G44: =G38*G41 -> 80107.14909
A45: 33 | B45: Subtotal Amortization
A46: 34 | B46: ="(1) Line "&A33&" is calculated as follows: -("&DOLLAR(F33,0)&" * "&D33*100&"% * 35%) = ("&DOLLAR(-G33,0)&")" -> (1) Line 21 is calculated as follows: -($354,669 * 1.48% * 35%) = ($1,837)
A47: 35
A48: 36 | B48: (2) Production wages and incentive plan costs are included in Power Costs in the Income Statement.
A49: 37 | B49: Power Costs are presented pro-forma, net of production factor in Adjustment 15.03. Therefore, only the
A50: 38 | B50: change to production wages and incentive costs (which are not included in Adjustment 15.03) needs to be
A51: 39 | B51: production-factored in this adjustment.

Sheet Production Factor
A2: Puget Sound Energy
A3: Production Factor
A4: For the Twelve Months Ended 12/31/2010
F7: Production
A8: Line | B8: Description | F8: Amount
A10: 1 | B10: TEST YEAR BILLED LOAD | F10: 21033671724
A11: =A10+1 -> 2 | B11: CHANGE IN UNBILLED KWHS (postive for the period) | F11: -125288128
A12: =A11+1 -> 3 | B12: TEST YEAR CORE DELIVERED LOAD BEFORE PROFORMA/RESTATING
A13: 4 | B13: ADJUSTMENTS (agrees to Sales of Electricity Report- Total Retail Sales) | F13: =SUM(F10:F11) -> 20908383596
A14: 5 | B14: PROFORMA ADJUSTMENTS (temp norm) | F14: =SUM('JHS-21'!E29:E40) -> 234916406.5
A15: 6
A16: 7 | B16: TOTAL ADJUSTED TEST YEAR DELIVERED LOAD | E16: ¸ | F16: =SUM(F13:F14) -> 2.11433e+10
A17: 8 | B17: FORECASTED RATE YEAR KWH | F17: ='DEM RY PC'!P21*1000 -> 2.159671781e+10
A18: 9
A19: 10 | B19: LINE 11 DIVIDED BY LINE 12 | F19: =IF(ISERROR(ROUND(+F16/F17,5)),1,ROUND(+F16/F17,5)) -> 0.97901
A20: 11
A21: 12 | B21: PRODUCTION FACTOR= (1-LINE 14) | F21: =ROUND(1-F19,5) -> 0.02099

Sheet Production Plant Premiums
A2: PROPERTY INSURANCE COSTS
A3: PRODUCTION PLANT PREMIUMS
C6: Renewal | D6: Actual
C7: Period | D7: Premiums
A8: PSE Property generation plants | C8: 4/1/11 - 4/1/12 | D8: 1796220
A10: Colstrip 1&2 | C10: 4/1/10 - 4/1/11 | D10: 426032 | E10: A
A11: Colstrip 3&4 | C11: 4/1/09 - 4/1/10 | D11: 389359 | E11: A
A12: Wild Horse | D12: 35381 | E12: C
A13: Fredrickson 1 | C13: 7/1/08 - 7/1/09 | D13: 188330 | E13: B
A15: Production Plant | B15: 30 | C15: =D8 -> 1796220
A16: Colstrip 1&2 | B16: ΣC | C16: =SUM(D10:D11) -> 815391
A17: Wild Horse | B17: C | C17: =D12 -> 35381
A18: Fredrickson 1 | B18: B | C18: =D13 -> 188330
C19: =SUM(C15:C18) -> 2835322

Sheet Prod Plant
A1: PUGET SOUND ENERGY
A2: PRODUCTION PLANT INFORMATION
A3: FOR THE TEST YEAR ENDED DECEMBER 31, 2010
A5: BEGINNING PRODUCTION PLANT
A7: FERC Account or Group Asset # | B7: Description | C7: 12 Mo. AMA 12/31/2010 | D7: Annualized Depreciation Expense 12/31/2010 | E7: Accum Depr (AMA) 12/31/2010
A9: DEPRECIABLE PRODUCTION PLANT
A10: E311 | B10: Structures & Improvements * | C10: 171571684 | D10: 2133057 | E10: -117906790
A11: E312 | B11: Boiler Plant Equipment | C11: 589096149.9 | D11: 10354907 | E11: -347151084
A12: E314 | B12: Turbogenerator Units | C12: 306600264.1 | D12: 6192128 | E12: -157407425
A13: E315 | B13: Accessory Electric Equip | C13: 43583058.25 | D13: 624041 | E13: -26681549
A14: E316 | B14: Misc Power Plant Equipment | C14: 16051945.07 | D14: 309286 | E14: -9023426
A15: E317 | B15: Asset Retirement Costs (Include both Recoverable and Not Recoverable in Rates) | C15: 1127039 | D15: 28036 | E15: -742053
B16: TOTAL STEAM PRODUCTION | C16: =SUM(C10:C15) -> 1128030140 | D16: =SUM(D10:D15) -> 19641455 | E16: =SUM(E10:E15) -> -658912327
C17: 0 | D17: 0 | E17: 0
A18: E331 | B18: Structures & Improvements | C18: 26742034 | D18: 521064 | E18: -14178364
A19: E332 | B19: Reservoirs, Dams & Waterways | C19: 198010877 | D19: 4493388 | E19: -107944815
A20: E333 | B20: Waterwheels, turbines | C20: 27834324 | D20: 586821 | E20: -16992010
A21: E334 | B21: Accessory Electric Equip | C21: 6752216 | D21: 162195 | E21: -4713301
A22: E335 | B22: Misc Power Plant Equipment | C22: 3571103 | D22: 215700 | E22: -1953703
A23: E336 | B23: Roads, Trails & Bridges | C23: 3156291 | D23: 100409 | E23: -1311882
A24: E337 | B24: Asset Retirement Costs
A25: E338 | B25: Easements
B26: TOTAL HYDRO PRODUCTION | C26: =SUM(C18:C25) -> 266066845 | D26: =SUM(D18:D25) -> 6079577 | E26: =SUM(E18:E25) -> -147094075
C27: 0 | D27: 0 | E27: 0
A28: E341 | B28: Structures & Improvements * | C28: =85841984-C56 -> 85714131 | D28: 1950348 | E28: -39028836
A29: E342 | B29: Fuel Holders & Accessories | C29: 24950607 | D29: 624745 | E29: -16067337
A30: E344 | B30: Generators | C30: =956902161-C56 -> 956774308 | D30: =32190203-D56 -> 32190203 | E30: =-286824369-E56 -> -286740458
A31: E345 | B31: Accessory Electric Equip | C31: 65394207 | D31: 2424407 | E31: -20471590
A32: E346 | B32: Other Production | C32: 8121457 | D32: 207277 | E32: =-4198449 -> -4198449
A33: E347 | B33: Asset Retirement Costs (Include both Recoverable and Not Recoverable in Rates) | C33: 2394542 | D33: 66724 | E33: -181927
A34: E348 | B34: Easements
B35: TOTAL OTHER PRODUCTION | C35: =SUM(C28:C34) -> 1143349252 | D35: =SUM(D28:D34) -> 37463704 | E35: =SUM(E28:E34) -> -366688597
C36: 0 | D36: 0 | E36: 0
A37: Add Assets Retirement Obligations:
A39: Balance Sheet Account | B39: Assets Retirement Obligations (Recovered in Rates): | C39: AMA - Dec '10 | D39: Annualized Accretion Expense 12/31/2010 | E39: Accum Depr (AMA) 12/31/2010
A40: 23001021 | B40: E317 - 100922 - Colstrip 1 & 2 Ash Pond Capping | C40: -23958 | D40: 0 | E40: 0
A41: 23001031 | B41: E317 - 100923 - Colstrip 3 & 4 Ash Pond Capping | C41: 866041 | D41: 0 | E41: 0
A42: 23001001 | B42: E317 - 100924 - Shuffleton Harbor Lease | C42: 0 | D42: 0 | E42: 0
A43: 23001041 | B43: ARO- Hopkins Ridge | C43: 1146131
A44: 23002001 | B44: ARO- Elec Shuffelton Harbor Lease | C44: 0
A45: 23002011 | B45: ARO-Frederickson | C45: 641018
A46: 23002041 | B46: ARO-Wild Horse Wind | C46: 1436497
C47: =SUM(C40:C46) -> 4065729 | D47: =SUM(D40:D46) -> 0 | E47: =SUM(E40:E46) -> 0
A49: TOTAL DEPRECIABLE | C49: =SUM(C16,C26,C35,C47) -> 2541511966 | D49: =SUM(D16,D26,D35,D47) -> 63184736 | E49: =SUM(E16,E26,E35,E47) -> -1172694999
A51: NON-DEPRECIABLE PRODUCTION PLANT
A52: E310 | B52: Steam Production - Land & Land Rights | C52: 3762255 | E52: -150
A53: E330 | B53: Hydro Production - Land & Land Rights | C53: 4632492 | D53: 245757 | E53: -536451
A54: E340 | B54: Other Production - Land & Land Rights | C54: 16073744 | D54: 8478 | E54: -144439
A55: E3411 | B55: Structures & Improvements
A56: E3441 | B56: Generators | C56: 127853 | E56: -83911
A57: 100000 | B57: Rock Island Expansion (E303) | C57: 0
A58: 100006 | B58: Whitehorn 2 & 3 Leasesholds (E303) | C58: 0
A59: 100469 | B59: Baker River License (E302) | C59: 39319203 | D59: 664025.21 | E59: -1327204
A60: 101000 | B60: Snoqualmie Project License (E302) | C60: 13371609 | D60: 333444.98 | E60: -1988035
B61: TOTAL NON-DEPRECIABLE PROD PLANT | C61: =SUM(C52:C60) -> 77287156 | D61: =SUM(D52:D60) -> 1251705.19 | E61: =SUM(E52:E60) -> -4080190
A63: TOTAL BEGINNING UTILITY PLANT IN SERVICE - DEPRECIABLE & NON-DEPRECIABLE | C63: =C61+C49 -> 2618799122 | D63: =D61+D49 -> 64436441.19 | E63: =E61+E49 -> -1176775189
A65: * Include in the annualized depreciation expense are annualized depreciation and accretion expenses related to ARC and ARO for recoverable in rates.
A67: ADJUSTMENTS
A70: FERC Account or Group Asset # | B70: Description | C70: 12 Mo. AMA 12/31/2008 | D70: Increase (Decrease) Depreciation Expense | E70: Accum Depr (AMA) - Rate Year
A72: E317 | B72: Frederickson - Steam Production (not recoverable in rates) | C72: 0 | E72: =-D72*0.5 -> 0
A73: E347 | B73: Other Production (not recoverable in rates) | C73: 0 | E73: =-D73*0.5 -> 0
A74: E317 | B74: Steam Production (recoverable in rates) | C74: 0 | E74: =-D74*0.5 -> 0
A76: TOTAL AMORTIZATION ADJUSTMENT | C76: =C72+C73 -> 0 | D76: =D72+D73+D74 -> 0 | E76: =E72+E73+E74 -> 0
A78: TOTAL DEPRECIATION STUDY ADJUSTMENT - PRODUCTION RELATED ONLY | C78: =+C76 -> 0 | D78: =+D76 -> 0 | E78: =+E76 -> 0
A80: TOTAL UTILITY PLANT IN SERVICE - ADJUSTED | C80: =C63+C78 -> 2618799122 | D80: =D63+D78 -> 64436441.19 | E80: =E63+E78 -> -1176775189

Sheet ProdO&M
B1: Puget Sound Energy - 2011 GRC | J1: =B1 -> Puget Sound Energy - 2011 GRC | P1: Hopkins | Q1: Wild Horse | S1: Lower Snake River | T1: Jackson Prairie
B2: Production O&M by Resources | J2: =B2 -> Production O&M by Resources | N2: Snoq. | O2: Freddy | P2: Proform | Q2: Proform | R2: Proform | S2: Proform | V2: Current | W2: 09GRC
K3: Test Year | L3: Colstrip | M3: Baker Lic. | N3: License | P3: Vestas | Q3: Vestas | R3: Wind Royalties | S3: LSR O & M | V3: Adjusted | W3: Rate Year
D4: Steam | E4: Hydro | F4: Other | G4: Sys Control | H4: Test Year | K4: =+H5 -> 01/10-12/10 | L4: <====================================================== Adjustments ============================================================ > | U4: Total | V4: Test Year | W4: O&M
C5: Resource | D5: Ops & Maint | E5: Ops & Maint | F5: Ops & Maint | G5: & Dispatch | H5: 01/10-12/10 | J5: Resources | L5: 1 - 3 | M5: 4 | N5: 5 | O5: 6 & 7 | P5: 8 | Q5: 9, 10 | R5: 11 - 13 | S5: 14 | T5: 15 | U5: Adjustments | V5: = Rate Year | W5: 04/10-03/11 | X5: Difference
C6: Colstrip 1/2 | D6: 17078907.29 | H6: =SUM(D6:G6) -> 17078907.29 | I6: 0 | J6: =+C6 -> Colstrip 1/2 | K6: =H6 -> 17078907.29 | L6: 5598904.146 | U6: =SUM(L6:T6) -> 5598904.146 | V6: =K6+U6 -> 22677811.44 | W6: 19847628.25 | X6: =V6-W6 -> 2830183.186
C7: Colstrip 3/4 | D7: 13103107.83 | H7: =SUM(D7:G7) -> 13103107.83 | I7: 0 | J7: Colstrip 3/4 | K7: 13103107.83 | L7: 4273870.647 | U7: 4273870.647 | V7: 17376978.48 | W7: 15149015.09 | X7: 2227963.385
C8: Colstrip Settlement | D8: -2429480 | H8: -2429480 | J8: Colstrip Settlement | K8: -2429480 | L8: 2083590 | U8: 2083590 | V8: -345890 | W8: 10487160.2 | X8: -10833050.2
C9: Encogen | D9: 888277.76 | F9: 3299875.54 | H9: 4188153.3 | I9: 0 | J9: Encogen | K9: 4188153.3 | U9: 0 | V9: 4188153.3 | W9: 3579223.74 | X9: 608929.56
C10: Lower Baker | E10: 5653794.98 | H10: 5653794.98 | I10: 0 | J10: Lower Baker | K10: 5653794.98 | U10: 0 | V10: 5653794.98 | W10: 2859726.41 | X10: 2794068.57
C11: Upper Baker | E11: 1053604.85 | H11: 1053604.85 | I11: 0 | J11: Upper Baker | K11: 1053604.85 | U11: 0 | V11: 1053604.85 | W11: 2744433.43 | X11: -1690828.58
C12: Baker License | E12: 6286854.79 | H12: 6286854.79 | J12: Baker License | K12: 6286854.79 | M12: =+H39 -> -1359065 | U12: -1359065 | V12: 4927789.79 | W12: 4740511.27 | X12: 187278.52
C13: Electron | E13: 3735078.12 | H13: 3735078.12 | I13: 0 | J13: Electron | K13: 3735078.12 | U13: 0 | V13: 3735078.12 | W13: 3117344.21 | X13: 617733.91
C14: Snoqualmie 1/2 | E14: 1849779.74 | H14: 1849779.74 | I14: 0 | J14: Snoqualmie 1/2 | K14: 1849779.74 | U14: 0 | V14: 1849779.74 | W14: 3057365.83 | X14: -1207586.09
C15: Snoqualmie License | E15: 579805.08 | H15: 579805.08 | J15: Snoqualmie License | K15: 579805.08 | N15: =+H40 -> 64914 | U15: 64914 | V15: 644719.08 | W15: 1012745.36 | X15: -368026.28
C16: White River | H16: 0 | I16: 0 | J16: White River | K16: 0 | U16: 0 | V16: 0 | W16: 278249.1935 | X16: -278249.1935
C17: Freddie 1 | D17: 2171101.87 | F17: 1644586.87 | H17: 3815688.74 | I17: 0 | J17: Freddie 1 | K17: 3815688.74 | O17: =SUM(H41:H42) -> 646334.26 | U17: 646334.26 | V17: 4462023 | W17: 4175978.28 | X17: 286044.7205
C18: Crystal | F18: 111244.36 | H18: 111244.36 | I18: 0 | J18: Crystal | K18: 111244.36 | U18: 0 | V18: 111244.36 | W18: 213978.14 | X18: -102733.78
C19: Goldendale | D19: 1727294.32 | F19: 4836105.69 | H19: 6563400.01 | I19: 0 | J19: Goldendale | K19: 6563400.01 | U19: 0 | V19: 6563400.01 | W19: 6320161.99 | X19: 243238.02
C20: Mint Farm | D20: 3189956.55 | F20: 4780159.03 | H20: 7970115.58 | J20: Mint Farm | K20: 7970115.58 | U20: 0 | V20: 7970115.58 | W20: 5215032.933 | X20: 2755082.647
C21: Whitehorn 1/2/3 | F21: 1084012.03 | H21: 1084012.03 | I21: 0 | J21: =+C21 -> Whitehorn 1/2/3 | K21: 1084012.03 | U21: 0 | V21: 1084012.03 | W21: 1159774.95 | X21: -75762.92
C22: Frederickson | F22: 6909823.11 | H22: 6909823.11 | I22: 0 | J22: =+C22 -> Frederickson | K22: 6909823.11 | U22: 0 | V22: 6909823.11 | W22: 1301403.15 | X22: 5608419.96
C23: Fredonia 1-4 | F23: 3579096.3 | H23: 3579096.3 | I23: 0 | J23: =+C23 -> Fredonia 1-4 | K23: 3579096.3 | U23: 0 | V23: 3579096.3 | W23: 1130103.22 | X23: 2448993.08
C24: Sumas | D24: 1513751.96 | F24: 3923159.77 | H24: 5436911.73 | I24: 0 | J24: =+C24 -> Sumas | K24: 5436911.73 | U24: 0 | V24: 5436911.73 | W24: 3594194.17 | X24: 1842717.56
C25: Undistrib/Other Including Incentive Clearing, Compliance | D25: 683.42 | E25: 1350477.47 | F25: 3151654.75 | H25: 4502815.64 | I25: 0 | J25: =+C25 -> Undistrib/Other Including Incentive Clearing, Compliance | K25: 4502815.64 | T25: =+H50 -> -303825 | U25: -303825 | V25: 4198990.64 | W25: 2758806.97 | X25: 1440183.67
C26: Hopkins Ridge & Lease | F26: 5018911.17 | G26: 34200 | H26: =SUM(D26:G26) -> 5053111.17 | I26: 0 | J26: Hopkins Ridge | K26: 5053111.17 | P26: =H43 -> 1764154 | R26: =H46 -> 128597 | U26: 1892751 | V26: 6945862.17 | W26: 5600937.976 | X26: 1344924.194
C27: Wild Horse & Land Lease | F27: 9900839.1 | G27: 34200 | H27: =SUM(D27:G27) -> 9935039.1 | I27: 0 | J27: =+C27 -> Wild Horse & Land Lease | K27: 9935039.1 | Q27: =H44 -> 1286457 | R27: =H47 -> 264123 | U27: 1550580 | V27: 11485619.1 | W27: 10492918.29 | X27: 992700.8126
C28: Whitehorse Expansion | F28: 1499393.48 | H28: 1499393.48 | I28: 0 | J28: =+C28 -> Whitehorse Expansion | K28: 1499393.48 | Q28: =H45 -> 26797 | R28: =H48 -> 51326 | U28: 78123 | V28: 1577516.48 | W28: 1951840.771 | X28: -374324.2907
C29: Lower Snake River | H29: 0 | I29: 0 | J29: =+C29 -> Lower Snake River | K29: 0 | S29: =H49 -> 10891023 | U29: 10891023 | V29: 10891023 | X29: 10891023
C30: Sys Control & Dispatch | G30: 1698447.94 | H30: 1698447.94 | I30: 0 | J30: =+C30 -> Sys Control & Dispatch | K30: 1698447.94 | U30: 0 | V30: 1698447.94 | W30: 1408276.46 | X30: 290171.48
C31: TY 01/10 - 12/10 | D31: =SUM(D6:D30) -> 37243601 | E31: =SUM(E6:E30) -> 20509395.03 | F31: =SUM(F6:F30) -> 49738861.2 | G31: =SUM(G6:G30) -> 1766847.94 | H31: =SUM(H6:H30) -> 109258705.2 | I31: 0 | J31: =+C31 -> TY 01/10 - 12/10 | K31: =SUM(K6:K30) -> 109258705.2 | L31: 11956364.79 | M31: -1359065 | N31: 64914 | O31: 646334.26 | P31: 1764154 | Q31: 1313254 | R31: 444046 | S31: 10891023 | T31: -303825 | U31: 25417200.05 | V31: 134675905.2 | W31: 112196810.3 | X31: 22479094.94
G32: check | H32: 0 | K32: =H31-K31 -> 0 | U32: =+H53-U31 -> 0 | V32: =SUM(K32:T32) -> 0 | X32: 0
L33: Colstrip | M33: Bkr Lic. | N33: Snoq. Lic. | O33: Freddy | P33: Vestas -HR | Q33: Vestas - WH | R33: Wind Royalties | S33: Lower Snake River | T33: Jackson Prairie | U33: Total
C35: Adjustments:
A36: 1 | C36: Colstrip - Remove Test Year | D36: -30182015.12 | H36: =SUM(D36:G36) -> -30182015.12
A37: 2 | C37: Colstrip Settlement - Reduce TY by refund already included in 09GRC | D37: 2083590 | H37: 2083590
A38: =+A37+1 -> 3 | C38: Colstrip - Proform in Rate Year Budget | D38: 40054789.91 | H38: 40054789.91
A39: 4 | C39: Baker Licensing | E39: -1359065 | H39: -1359065
A40: 5 | C40: Snoqualmie Licensing | E40: 64914 | H40: 64914
A41: 6 | C41: Freddy 1 - Remove Test Year | D41: -2171101.87 | F41: -1644586.87 | H41: -3815688.74
A42: 7 | C42: Freddy 1 - Rate Year per Capital Power Operations Budget | F42: 4462023 | H42: 4462023
A43: 8 | C43: Wind Plant - Hopkins Ridge Vestas Contract | F43: 1764154 | H43: 1764154
A44: 9 | C44: Wind Plant - Wild Horse Vestas Contract | F44: 1286457 | H44: 1286457
A45: 10 | C45: Wild Horse Extension Vestas Contract | F45: 26797 | H45: 26797
A46: 11 | C46: Wind Plant - Hopkins Ridge Proform Wind Royalties | F46: 128597 | H46: 128597
A47: 12 | C47: Wind Plant - Wild Horse Proform Wind Royalties | F47: 264123 | H47: 264123
A48: 13 | C48: Wild Horse Extension Proform Wind Royalties | F48: 51326 | H48: 51326
A49: 14 | C49: Lower Snake River Royalties and O&M | F49: 10891023 | H49: 10891023
A50: 15 | C50: Jackson Prairie Storage Agreement - PSEG & PSEE | F50: -303825 | H50: =SUM(D50:G50) -> -303825
C53: Total Adjustments | D53: =SUM(D36:D52) -> 9785262.923 | E53: =SUM(E36:E52) -> -1294151 | F53: =SUM(F36:F52) -> 16926088.13 | G53: =SUM(G36:G52) -> 0 | H53: =SUM(H36:H52) -> 25417200.05
C55: Rate Year Prod'n O&M | D55: incl. benefits & payroll taxes
C56: =C31 -> TY 01/10 - 12/10 | D56: 37243601 | E56: 20509395.03 | F56: 49738861.2 | G56: 1766847.94 | H56: 109258705.2
C57: Total Adjustments | D57: =+D53 -> 9785262.923 | E57: =+E53 -> -1294151 | F57: =+F53 -> 16926088.13 | G57: =+G53 -> 0 | H57: =+H53 -> 25417200.05
C58: Rate Year Production O&M | D58: =D56+D57 -> 47028863.92 | E58: =E56+E57 -> 19215244.03 | F58: =F56+F57 -> 66664949.33 | G58: =G56+G57 -> 1766847.94 | H58: =H56+H57 -> 134675905.2
G62: Value Copy 1.07.12 Update | H62: 134675905
G63: Decrease since Update | H63: =+H62-H58 -> -0.2234200835

Sheet EB&Taxes
A1: PUGET SOUND ENERGY
A2: DETERMINATION OF ELECTRIC - PRODUCTION RELATED EMPLOYEE BENEFITS AND TAXES
A3: General Rate Case - Test Year 12ME 12/2010; Rate Year 12ME 5/2013
A5: Ref | B5: Order Group | C5: Description | D5: 12ME Dec 2010 | E5: Order Group Subtotal
A7: =ROW() -> 7 | B7: SUMMARY - Production Related Employee Benefits and Payroll Taxes
A8: =ROW() -> 8 | B8: Production O&M - reclassify to 557 | D8: =D42+D76 -> 6849513.49
A9: =ROW() -> 9 | B9: 557 | C9: Other Power Supply Expense | D9: =D43+D77 -> 1369203.65
A10: =ROW() -> 10 | B10: Total 557 used in Power Cost Rate | D10: =SUM(D8:D9) -> 8218717.14
A11: =ROW() -> 11
A12: =ROW() -> 12 | B12: DETAIL | C12: Cost Element Group - ASMT_BENEF
A13: =ROW() -> 13 | B13: 500 | C13: Steam Oper Supv & Engineering | D13: 30440.28
A14: =ROW() -> 14 | B14: 502 | C14: Steam Oper Steam Expenses | D14: 1422.81 | E14: =SUM(D13:D14) -> 31863.09
A15: =ROW() -> 15 | B15: 505 | C15: Steam Oper Electric Expense | D15: 127.62
A16: =ROW() -> 16 | B16: 506 | C16: Steam Oper Misc Steam Power | D16: 1354.94 | E16: =SUM(D16) -> 1354.94
A17: =ROW() -> 17 | B17: 507 | C17: Steam Oper Rents | D17: 0
A18: =ROW() -> 18 | B18: 510 | C18: Steam Maint Supv & Engineering | D18: 0
A19: =ROW() -> 19 | B19: 511 | C19: Steam Maint Structures | D19: 21088.14
A20: =ROW() -> 20 | B20: 512 | C20: Steam Maint Boiler Plant | D20: 85435.33
A21: =ROW() -> 21 | B21: 513 | C21: Steam Maint Electric Plant | D21: 65276.47 | E21: =SUM(D18:D20) -> 106523.47
A22: =ROW() -> 22 | B22: 514 | C22: Steam Maint Misc Steam Plant | D22: 7740.86
A23: =ROW() -> 23 | B23: 535 | C23: Hydro Oper Supv & Engineering | D23: 491249.05
A24: =ROW() -> 24 | B24: 537 | C24: Hydro Oper Hydraulic Expenses | D24: 419853.47
A25: =ROW() -> 25 | B25: 538 | C25: Hydro Oper Electric Expenses | D25: 76121.1
A26: =ROW() -> 26 | B26: 539 | C26: Hydro Oper Misc Hydraulic Exp | D26: 341150.47 | E26: =SUM(D21:D25) -> 1060240.95
A27: =ROW() -> 27 | B27: 540 | C27: Hydro Oper Rents | D27: 0
A28: =ROW() -> 28 | B28: 541 | C28: Hydro Maint Supv & Engineering | D28: 459.43
A29: =ROW() -> 29 | B29: 542 | C29: Hydro Maint Structures | D29: 45585.12
A30: =ROW() -> 30 | B30: 543 | C30: Hydro Maint Res, Dams, Wtrwys | D30: 92285.28 | E30: =SUM(D28:D30) -> 138329.83
A31: =ROW() -> 31 | B31: 544 | C31: Hydro Maint Electric Plant | D31: 105254.45
A32: =ROW() -> 32 | B32: 545 | C32: Hydro Maint Misc Hydraulic Plt | D32: 312650.22
A33: =ROW() -> 33 | B33: 546 | C33: Other Pwr Gen Oper Supv & Eng | D33: 617111.58
A34: =ROW() -> 34 | B34: 548 | C34: Other Pwr Gen Oper Gen Exp | D34: 1408565.52
A35: =ROW() -> 35 | B35: 549 | C35: Other Pwr Gen Oper Misc | D35: 302089.57
A36: =ROW() -> 36 | B36: 550 | C36: Other Pwr Gen Oper Rents | D36: 0
A37: =ROW() -> 37 | B37: 551 | C37: Other Pwr Gen Maint Supv & Eng | D37: 72409.71
A38: =ROW() -> 38 | B38: 552 | C38: Other Pwr Gen Maint Structures | D38: 36736.37
A39: =ROW() -> 39 | B39: 553 | C39: Other Pwr Gen Maint Gen & Elec | D39: 333047.09
A40: =ROW() -> 40 | B40: 554 | C40: Other Pwr Gen Maint Misc | D40: 56233.92 | E40: =SUM(D31:D40) -> 3244098.43
A41: =ROW() -> 41 | B41: 556 | C41: System Control & Load Dispatch | D41: 319909.35 | E41: =SUM(D41) -> 319909.35
A42: =ROW() -> 42 | B42: Production O&M - reclassify to 557 | D42: =SUM(D13:D41) -> 5243598.15 | E42: =SUM(E13:E41) -> 4902320.06
A43: =ROW() -> 43 | B43: 557 | C43: Other Power Supply Expense | D43: 1050548.28 | E43: =D43 -> 1050548.28
A44: =ROW() -> 44 | B44: TOTAL PRODUCTION RELATED | D44: =SUM(D42:D43) -> 6294146.43 | E44: =SUM(E42:E43) -> 5952868.34
A45: =ROW() -> 45
A46: =ROW() -> 46 | B46: DETAIL | C46: Cost Element Group - ASMT_TAXES
A47: =ROW() -> 47 | B47: 500 | C47: Steam Oper Supv & Engineering | D47: 9460.39
A48: =ROW() -> 48 | B48: 502 | C48: Steam Oper Steam Expenses | D48: 451.96 | E48: =SUM(D47:D48) -> 9912.35
A49: =ROW() -> 49 | B49: 505 | C49: Steam Oper Electric Expense | D49: 38.78
A50: =ROW() -> 50 | B50: 506 | C50: Steam Oper Misc Steam Power | D50: 435.1 | E50: =SUM(D50) -> 435.1
A51: =ROW() -> 51 | B51: 507 | C51: Steam Oper Rents | D51: 0
A52: =ROW() -> 52 | B52: 510 | C52: Steam Maint Supv & Engineering | D52: 0
A53: =ROW() -> 53 | B53: 511 | C53: Steam Maint Structures | D53: 6446.57
A54: =ROW() -> 54 | B54: 512 | C54: Steam Maint Boiler Plant | D54: 26178.11
A55: =ROW() -> 55 | B55: 513 | C55: Steam Maint Electric Plant | D55: 20108.6 | E55: =SUM(D52:D54) -> 32624.68
A56: =ROW() -> 56 | B56: 514 | C56: Steam Maint Misc Steam Plant | D56: 2399.65
A57: =ROW() -> 57 | B57: 535 | C57: Hydro Oper Supv & Engineering | D57: 150479.75
A58: =ROW() -> 58 | B58: 537 | C58: Hydro Oper Hydraulic Expenses | D58: 127840.53
A59: =ROW() -> 59 | B59: 538 | C59: Hydro Oper Electric Expenses | D59: 23325.89
A60: =ROW() -> 60 | B60: 539 | C60: Hydro Oper Misc Hydraulic Exp | D60: 103989.13 | E60: =SUM(D55:D59) -> 324154.42
A61: =ROW() -> 61 | B61: 540 | C61: Hydro Oper Rents | D61: 0
A62: =ROW() -> 62 | B62: 541 | C62: Hydro Maint Supv & Engineering | D62: 137.22
A63: =ROW() -> 63 | B63: 542 | C63: Hydro Maint Structures | D63: 13986.58
A64: =ROW() -> 64 | B64: 543 | C64: Hydro Maint Res, Dams, Wtrwys | D64: 28054.12
A65: =ROW() -> 65 | B65: 544 | C65: Hydro Maint Electric Plant | D65: 32134.24
A66: =ROW() -> 66 | B66: 545 | C66: Hydro Maint Misc Hydraulic Plt | D66: 95330.47
A67: =ROW() -> 67 | B67: 546 | C67: Other Pwr Gen Oper Supv & Eng | D67: 187566.28
A68: =ROW() -> 68 | B68: 548 | C68: Other Pwr Gen Oper Gen Exp | D68: 434524.29
A69: =ROW() -> 69 | B69: 549 | C69: Other Pwr Gen Oper Misc | D69: 92997.48 | E69: =SUM(D67:D69) -> 715088.05
A70: =ROW() -> 70 | B70: 550 | C70: Other Pwr Gen Oper Rents | D70: 0
A71: =ROW() -> 71 | B71: 551 | C71: Other Pwr Gen Maint Supv & Eng | D71: 22433.67
A72: =ROW() -> 72 | B72: 552 | C72: Other Pwr Gen Maint Structures | D72: 11223.29
A73: =ROW() -> 73 | B73: 553 | C73: Other Pwr Gen Maint Gen & Elec | D73: 102443.36
A74: =ROW() -> 74 | B74: 554 | C74: Other Pwr Gen Maint Misc | D74: 17129.27 | E74: =SUM(D71:D74) -> 153229.59
A75: =ROW() -> 75 | B75: 556 | C75: System Control & Load Dispatch | D75: 96800.61 | E75: =D75 -> 96800.61
A76: =ROW() -> 76 | B76: Production O&M - reclassify to 557 | D76: =SUM(D47:D75) -> 1605915.34 | E76: =SUM(E47:E75) -> 1332244.8
A77: =ROW() -> 77 | B77: 557 | C77: Other Power Supply Expense | D77: 318655.37 | E77: =D77 -> 318655.37
A78: =ROW() -> 78 | B78: TOTAL PRODUCTION RELATED | D78: =SUM(D76:D77) -> 1924570.71 | E78: =SUM(E76:E77) -> 1650900.17

Sheet TransmRev
A4: Calculation of proforma transmission revenue adjustment
A7: Account | B7: Description | C7: 12ME ENDED 12/2010 | D7: Restated | E7: Adjustment | F7: Comments
A9: 45610002 | B9: 4310 - Other Elec Rev - Transm Snohomish | C9: -11644.13 | D9: -11644.13 | E9: =D9-C9 -> 0
A10: 45610004 | B10: 4310 - Other Elec Rev - Transm MIsc | C10: -29936.18 | D10: -29936.18 | E10: 0
A11: 45610005 | B11: 4310-Elec Trans Rev -OASIS-Cols,SI ,NI | C11: -4694442.73 | D11: -5613464.753 | E11: -919022.0233
A12: 45610006 | B12: 4310 - Elec Trans. Rev - Ancillary Svc | C12: -176318.99 | D12: -176318.99 | E12: 0
A13: 45610010 | B13: 4310 - Other Elec Rev - Transm Seattle | C13: -332304 | D13: -332304 | E13: 0
A14: 45610011 | B14: 4310 - Other Elec Rev -Transm Tacoma | C14: -4575.96 | D14: -4575.96 | E14: 0
A15: 45610013 | B15: 4310- Elec Transm Rev - BPA GTA to OATT | C15: -664279.79 | D15: -664279.79 | E15: 0
A16: 45610014 | B16: 4310- Elec Transm Rev -GTA Direct charge | C16: -166741.88 | D16: -166741.88 | E16: 0
A17: 45610015 | B17: 4310- Elec Transm Rev - WA ST Tax -OASIS | C17: -90893.81 | D17: -90893.81 | E17: 0
A18: 45610018 | B18: 4310-Elec Trans Rev -Generator Imbalance | C18: 347231.09 | D18: 347231.09 | E18: 0
A19: 45610019 | B19: 4310 - Generator Imbalance Penalty | C19: -18404 | D19: -18404 | E19: 0
A20: 45610020 | B20: 4310-Imbalance penalty-Port SEA,BPA,WPUD | C20: -124 | D20: -124 | E20: 0
A21: 45610021 | B21: 4310-Elec Trans Revenue-SnoPUD Imbalance | C21: 0 | D21: 0 | E21: 0
A22: 45610022 | B22: 4310-Elec Trans Revenue-SnoPUD Losse | C22: 0 | D22: 0 | E22: 0
A23: 45610030 | B23: 4310 - Small Generator App Fees - Elect | C23: -500 | D23: -500 | E23: 0
A24: 45610060 | B24: 4310-Elec Trans Rev - Network 449 Transm | C24: -586174.37 | D24: -586174.37 | E24: 0
A25: 45610061 | B25: 4310-Elec Trans Rev- Network 449 Anc.svc | C25: -423717.28 | D25: -423717.28 | E25: 0
A26: 45610062 | B26: 4310-Elec Trans Rev -Network 449 Imbalan | C26: -1936015.05 | D26: -1936015.05 | E26: 0
A27: 45610065 | B27: 4310 - Elec Trans. Rev - GTA Imbalance | C27: 50272.18 | D27: 50272.18 | E27: 0
A28: 45610067 | B28: 4310 - Elec Trans Rev - SeaTac OATT (T) | C28: -4993.61 | D28: -4993.61 | E28: 0
A29: 45610068 | B29: 4310 - Elec Trans Rev -SeaTac OATT (WDS) | C29: -8233.01 | D29: -8233.01 | E29: 0
A30: 45610069 | B30: 4310-Elec Trans Rev-SeaTac Ancillary Svc | C30: -2316.16 | D30: -2316.16 | E30: 0
A31: 45610070 | B31: 4310-Elec Trans Rev-SeaTac Egy Imbalance | C31: -10933.46 | D31: -10933.46 | E31: 0
A32: 45610071 | B32: 4310 -Elec Trans Rev-SeaTac Ded Facility | C32: -15840 | D32: -15840 | E32: 0
A33: 45610072 | B33: 4310-Elec Trans Rev -OASIS-WA(Non GTA) | C33: -43359.96 | D33: -43359.96 | E33: 0
A34: 45610080 | B34: 4310 - Elec Trans Rev-BPA NT OATT-T-Elec | C34: -87569.3 | D34: -87569.3 | E34: 0
A35: 45610081 | B35: 4310 -Elec Trans Rev-BPA NT Ded Fac-Elec | C35: -236428 | D35: -236428 | E35: 0
A36: 45610082 | B36: 4310 -Elec Trans Rev-BPA NT Eng Imb-Elec | C36: -28167.59 | D36: -28167.59 | E36: 0
A37: 45610083 | B37: 4310 -Elec Trans Rev-BPA NT Anc Svc-Elec | C37: -43195.61 | D37: -43195.61 | E37: 0
A38: 45610084 | B38: 4310-Elec Trans Rev-BPA NT OATT-WDS-Elec | C38: -193317.19 | D38: -193317.19 | E38: 0
A39: 45610085 | B39: 4310-Non Refundable transmission | C39: -8625 | D39: -8625 | E39: 0
A40: 45610090 | B40: 5360 - Elec Trans Rev. Losses | C40: -1281474.84 | D40: -1281474.84
B41: Totals | C41: =SUM(C9:C40) -> -10703022.63 | D41: =SUM(D9:D40) -> -11622044.65 | E41: =SUM(E9:E40) -> -919022.0233
